Workbook

Sheet СВОД
A1: 17 | B1: Свод реестров расходных обязательств Шарангского муниципального района
B3: Наименование полномочия, расходного обязательства | D3: Код строки | E3: Правовое основание финансового обеспечения и расходования средств (нормативные правовые акт, договоры, соглашения) | K3: Код расхода по БК | M3: Объем средств на исполнение расходного обязательства
A4: ID_Form = 1000368 | E4: Российской Федерации | H4: субъекта Российской Федерации | M4: отчетный 2016 год | O4: текущий 2017 год | P4: очередной 2018 год | Q4: плановый период
A5: 6 | E5: Наименование номер и дата | F5: Номер статьи (подстатьи), пункта (подпункта ) | G5: Дата вступления в силу и срок действия | H5: Наименование номер и дата | I5: Номер статьи (подстатьи), пункта (подпункта ) | J5: Дата вступления в силу и срок действия | K5: раздел | L5: подраздел | M5: по плану | N5: по факту исполнения | Q5: 2019 | R5: 2020
A6: 8 | C6: 1 | D6: 2 | E6: 3 | F6: 4 | G6: 5 | H6: 6 | I6: 7 | J6: 8 | K6: 9 | L6: 10 | M6: 11 | N6: 12 | O6: 13 | P6: 14 | Q6: 15 | R6: 16
A7: 29 | B7: 1. | C7: Расходные обязательства, возникшие в результате принятия нормативных правовых актов муниципального района, заключения договоров (соглашений), всего | D7: 1000 | E7: х | F7: х | G7: х | H7: х | I7: х | J7: х | K7: х | L7: х | M7: =SUM(M10+M76+M96+M120+M178) -> 489888.8 | N7: 487564.2 | O7: 517076.3 | P7: =SUM(P10+P76+P96+P120+P178) -> 511288.8 | Q7: 441070.8 | R7: 451426.6
A8: 377 | C8: из них: | AB8: =U7 -> 0
B9: в том числе субсидии бюджетным учреждениям на финансовое обеспечение муниципального задания на оказание муниципальных услуг (выполнение работ) | M9: 280066.3 | N9: 279130.6 | O9: 302887.3 | P9: 289414.7 | Q9: 270470.2 | R9: 270944.9
B10: 1.1. | C10: Расходные обязательства, возникшие в результате принятия нормативных правовых актов муниципального района, заключения договоров (соглашений) в рамках реализации вопросов местного значения муниципального района, всего | D10: 1001 | E10: х | F10: х | G10: х | H10: х | I10: х | J10: х | K10: х | L10: х | M10: =SUM(M11:M75) -> 241098.6 | N10: 239672.9 | O10: 209693.4 | P10: 222093.4 | Q10: 185395 | R10: 186944
B11: 1.1.1. | C11: составление и рассмотрение проекта бюджета муниципального района, утверждение и исполнение бюджета муниципального района, осуществление контроля за его исполнением, составление и утверждение отчета об исполнении бюджета муниципального района | D11: 1002
B12: 1.1.2. | C12: установление, изменение и отмена местных налогов и сборов муниципального района | D12: 1003
B13: 1.1.3. | C13: владение, пользование и распоряжение имуществом, находящимся в муниципальной собственности муниципального района | D13: 1004 | E13: Федеральный закон от 06.10.2003 N 131-ФЗ "Об общих принципах организации местного самоуправления в Российской Федерации" | F13: ст.15п.1п.п.3 | G13: 06.10.2003 не ограничен | K13: 01 04 | L13: 13 12 | M13: =SUM([1]УФ!M12+[1]ОК!M12+[1]РОО!M12+[1]УСХ!M12+'[1]З С '!M12+[1]РА!M12) -> 367.5 | N13: =SUM([1]УФ!N12+[1]ОК!N12+[1]РОО!N12+[1]УСХ!N12+'[1]З С '!N12+[1]РА!N12) -> 358.4 | O13: =SUM([1]УФ!O12+[1]ОК!O12+[1]РОО!O12+[1]УСХ!O12+'[1]З С '!O12+[1]РА!O12) -> 452.8 | P13: =SUM([1]УФ!P12+[1]ОК!P12+[1]РОО!P12+[1]УСХ!P12+'[1]З С '!P12+[1]РА!P12) -> 525 | Q13: =SUM([1]УФ!Q12+[1]ОК!Q12+[1]РОО!Q12+[1]УСХ!Q12+'[1]З С '!Q12+[1]РА!Q12) -> 357 | R13: =SUM([1]УФ!R12+[1]ОК!R12+[1]РОО!R12+[1]УСХ!R12+'[1]З С '!R12+[1]РА!R12) -> 332.7
B14: 1.1.4. | C14: организация в границах муниципального района электро- и газоснабжения поселений в пределах полномочий, установленных законодательством Российской Федерации | D14: 1005 | M14: =SUM([1]УФ!M13+[1]ОК!M13+[1]РОО!M13+[1]УСХ!M13+'[1]З С '!M13+[1]РА!M13) -> 0 | N14: =SUM([1]УФ!N13+[1]ОК!N13+[1]РОО!N13+[1]УСХ!N13+'[1]З С '!N13+[1]РА!N13) -> 0 | O14: =SUM([1]УФ!O13+[1]ОК!O13+[1]РОО!O13+[1]УСХ!O13+'[1]З С '!O13+[1]РА!O13) -> 0 | P14: =SUM([1]УФ!P13+[1]ОК!P13+[1]РОО!P13+[1]УСХ!P13+'[1]З С '!P13+[1]РА!P13) -> 0 | Q14: =SUM([1]УФ!Q13+[1]ОК!Q13+[1]РОО!Q13+[1]УСХ!Q13+'[1]З С '!Q13+[1]РА!Q13) -> 0 | R14: =SUM([1]УФ!R13+[1]ОК!R13+[1]РОО!R13+[1]УСХ!R13+'[1]З С '!R13+[1]РА!R13) -> 0
B15: 1.1.5. | C15: дорожная деятельность в отношении автомобильных дорог местного значения вне границ населенных пунктов в границах муниципального района, осуществление муниципального контроля за сохранностью автомобильных дорог местного значения вне границ населенных пунктов в границах муниципального района, и обеспечение безопасности дорожного движения на них, а также осуществление иных полномочий в области использования автомобильных дорог и осуществления дорожной деятельности в соответствии с законодательством Российской Федерации | D15: 1006 | E15: Федеральный закон от 06.10.2003 N 131-ФЗ "Об общих принципах организации местного самоуправления в Российской Федерации" | F15: ст.15п.1 п.п.5 | G15: 08.11.2007 не ограничен | K15: 04 | L15: 09 | M15: =SUM([1]УФ!M14+[1]ОК!M14+[1]РОО!M14+[1]УСХ!M14+'[1]З С '!M14+[1]РА!M14) -> 0 | N15: =SUM([1]УФ!N14+[1]ОК!N14+[1]РОО!N14+[1]УСХ!N14+'[1]З С '!N14+[1]РА!N14) -> 0 | O15: =SUM([1]УФ!O14+[1]ОК!O14+[1]РОО!O14+[1]УСХ!O14+'[1]З С '!O14+[1]РА!O14) -> 0 | P15: =SUM([1]УФ!P14+[1]ОК!P14+[1]РОО!P14+[1]УСХ!P14+'[1]З С '!P14+[1]РА!P14) -> 0 | Q15: =SUM([1]УФ!Q14+[1]ОК!Q14+[1]РОО!Q14+[1]УСХ!Q14+'[1]З С '!Q14+[1]РА!Q14) -> 0 | R15: =SUM([1]УФ!R14+[1]ОК!R14+[1]РОО!R14+[1]УСХ!R14+'[1]З С '!R14+[1]РА!R14) -> 0
B16: 1.1.6. | C16: создание условий для предоставления транспортных услуг населению и организация транспортного обслуживания населения между поселениями в границах муниципального района | D16: 1007 | E16: Федеральный закон от 06.10.2003 N 131-ФЗ "Об общих принципах организации местного самоуправления в Российской Федерации" | F16: ст.15п.1п. п.6 | G16: 06.10.2003 не ограничен | K16: 04 | L16: 08 | M16: =SUM([1]УФ!M15+[1]ОК!M15+[1]РОО!M15+[1]УСХ!M15+'[1]З С '!M15+[1]РА!M15) -> 3943.4 | N16: =SUM([1]УФ!N15+[1]ОК!N15+[1]РОО!N15+[1]УСХ!N15+'[1]З С '!N15+[1]РА!N15) -> 3921.4 | O16: =SUM([1]УФ!O15+[1]ОК!O15+[1]РОО!O15+[1]УСХ!O15+'[1]З С '!O15+[1]РА!O15) -> 4620.9 | P16: =SUM([1]УФ!P15+[1]ОК!P15+[1]РОО!P15+[1]УСХ!P15+'[1]З С '!P15+[1]РА!P15) -> 1550.9 | Q16: =SUM([1]УФ!Q15+[1]ОК!Q15+[1]РОО!Q15+[1]УСХ!Q15+'[1]З С '!Q15+[1]РА!Q15) -> 1086.6 | R16: =SUM([1]УФ!R15+[1]ОК!R15+[1]РОО!R15+[1]УСХ!R15+'[1]З С '!R15+[1]РА!R15) -> 1019.5
B17: 1.1.7. | C17: участие в профилактике терроризма и экстремизма, а также в минимизации и (или) ликвидации последствий проявлений терроризма и экстремизма на территории муниципального района | D17: 1008 | M17: =SUM([1]УФ!M16+[1]ОК!M16+[1]РОО!M16+[1]УСХ!M16+'[1]З С '!M16+[1]РА!M16) -> 0 | N17: =SUM([1]УФ!N16+[1]ОК!N16+[1]РОО!N16+[1]УСХ!N16+'[1]З С '!N16+[1]РА!N16) -> 0 | O17: =SUM([1]УФ!O16+[1]ОК!O16+[1]РОО!O16+[1]УСХ!O16+'[1]З С '!O16+[1]РА!O16) -> 0 | P17: =SUM([1]УФ!P16+[1]ОК!P16+[1]РОО!P16+[1]УСХ!P16+'[1]З С '!P16+[1]РА!P16) -> 0 | Q17: =SUM([1]УФ!Q16+[1]ОК!Q16+[1]РОО!Q16+[1]УСХ!Q16+'[1]З С '!Q16+[1]РА!Q16) -> 0 | R17: =SUM([1]УФ!R16+[1]ОК!R16+[1]РОО!R16+[1]УСХ!R16+'[1]З С '!R16+[1]РА!R16) -> 0
B18: 1.1.8. | C18: разработка и осуществление мер, направленных на укрепление межнационального и межконфессионального согласия, поддержку и развитие языков и культуры народов Российской Федерации, проживающих на территории муниципального района, реализацию прав национальных меньшинств, обеспечение социальной и культурной адаптации мигрантов, профилактику межнациональных (межэтнических) конфликтов | D18: 1009 | M18: =SUM([1]УФ!M17+[1]ОК!M17+[1]РОО!M17+[1]УСХ!M17+'[1]З С '!M17+[1]РА!M17) -> 0 | N18: =SUM([1]УФ!N17+[1]ОК!N17+[1]РОО!N17+[1]УСХ!N17+'[1]З С '!N17+[1]РА!N17) -> 0 | O18: =SUM([1]УФ!O17+[1]ОК!O17+[1]РОО!O17+[1]УСХ!O17+'[1]З С '!O17+[1]РА!O17) -> 0 | P18: =SUM([1]УФ!P17+[1]ОК!P17+[1]РОО!P17+[1]УСХ!P17+'[1]З С '!P17+[1]РА!P17) -> 0 | Q18: =SUM([1]УФ!Q17+[1]ОК!Q17+[1]РОО!Q17+[1]УСХ!Q17+'[1]З С '!Q17+[1]РА!Q17) -> 0 | R18: =SUM([1]УФ!R17+[1]ОК!R17+[1]РОО!R17+[1]УСХ!R17+'[1]З С '!R17+[1]РА!R17) -> 0
B19: 1.1.9. | C19: участие в предупреждении и ликвидации последствий чрезвычайных ситуаций на территории муниципального района | D19: 1010 | E19: Федеральный закон от 06.10.2003 N 131-ФЗ "Об общих принципах организации местного самоуправления в Российской Федерации" | F19: ст.15п.1п. п.6 | G19: 06.10.2003 не ограничен | K19: 03 03 04 | L19: 09 10 10 | M19: =SUM([1]УФ!M18+[1]ОК!M18+[1]РОО!M18+[1]УСХ!M18+'[1]З С '!M18+[1]РА!M18) -> 3284.6 | N19: =SUM([1]УФ!N18+[1]ОК!N18+[1]РОО!N18+[1]УСХ!N18+'[1]З С '!N18+[1]РА!N18) -> 3007.7 | O19: =SUM([1]УФ!O18+[1]ОК!O18+[1]РОО!O18+[1]УСХ!O18+'[1]З С '!O18+[1]РА!O18) -> 5071.9 | P19: =SUM([1]УФ!P18+[1]ОК!P18+[1]РОО!P18+[1]УСХ!P18+'[1]З С '!P18+[1]РА!P18) -> 4894.3 | Q19: =SUM([1]УФ!Q18+[1]ОК!Q18+[1]РОО!Q18+[1]УСХ!Q18+'[1]З С '!Q18+[1]РА!Q18) -> 4750.1 | R19: =SUM([1]УФ!R18+[1]ОК!R18+[1]РОО!R18+[1]УСХ!R18+'[1]З С '!R18+[1]РА!R18) -> 4797.7
B20: 1.1.10. | C20: организация охраны общественного порядка на территории муниципального района муниципальной милицией | D20: 1011 | M20: =SUM([1]УФ!M19+[1]ОК!M19+[1]РОО!M19+[1]УСХ!M19+'[1]З С '!M19+[1]РА!M19) -> 0 | N20: =SUM([1]УФ!N19+[1]ОК!N19+[1]РОО!N19+[1]УСХ!N19+'[1]З С '!N19+[1]РА!N19) -> 0 | O20: =SUM([1]УФ!O19+[1]ОК!O19+[1]РОО!O19+[1]УСХ!O19+'[1]З С '!O19+[1]РА!O19) -> 0 | P20: =SUM([1]УФ!P19+[1]ОК!P19+[1]РОО!P19+[1]УСХ!P19+'[1]З С '!P19+[1]РА!P19) -> 0 | Q20: =SUM([1]УФ!Q19+[1]ОК!Q19+[1]РОО!Q19+[1]УСХ!Q19+'[1]З С '!Q19+[1]РА!Q19) -> 0 | R20: =SUM([1]УФ!R19+[1]ОК!R19+[1]РОО!R19+[1]УСХ!R19+'[1]З С '!R19+[1]РА!R19) -> 0
B21: 1.1.11. | C21: предоставление помещения для работы на обслуживаемом административном участке муниципального района сотруднику, замещающему должность участкового уполномоченного полиции | D21: 1012 | M21: =SUM([1]УФ!M20+[1]ОК!M20+[1]РОО!M20+[1]УСХ!M20+'[1]З С '!M20+[1]РА!M20) -> 0 | N21: =SUM([1]УФ!N20+[1]ОК!N20+[1]РОО!N20+[1]УСХ!N20+'[1]З С '!N20+[1]РА!N20) -> 0 | O21: =SUM([1]УФ!O20+[1]ОК!O20+[1]РОО!O20+[1]УСХ!O20+'[1]З С '!O20+[1]РА!O20) -> 0 | P21: =SUM([1]УФ!P20+[1]ОК!P20+[1]РОО!P20+[1]УСХ!P20+'[1]З С '!P20+[1]РА!P20) -> 0 | Q21: =SUM([1]УФ!Q20+[1]ОК!Q20+[1]РОО!Q20+[1]УСХ!Q20+'[1]З С '!Q20+[1]РА!Q20) -> 0 | R21: =SUM([1]УФ!R20+[1]ОК!R20+[1]РОО!R20+[1]УСХ!R20+'[1]З С '!R20+[1]РА!R20) -> 0
B22: 1.1.12. | C22: до 1 января 2017 года предоставление сотруднику, замещающему должность участкового уполномоченного полиции, и членам его семьи жилого помещения на период выполнения сотрудником обязанностей по указанной должности | D22: 1013 | M22: =SUM([1]УФ!M21+[1]ОК!M21+[1]РОО!M21+[1]УСХ!M21+'[1]З С '!M21+[1]РА!M21) -> 0 | N22: =SUM([1]УФ!N21+[1]ОК!N21+[1]РОО!N21+[1]УСХ!N21+'[1]З С '!N21+[1]РА!N21) -> 0 | O22: =SUM([1]УФ!O21+[1]ОК!O21+[1]РОО!O21+[1]УСХ!O21+'[1]З С '!O21+[1]РА!O21) -> 0 | P22: =SUM([1]УФ!P21+[1]ОК!P21+[1]РОО!P21+[1]УСХ!P21+'[1]З С '!P21+[1]РА!P21) -> 0 | Q22: =SUM([1]УФ!Q21+[1]ОК!Q21+[1]РОО!Q21+[1]УСХ!Q21+'[1]З С '!Q21+[1]РА!Q21) -> 0 | R22: =SUM([1]УФ!R21+[1]ОК!R21+[1]РОО!R21+[1]УСХ!R21+'[1]З С '!R21+[1]РА!R21) -> 0
B23: 1.1.13. | C23: организация мероприятий межпоселенческого характера по охране окружающей среды | D23: 1014 | M23: =SUM([1]УФ!M22+[1]ОК!M22+[1]РОО!M22+[1]УСХ!M22+'[1]З С '!M22+[1]РА!M22) -> 0 | N23: =SUM([1]УФ!N22+[1]ОК!N22+[1]РОО!N22+[1]УСХ!N22+'[1]З С '!N22+[1]РА!N22) -> 0 | O23: =SUM([1]УФ!O22+[1]ОК!O22+[1]РОО!O22+[1]УСХ!O22+'[1]З С '!O22+[1]РА!O22) -> 0 | P23: =SUM([1]УФ!P22+[1]ОК!P22+[1]РОО!P22+[1]УСХ!P22+'[1]З С '!P22+[1]РА!P22) -> 0 | Q23: =SUM([1]УФ!Q22+[1]ОК!Q22+[1]РОО!Q22+[1]УСХ!Q22+'[1]З С '!Q22+[1]РА!Q22) -> 0 | R23: =SUM([1]УФ!R22+[1]ОК!R22+[1]РОО!R22+[1]УСХ!R22+'[1]З С '!R22+[1]РА!R22) -> 0
B24: 1.1.14. | C24: организация предоставления общедоступного и бесплатного дошкольного, начального общего, основного общего, среднего общего образования по основным общеобразовательным программам в муниципальных образовательных организациях (за исключением полномочий по финансовому обеспечению реализации основных общеобразовательных программ в соответствии с федеральными государственными образовательными стандартами), организация предоставления дополнительного образования детей в муниципальных образовательных организациях (за исключением дополнительного образования детей, финансовое обеспечение которого осуществляется органами государственной власти субъекта Российской Федерации), создание условий для осуществления присмотра и ухода за детьми, содержания детей в муниципальных образовательных организациях, а также организация отдыха детей в каникулярное время | D24: 1015 | E24: Федеральный закон от 06.10.2003 N 131-ФЗ "Об общих принципах организации местного самоуправления в Российской Федерации" | F24: ст.15п.1 п. п.11 | G24: 02.07.2013 не ограничен | H24: Закон Нижегородской области от 28.11.2013 N 160-З "О предоставлении органам местного самоуправления муниципальных районов и городских округов Нижегородской области субвенций на исполнение полномочий в сфере общего образования" | J24: 2014-01-01 | K24: 04 07 07 07 07 | L24: 01 01 02 07 09 | M24: =SUM([1]УФ!M23+[1]ОК!M23+[1]РОО!M23+[1]УСХ!M23+'[1]З С '!M23+[1]РА!M23) -> 86015.1 | N24: =SUM([1]УФ!N23+[1]ОК!N23+[1]РОО!N23+[1]УСХ!N23+'[1]З С '!N23+[1]РА!N23) -> 86003.6 | O24: =SUM([1]УФ!O23+[1]ОК!O23+[1]РОО!O23+[1]УСХ!O23+'[1]З С '!O23+[1]РА!O23) -> 91226.5 | P24: =SUM([1]УФ!P23+[1]ОК!P23+[1]РОО!P23+[1]УСХ!P23+'[1]З С '!P23+[1]РА!P23) -> 89489.6 | Q24: =SUM([1]УФ!Q23+[1]ОК!Q23+[1]РОО!Q23+[1]УСХ!Q23+'[1]З С '!Q23+[1]РА!Q23) -> 76991.1 | R24: =SUM([1]УФ!R23+[1]ОК!R23+[1]РОО!R23+[1]УСХ!R23+'[1]З С '!R23+[1]РА!R23) -> 76662.6
B25: 1.1.15. | C25: создание условий для оказания медицинской помощи населению на территории муниципального района (за исключением территорий поселений, включенных в утвержденный Правительством Российской Федерации перечень территорий, население которых обеспечивается медицинской помощью в медицинских организациях, подведомственных федеральному органу исполнительной власти, осуществляющему функции по медико-санитарному обеспечению населения отдельных территорий) в соответствии с территориальной программой государственных гарантий бесплатного оказания гражданам медицинской помощи | D25: 1016 | M25: =SUM([1]УФ!M24+[1]ОК!M24+[1]РОО!M24+[1]УСХ!M24+'[1]З С '!M24+[1]РА!M24) -> 0 | N25: =SUM([1]УФ!N24+[1]ОК!N24+[1]РОО!N24+[1]УСХ!N24+'[1]З С '!N24+[1]РА!N24) -> 0 | O25: =SUM([1]УФ!O24+[1]ОК!O24+[1]РОО!O24+[1]УСХ!O24+'[1]З С '!O24+[1]РА!O24) -> 0 | P25: =SUM([1]УФ!P24+[1]ОК!P24+[1]РОО!P24+[1]УСХ!P24+'[1]З С '!P24+[1]РА!P24) -> 0 | Q25: =SUM([1]УФ!Q24+[1]ОК!Q24+[1]РОО!Q24+[1]УСХ!Q24+'[1]З С '!Q24+[1]РА!Q24) -> 0 | R25: =SUM([1]УФ!R24+[1]ОК!R24+[1]РОО!R24+[1]УСХ!R24+'[1]З С '!R24+[1]РА!R24) -> 0
B26: 1.1.16. | C26: участие в организации деятельности по сбору (в том числе раздельному сбору), транспортированию, обработке, утилизации, обезвреживанию, захоронению твердых коммунальных отходов на территориях соответствующих муниципальных районов | D26: 1017 | M26: =SUM([1]УФ!M25+[1]ОК!M25+[1]РОО!M25+[1]УСХ!M25+'[1]З С '!M25+[1]РА!M25) -> 0 | N26: =SUM([1]УФ!N25+[1]ОК!N25+[1]РОО!N25+[1]УСХ!N25+'[1]З С '!N25+[1]РА!N25) -> 0 | O26: =SUM([1]УФ!O25+[1]ОК!O25+[1]РОО!O25+[1]УСХ!O25+'[1]З С '!O25+[1]РА!O25) -> 0 | P26: =SUM([1]УФ!P25+[1]ОК!P25+[1]РОО!P25+[1]УСХ!P25+'[1]З С '!P25+[1]РА!P25) -> 0 | Q26: =SUM([1]УФ!Q25+[1]ОК!Q25+[1]РОО!Q25+[1]УСХ!Q25+'[1]З С '!Q25+[1]РА!Q25) -> 0 | R26: =SUM([1]УФ!R25+[1]ОК!R25+[1]РОО!R25+[1]УСХ!R25+'[1]З С '!R25+[1]РА!R25) -> 0
B27: 1.1.17. | C27: утверждение схем территориального планирования муниципального района, утверждение подготовленной на основе схемы территориального планирования муниципального района документации по планировке территории, ведение информационной системы обеспечения градостроительной деятельности, осуществляемой на территории муниципального района, резервирование и изъятие земельных участков в границах муниципального района для муниципальных нужд | D27: 1018 | M27: =SUM([1]УФ!M26+[1]ОК!M26+[1]РОО!M26+[1]УСХ!M26+'[1]З С '!M26+[1]РА!M26) -> 0 | N27: =SUM([1]УФ!N26+[1]ОК!N26+[1]РОО!N26+[1]УСХ!N26+'[1]З С '!N26+[1]РА!N26) -> 0 | O27: =SUM([1]УФ!O26+[1]ОК!O26+[1]РОО!O26+[1]УСХ!O26+'[1]З С '!O26+[1]РА!O26) -> 0 | P27: =SUM([1]УФ!P26+[1]ОК!P26+[1]РОО!P26+[1]УСХ!P26+'[1]З С '!P26+[1]РА!P26) -> 0 | Q27: =SUM([1]УФ!Q26+[1]ОК!Q26+[1]РОО!Q26+[1]УСХ!Q26+'[1]З С '!Q26+[1]РА!Q26) -> 0 | R27: =SUM([1]УФ!R26+[1]ОК!R26+[1]РОО!R26+[1]УСХ!R26+'[1]З С '!R26+[1]РА!R26) -> 0
B28: 1.1.18. | C28: утверждение схемы размещения рекламных конструкций, выдача разрешений на установку и эксплуатацию рекламных конструкций на территории муниципального района, аннулирование таких разрешений, выдача предписаний о демонтаже самовольно установленных рекламных конструкций на территории муниципального района, осуществляемые в соответствии с Федеральным законом от 13 марта 2006 года № 38-ФЗ «О рекламе» | D28: 1019 | M28: =SUM([1]УФ!M27+[1]ОК!M27+[1]РОО!M27+[1]УСХ!M27+'[1]З С '!M27+[1]РА!M27) -> 0 | N28: =SUM([1]УФ!N27+[1]ОК!N27+[1]РОО!N27+[1]УСХ!N27+'[1]З С '!N27+[1]РА!N27) -> 0 | O28: =SUM([1]УФ!O27+[1]ОК!O27+[1]РОО!O27+[1]УСХ!O27+'[1]З С '!O27+[1]РА!O27) -> 0 | P28: =SUM([1]УФ!P27+[1]ОК!P27+[1]РОО!P27+[1]УСХ!P27+'[1]З С '!P27+[1]РА!P27) -> 0 | Q28: =SUM([1]УФ!Q27+[1]ОК!Q27+[1]РОО!Q27+[1]УСХ!Q27+'[1]З С '!Q27+[1]РА!Q27) -> 0 | R28: =SUM([1]УФ!R27+[1]ОК!R27+[1]РОО!R27+[1]УСХ!R27+'[1]З С '!R27+[1]РА!R27) -> 0
B29: 1.1.19. | C29: формирование и содержание муниципального архива, включая хранение архивных фондов поселений | D29: 1020 | M29: =SUM([1]УФ!M28+[1]ОК!M28+[1]РОО!M28+[1]УСХ!M28+'[1]З С '!M28+[1]РА!M28) -> 0 | N29: =SUM([1]УФ!N28+[1]ОК!N28+[1]РОО!N28+[1]УСХ!N28+'[1]З С '!N28+[1]РА!N28) -> 0 | O29: =SUM([1]УФ!O28+[1]ОК!O28+[1]РОО!O28+[1]УСХ!O28+'[1]З С '!O28+[1]РА!O28) -> 0 | P29: =SUM([1]УФ!P28+[1]ОК!P28+[1]РОО!P28+[1]УСХ!P28+'[1]З С '!P28+[1]РА!P28) -> 0 | Q29: =SUM([1]УФ!Q28+[1]ОК!Q28+[1]РОО!Q28+[1]УСХ!Q28+'[1]З С '!Q28+[1]РА!Q28) -> 0 | R29: =SUM([1]УФ!R28+[1]ОК!R28+[1]РОО!R28+[1]УСХ!R28+'[1]З С '!R28+[1]РА!R28) -> 0
B30: 1.1.20. | C30: содержание на территории муниципального района межпоселенческих мест захоронения, организация ритуальных услуг | D30: 1021 | M30: =SUM([1]УФ!M29+[1]ОК!M29+[1]РОО!M29+[1]УСХ!M29+'[1]З С '!M29+[1]РА!M29) -> 0 | N30: =SUM([1]УФ!N29+[1]ОК!N29+[1]РОО!N29+[1]УСХ!N29+'[1]З С '!N29+[1]РА!N29) -> 0 | O30: =SUM([1]УФ!O29+[1]ОК!O29+[1]РОО!O29+[1]УСХ!O29+'[1]З С '!O29+[1]РА!O29) -> 0 | P30: =SUM([1]УФ!P29+[1]ОК!P29+[1]РОО!P29+[1]УСХ!P29+'[1]З С '!P29+[1]РА!P29) -> 0 | Q30: =SUM([1]УФ!Q29+[1]ОК!Q29+[1]РОО!Q29+[1]УСХ!Q29+'[1]З С '!Q29+[1]РА!Q29) -> 0 | R30: =SUM([1]УФ!R29+[1]ОК!R29+[1]РОО!R29+[1]УСХ!R29+'[1]З С '!R29+[1]РА!R29) -> 0
B31: 1.1.21. | C31: создание условий для обеспечения поселений, входящих в состав муниципального района, услугами связи, общественного питания, торговли и бытового обслуживания | D31: 1022 | M31: =SUM([1]УФ!M30+[1]ОК!M30+[1]РОО!M30+[1]УСХ!M30+'[1]З С '!M30+[1]РА!M30) -> 0 | N31: =SUM([1]УФ!N30+[1]ОК!N30+[1]РОО!N30+[1]УСХ!N30+'[1]З С '!N30+[1]РА!N30) -> 0 | O31: =SUM([1]УФ!O30+[1]ОК!O30+[1]РОО!O30+[1]УСХ!O30+'[1]З С '!O30+[1]РА!O30) -> 0 | P31: =SUM([1]УФ!P30+[1]ОК!P30+[1]РОО!P30+[1]УСХ!P30+'[1]З С '!P30+[1]РА!P30) -> 0 | Q31: =SUM([1]УФ!Q30+[1]ОК!Q30+[1]РОО!Q30+[1]УСХ!Q30+'[1]З С '!Q30+[1]РА!Q30) -> 0 | R31: =SUM([1]УФ!R30+[1]ОК!R30+[1]РОО!R30+[1]УСХ!R30+'[1]З С '!R30+[1]РА!R30) -> 0
B32: 1.1.22. | C32: организация библиотечного обслуживания населения межпоселенческими библиотеками, комплектование и обеспечение сохранности их библиотечных фондов | D32: 1023 | E32: Федеральный закон от 06.10.2003 N 131-ФЗ "Об общих принципах организации местного самоуправления в Российской Федерации" | F32: ст.15 п.1 пп.19 | G32: 31.12.2005 не ограничен | K32: 08 | L32: 01 | M32: =SUM([1]УФ!M31+[1]ОК!M31+[1]РОО!M31+[1]УСХ!M31+'[1]З С '!M31+[1]РА!M31) -> 10394.9 | N32: =SUM([1]УФ!N31+[1]ОК!N31+[1]РОО!N31+[1]УСХ!N31+'[1]З С '!N31+[1]РА!N31) -> 10394.9 | O32: =SUM([1]УФ!O31+[1]ОК!O31+[1]РОО!O31+[1]УСХ!O31+'[1]З С '!O31+[1]РА!O31) -> 12428.2 | P32: =SUM([1]УФ!P31+[1]ОК!P31+[1]РОО!P31+[1]УСХ!P31+'[1]З С '!P31+[1]РА!P31) -> 13997.8 | Q32: =SUM([1]УФ!Q31+[1]ОК!Q31+[1]РОО!Q31+[1]УСХ!Q31+'[1]З С '!Q31+[1]РА!Q31) -> 13997.8 | R32: =SUM([1]УФ!R31+[1]ОК!R31+[1]РОО!R31+[1]УСХ!R31+'[1]З С '!R31+[1]РА!R31) -> 13997.8
B33: 1.1.23. | C33: создание условий для обеспечения поселений, входящих в состав муниципального района, услугами по организации досуга и услугами организаций культуры | D33: 1024 | E33: Федеральный закон от 06.10.2003 N 131-ФЗ "Об общих принципах организации местного самоуправления в Российской Федерации" | F33: ст.15 п.1 пп.19.1 | G33: 31.12.2005 не ограничен | K33: 08 08 10 12 | L33: 01 04 03 01 | M33: =SUM([1]УФ!M32+[1]ОК!M32+[1]РОО!M32+[1]УСХ!M32+'[1]З С '!M32+[1]РА!M32) -> 32796.2 | N33: =SUM([1]УФ!N32+[1]ОК!N32+[1]РОО!N32+[1]УСХ!N32+'[1]З С '!N32+[1]РА!N32) -> 32771.4 | O33: =SUM([1]УФ!O32+[1]ОК!O32+[1]РОО!O32+[1]УСХ!O32+'[1]З С '!O32+[1]РА!O32) -> 40318.8 | P33: =SUM([1]УФ!P32+[1]ОК!P32+[1]РОО!P32+[1]УСХ!P32+'[1]З С '!P32+[1]РА!P32) -> 58268 | Q33: =SUM([1]УФ!Q32+[1]ОК!Q32+[1]РОО!Q32+[1]УСХ!Q32+'[1]З С '!Q32+[1]РА!Q32) -> 40790.8 | R33: =SUM([1]УФ!R32+[1]ОК!R32+[1]РОО!R32+[1]УСХ!R32+'[1]З С '!R32+[1]РА!R32) -> 41852.2
B34: 1.1.24. | C34: создание условий для развития местного традиционного народного художественного творчества в поселениях, входящих в состав муниципального района | D34: 1025 | M34: =SUM([1]УФ!M33+[1]ОК!M33+[1]РОО!M33+[1]УСХ!M33+'[1]З С '!M33+[1]РА!M33) -> 0 | N34: =SUM([1]УФ!N33+[1]ОК!N33+[1]РОО!N33+[1]УСХ!N33+'[1]З С '!N33+[1]РА!N33) -> 0 | O34: =SUM([1]УФ!O33+[1]ОК!O33+[1]РОО!O33+[1]УСХ!O33+'[1]З С '!O33+[1]РА!O33) -> 0 | P34: =SUM([1]УФ!P33+[1]ОК!P33+[1]РОО!P33+[1]УСХ!P33+'[1]З С '!P33+[1]РА!P33) -> 0 | Q34: =SUM([1]УФ!Q33+[1]ОК!Q33+[1]РОО!Q33+[1]УСХ!Q33+'[1]З С '!Q33+[1]РА!Q33) -> 0 | R34: =SUM([1]УФ!R33+[1]ОК!R33+[1]РОО!R33+[1]УСХ!R33+'[1]З С '!R33+[1]РА!R33) -> 0
B35: 1.1.25. | C35: сохранение, использование и популяризация объектов культурного наследия (памятников истории и культуры), находящихся в собственности муниципального района, охрана объектов культурного наследия (памятников истории и культуры) местного (муниципального) значения, расположенных на территории муниципального района | D35: 1026 | E35: Федеральный закон от 06.10.2003 N 131-ФЗ "Об общих принципах организации местного самоуправления в Российской Федерации" | F35: ст.15 п.1 пп.19.3 | G35: 22.10.2014 не ограничен | K35: 08 | L35: 01 | M35: =SUM([1]УФ!M34+[1]ОК!M34+[1]РОО!M34+[1]УСХ!M34+'[1]З С '!M34+[1]РА!M34) -> 1416.3 | N35: =SUM([1]УФ!N34+[1]ОК!N34+[1]РОО!N34+[1]УСХ!N34+'[1]З С '!N34+[1]РА!N34) -> 1416.3 | O35: =SUM([1]УФ!O34+[1]ОК!O34+[1]РОО!O34+[1]УСХ!O34+'[1]З С '!O34+[1]РА!O34) -> 1668.7 | P35: =SUM([1]УФ!P34+[1]ОК!P34+[1]РОО!P34+[1]УСХ!P34+'[1]З С '!P34+[1]РА!P34) -> 1863.6 | Q35: =SUM([1]УФ!Q34+[1]ОК!Q34+[1]РОО!Q34+[1]УСХ!Q34+'[1]З С '!Q34+[1]РА!Q34) -> 1863.6 | R35: =SUM([1]УФ!R34+[1]ОК!R34+[1]РОО!R34+[1]УСХ!R34+'[1]З С '!R34+[1]РА!R34) -> 1863.6
B36: 1.1.26. | C36: организация и осуществление мероприятий по территориальной обороне и гражданской обороне, защите населения и территории муниципального района от чрезвычайных ситуаций природного и техногенного характера | D36: 1027 | M36: =SUM([1]УФ!M35+[1]ОК!M35+[1]РОО!M35+[1]УСХ!M35+'[1]З С '!M35+[1]РА!M35) -> 0 | N36: =SUM([1]УФ!N35+[1]ОК!N35+[1]РОО!N35+[1]УСХ!N35+'[1]З С '!N35+[1]РА!N35) -> 0 | O36: =SUM([1]УФ!O35+[1]ОК!O35+[1]РОО!O35+[1]УСХ!O35+'[1]З С '!O35+[1]РА!O35) -> 0 | P36: =SUM([1]УФ!P35+[1]ОК!P35+[1]РОО!P35+[1]УСХ!P35+'[1]З С '!P35+[1]РА!P35) -> 0 | Q36: =SUM([1]УФ!Q35+[1]ОК!Q35+[1]РОО!Q35+[1]УСХ!Q35+'[1]З С '!Q35+[1]РА!Q35) -> 0 | R36: =SUM([1]УФ!R35+[1]ОК!R35+[1]РОО!R35+[1]УСХ!R35+'[1]З С '!R35+[1]РА!R35) -> 0
B37: 1.1.27. | C37: создание, развитие и обеспечение охраны лечебно-оздоровительных местностей и курортов местного значения на территории муниципального района, а также осуществление муниципального контроля в области использования и охраны особо охраняемых природных территорий местного значения | D37: 1028 | M37: =SUM([1]УФ!M36+[1]ОК!M36+[1]РОО!M36+[1]УСХ!M36+'[1]З С '!M36+[1]РА!M36) -> 0 | N37: =SUM([1]УФ!N36+[1]ОК!N36+[1]РОО!N36+[1]УСХ!N36+'[1]З С '!N36+[1]РА!N36) -> 0 | O37: =SUM([1]УФ!O36+[1]ОК!O36+[1]РОО!O36+[1]УСХ!O36+'[1]З С '!O36+[1]РА!O36) -> 0 | P37: =SUM([1]УФ!P36+[1]ОК!P36+[1]РОО!P36+[1]УСХ!P36+'[1]З С '!P36+[1]РА!P36) -> 0 | Q37: =SUM([1]УФ!Q36+[1]ОК!Q36+[1]РОО!Q36+[1]УСХ!Q36+'[1]З С '!Q36+[1]РА!Q36) -> 0 | R37: =SUM([1]УФ!R36+[1]ОК!R36+[1]РОО!R36+[1]УСХ!R36+'[1]З С '!R36+[1]РА!R36) -> 0
B38: 1.1.28. | C38: организация и осуществление мероприятий по мобилизационной подготовке муниципальных предприятий и учреждений, находящихся на территории муниципального района | D38: 1029 | M38: =SUM([1]УФ!M37+[1]ОК!M37+[1]РОО!M37+[1]УСХ!M37+'[1]З С '!M37+[1]РА!M37) -> 0 | N38: =SUM([1]УФ!N37+[1]ОК!N37+[1]РОО!N37+[1]УСХ!N37+'[1]З С '!N37+[1]РА!N37) -> 0 | O38: =SUM([1]УФ!O37+[1]ОК!O37+[1]РОО!O37+[1]УСХ!O37+'[1]З С '!O37+[1]РА!O37) -> 0 | P38: =SUM([1]УФ!P37+[1]ОК!P37+[1]РОО!P37+[1]УСХ!P37+'[1]З С '!P37+[1]РА!P37) -> 0 | Q38: =SUM([1]УФ!Q37+[1]ОК!Q37+[1]РОО!Q37+[1]УСХ!Q37+'[1]З С '!Q37+[1]РА!Q37) -> 0 | R38: =SUM([1]УФ!R37+[1]ОК!R37+[1]РОО!R37+[1]УСХ!R37+'[1]З С '!R37+[1]РА!R37) -> 0
B39: 1.1.29. | C39: осуществление мероприятий по обеспечению безопасности людей на водных объектах, охране их жизни и здоровья | D39: 1030 | M39: =SUM([1]УФ!M38+[1]ОК!M38+[1]РОО!M38+[1]УСХ!M38+'[1]З С '!M38+[1]РА!M38) -> 0 | N39: =SUM([1]УФ!N38+[1]ОК!N38+[1]РОО!N38+[1]УСХ!N38+'[1]З С '!N38+[1]РА!N38) -> 0 | O39: =SUM([1]УФ!O38+[1]ОК!O38+[1]РОО!O38+[1]УСХ!O38+'[1]З С '!O38+[1]РА!O38) -> 0 | P39: =SUM([1]УФ!P38+[1]ОК!P38+[1]РОО!P38+[1]УСХ!P38+'[1]З С '!P38+[1]РА!P38) -> 0 | Q39: =SUM([1]УФ!Q38+[1]ОК!Q38+[1]РОО!Q38+[1]УСХ!Q38+'[1]З С '!Q38+[1]РА!Q38) -> 0 | R39: =SUM([1]УФ!R38+[1]ОК!R38+[1]РОО!R38+[1]УСХ!R38+'[1]З С '!R38+[1]РА!R38) -> 0
B40: 1.1.30. | C40: создание условий для развития сельскохозяйственного производства в поселениях, расширения рынка сельскохозяйственной продукции, сырья и продовольствия, содействие развитию малого и среднего предпринимательства, оказание поддержки социально ориентированным некоммерческим организациям, благотворительной деятельности и добровольчеству | D40: 1031 | E40: Федеральный закон от 06.10.2003 N 131-ФЗ "Об общих принципах организации местного самоуправления в Российской Федерации" | F40: ст.15 п.1 пп.25 | G40: 31.12.2005 не ограничен | K40: 04 04 10 | L40: 05 12 06 | M40: =SUM([1]УФ!M39+[1]ОК!M39+[1]РОО!M39+[1]УСХ!M39+'[1]З С '!M39+[1]РА!M39) -> 634.4 | N40: =SUM([1]УФ!N39+[1]ОК!N39+[1]РОО!N39+[1]УСХ!N39+'[1]З С '!N39+[1]РА!N39) -> 630.8 | O40: =SUM([1]УФ!O39+[1]ОК!O39+[1]РОО!O39+[1]УСХ!O39+'[1]З С '!O39+[1]РА!O39) -> 716.8 | P40: =SUM([1]УФ!P39+[1]ОК!P39+[1]РОО!P39+[1]УСХ!P39+'[1]З С '!P39+[1]РА!P39) -> 817.5 | Q40: =SUM([1]УФ!Q39+[1]ОК!Q39+[1]РОО!Q39+[1]УСХ!Q39+'[1]З С '!Q39+[1]РА!Q39) -> 663.5 | R40: =SUM([1]УФ!R39+[1]ОК!R39+[1]РОО!R39+[1]УСХ!R39+'[1]З С '!R39+[1]РА!R39) -> 641.2
B41: 1.1.31. | C41: обеспечение условий для развития на территории муниципального района физической культуры, школьного спорта и массового спорта, организация проведения официальных физкультурно-оздоровительных и спортивных мероприятий муниципального района | D41: 1032 | E41: Федеральный закон от 06.10.2003 N 131-ФЗ "Об общих принципах организации местного самоуправления в Российской Федерации" | F41: ст.15п.1 п п.25 | G41: 06.10.2003 не ограничен | K41: 11 | L41: 02 | M41: =SUM([1]УФ!M40+[1]ОК!M40+[1]РОО!M40+[1]УСХ!M40+'[1]З С '!M40+[1]РА!M40) -> 47737.7 | N41: =SUM([1]УФ!N40+[1]ОК!N40+[1]РОО!N40+[1]УСХ!N40+'[1]З С '!N40+[1]РА!N40) -> 46680.1 | O41: =SUM([1]УФ!O40+[1]ОК!O40+[1]РОО!O40+[1]УСХ!O40+'[1]З С '!O40+[1]РА!O40) -> 49100.2 | P41: =SUM([1]УФ!P40+[1]ОК!P40+[1]РОО!P40+[1]УСХ!P40+'[1]З С '!P40+[1]РА!P40) -> 48831.6 | Q41: =SUM([1]УФ!Q40+[1]ОК!Q40+[1]РОО!Q40+[1]УСХ!Q40+'[1]З С '!Q40+[1]РА!Q40) -> 43259.3 | R41: =SUM([1]УФ!R40+[1]ОК!R40+[1]РОО!R40+[1]УСХ!R40+'[1]З С '!R40+[1]РА!R40) -> 44282.6
B42: 1.1.32. | C42: организация и осуществление мероприятий межпоселенческого характера по работе с детьми и молодежью | D42: 1033 | M42: =SUM([1]УФ!M41+[1]ОК!M41+[1]РОО!M41+[1]УСХ!M41+'[1]З С '!M41+[1]РА!M41) -> 0 | N42: =SUM([1]УФ!N41+[1]ОК!N41+[1]РОО!N41+[1]УСХ!N41+'[1]З С '!N41+[1]РА!N41) -> 0 | O42: =SUM([1]УФ!O41+[1]ОК!O41+[1]РОО!O41+[1]УСХ!O41+'[1]З С '!O41+[1]РА!O41) -> 0 | P42: =SUM([1]УФ!P41+[1]ОК!P41+[1]РОО!P41+[1]УСХ!P41+'[1]З С '!P41+[1]РА!P41) -> 0 | Q42: =SUM([1]УФ!Q41+[1]ОК!Q41+[1]РОО!Q41+[1]УСХ!Q41+'[1]З С '!Q41+[1]РА!Q41) -> 0 | R42: =SUM([1]УФ!R41+[1]ОК!R41+[1]РОО!R41+[1]УСХ!R41+'[1]З С '!R41+[1]РА!R41) -> 0
B43: 1.1.33. | C43: осуществление в пределах, установленных водным законодательством Российской Федерации, полномочий собственника водных объектов, установление правил использования водных объектов общего пользования для личных и бытовых нужд, включая обеспечение свободного доступа граждан к водным объектам общего пользования и их береговым полосам | D43: 1034 | M43: =SUM([1]УФ!M42+[1]ОК!M42+[1]РОО!M42+[1]УСХ!M42+'[1]З С '!M42+[1]РА!M42) -> 0 | N43: =SUM([1]УФ!N42+[1]ОК!N42+[1]РОО!N42+[1]УСХ!N42+'[1]З С '!N42+[1]РА!N42) -> 0 | O43: =SUM([1]УФ!O42+[1]ОК!O42+[1]РОО!O42+[1]УСХ!O42+'[1]З С '!O42+[1]РА!O42) -> 0 | P43: =SUM([1]УФ!P42+[1]ОК!P42+[1]РОО!P42+[1]УСХ!P42+'[1]З С '!P42+[1]РА!P42) -> 0 | Q43: =SUM([1]УФ!Q42+[1]ОК!Q42+[1]РОО!Q42+[1]УСХ!Q42+'[1]З С '!Q42+[1]РА!Q42) -> 0 | R43: =SUM([1]УФ!R42+[1]ОК!R42+[1]РОО!R42+[1]УСХ!R42+'[1]З С '!R42+[1]РА!R42) -> 0
B44: 1.1.34. | C44: осуществление муниципального лесного контроля | D44: 1035 | M44: =SUM([1]УФ!M43+[1]ОК!M43+[1]РОО!M43+[1]УСХ!M43+'[1]З С '!M43+[1]РА!M43) -> 0 | N44: =SUM([1]УФ!N43+[1]ОК!N43+[1]РОО!N43+[1]УСХ!N43+'[1]З С '!N43+[1]РА!N43) -> 0 | O44: =SUM([1]УФ!O43+[1]ОК!O43+[1]РОО!O43+[1]УСХ!O43+'[1]З С '!O43+[1]РА!O43) -> 0 | P44: =SUM([1]УФ!P43+[1]ОК!P43+[1]РОО!P43+[1]УСХ!P43+'[1]З С '!P43+[1]РА!P43) -> 0 | Q44: =SUM([1]УФ!Q43+[1]ОК!Q43+[1]РОО!Q43+[1]УСХ!Q43+'[1]З С '!Q43+[1]РА!Q43) -> 0 | R44: =SUM([1]УФ!R43+[1]ОК!R43+[1]РОО!R43+[1]УСХ!R43+'[1]З С '!R43+[1]РА!R43) -> 0
B45: 1.1.35. | C45: обеспечение выполнения работ, необходимых для создания искусственных земельных участков для нужд муниципального района, проведение открытого аукциона на право заключить договор о создании искусственного земельного участка в соответствии с федеральным законом | D45: 1036 | M45: =SUM([1]УФ!M44+[1]ОК!M44+[1]РОО!M44+[1]УСХ!M44+'[1]З С '!M44+[1]РА!M44) -> 0 | N45: =SUM([1]УФ!N44+[1]ОК!N44+[1]РОО!N44+[1]УСХ!N44+'[1]З С '!N44+[1]РА!N44) -> 0 | O45: =SUM([1]УФ!O44+[1]ОК!O44+[1]РОО!O44+[1]УСХ!O44+'[1]З С '!O44+[1]РА!O44) -> 0 | P45: =SUM([1]УФ!P44+[1]ОК!P44+[1]РОО!P44+[1]УСХ!P44+'[1]З С '!P44+[1]РА!P44) -> 0 | Q45: =SUM([1]УФ!Q44+[1]ОК!Q44+[1]РОО!Q44+[1]УСХ!Q44+'[1]З С '!Q44+[1]РА!Q44) -> 0 | R45: =SUM([1]УФ!R44+[1]ОК!R44+[1]РОО!R44+[1]УСХ!R44+'[1]З С '!R44+[1]РА!R44) -> 0
B46: 1.1.36. | C46: осуществление мер по противодействию коррупции в границах муниципального района | D46: 1037 | E46: Федеральный закон от 06.10.2003 N 131-ФЗ "Об общих принципах организации местного самоуправления в Российской Федерации" | F46: ст.15 п.1 пп.33 | G46: 21.11.2011 не ограничен | K46: 01 | L46: 13 | M46: =SUM([1]УФ!M45+[1]ОК!M45+[1]РОО!M45+[1]УСХ!M45+'[1]З С '!M45+[1]РА!M45) -> 10 | N46: =SUM([1]УФ!N45+[1]ОК!N45+[1]РОО!N45+[1]УСХ!N45+'[1]З С '!N45+[1]РА!N45) -> 9 | O46: =SUM([1]УФ!O45+[1]ОК!O45+[1]РОО!O45+[1]УСХ!O45+'[1]З С '!O45+[1]РА!O45) -> 10 | P46: =SUM([1]УФ!P45+[1]ОК!P45+[1]РОО!P45+[1]УСХ!P45+'[1]З С '!P45+[1]РА!P45) -> 10 | Q46: =SUM([1]УФ!Q45+[1]ОК!Q45+[1]РОО!Q45+[1]УСХ!Q45+'[1]З С '!Q45+[1]РА!Q45) -> 10 | R46: =SUM([1]УФ!R45+[1]ОК!R45+[1]РОО!R45+[1]УСХ!R45+'[1]З С '!R45+[1]РА!R45) -> 10
B47: 1.1.37. | C47: присвоение адресов объектам адресации, изменение, аннулирование адресов, присвоение наименований элементам улично-дорожной сети (за исключением автомобильных дорог федерального значения, автомобильных дорог регионального или межмуниципального значения), наименований элементам планировочной структуры в границах межселенной территории муниципального района, изменение, аннулирование таких наименований, размещение информации в государственном адресном реестре | D47: 1038 | M47: =SUM([1]УФ!M46+[1]ОК!M46+[1]РОО!M46+[1]УСХ!M46+'[1]З С '!M46+[1]РА!M46) -> 0 | N47: =SUM([1]УФ!N46+[1]ОК!N46+[1]РОО!N46+[1]УСХ!N46+'[1]З С '!N46+[1]РА!N46) -> 0 | O47: =SUM([1]УФ!O46+[1]ОК!O46+[1]РОО!O46+[1]УСХ!O46+'[1]З С '!O46+[1]РА!O46) -> 0 | P47: =SUM([1]УФ!P46+[1]ОК!P46+[1]РОО!P46+[1]УСХ!P46+'[1]З С '!P46+[1]РА!P46) -> 0 | Q47: =SUM([1]УФ!Q46+[1]ОК!Q46+[1]РОО!Q46+[1]УСХ!Q46+'[1]З С '!Q46+[1]РА!Q46) -> 0 | R47: =SUM([1]УФ!R46+[1]ОК!R46+[1]РОО!R46+[1]УСХ!R46+'[1]З С '!R46+[1]РА!R46) -> 0
B48: 1.1.38. | C48: осуществление муниципального земельного контроля на межселенной территории муниципального района | D48: 1039 | M48: =SUM([1]УФ!M47+[1]ОК!M47+[1]РОО!M47+[1]УСХ!M47+'[1]З С '!M47+[1]РА!M47) -> 0 | N48: =SUM([1]УФ!N47+[1]ОК!N47+[1]РОО!N47+[1]УСХ!N47+'[1]З С '!N47+[1]РА!N47) -> 0 | O48: =SUM([1]УФ!O47+[1]ОК!O47+[1]РОО!O47+[1]УСХ!O47+'[1]З С '!O47+[1]РА!O47) -> 0 | P48: =SUM([1]УФ!P47+[1]ОК!P47+[1]РОО!P47+[1]УСХ!P47+'[1]З С '!P47+[1]РА!P47) -> 0 | Q48: =SUM([1]УФ!Q47+[1]ОК!Q47+[1]РОО!Q47+[1]УСХ!Q47+'[1]З С '!Q47+[1]РА!Q47) -> 0 | R48: =SUM([1]УФ!R47+[1]ОК!R47+[1]РОО!R47+[1]УСХ!R47+'[1]З С '!R47+[1]РА!R47) -> 0
B49: 1.1.39. | C49: организация в соответствии с Федеральным законом от 24 июля 2007 года № 221-ФЗ «О государственном кадастре недвижимости» выполнения комплексных кадастровых работ и утверждение карты-плана территории | D49: 1040 | M49: =SUM([1]УФ!M48+[1]ОК!M48+[1]РОО!M48+[1]УСХ!M48+'[1]З С '!M48+[1]РА!M48) -> 0 | N49: =SUM([1]УФ!N48+[1]ОК!N48+[1]РОО!N48+[1]УСХ!N48+'[1]З С '!N48+[1]РА!N48) -> 0 | O49: =SUM([1]УФ!O48+[1]ОК!O48+[1]РОО!O48+[1]УСХ!O48+'[1]З С '!O48+[1]РА!O48) -> 0 | P49: =SUM([1]УФ!P48+[1]ОК!P48+[1]РОО!P48+[1]УСХ!P48+'[1]З С '!P48+[1]РА!P48) -> 0 | Q49: =SUM([1]УФ!Q48+[1]ОК!Q48+[1]РОО!Q48+[1]УСХ!Q48+'[1]З С '!Q48+[1]РА!Q48) -> 0 | R49: =SUM([1]УФ!R48+[1]ОК!R48+[1]РОО!R48+[1]УСХ!R48+'[1]З С '!R48+[1]РА!R48) -> 0
B50: 1.1.40. | C50: организация в границах сельского поселения электро-, тепло-, газо- и водоснабжения населения, водоотведения, снабжения населения топливом в пределах полномочий, установленных законодательством Российской Федерации | D50: 1041 | E50: Федеральный закон от 06.10.2003 N 131-ФЗ "Об общих принципах организации местного самоуправления в Российской Федерации" | F50: ст.15 п.1 пп.4 | G50: 06.10.2003 не ограничен | K50: 05 | L50: 02 | M50: =SUM([1]УФ!M49+[1]ОК!M49+[1]РОО!M49+[1]УСХ!M49+'[1]З С '!M49+[1]РА!M49) -> 6416.7 | N50: =SUM([1]УФ!N49+[1]ОК!N49+[1]РОО!N49+[1]УСХ!N49+'[1]З С '!N49+[1]РА!N49) -> 6416.1 | O50: =SUM([1]УФ!O49+[1]ОК!O49+[1]РОО!O49+[1]УСХ!O49+'[1]З С '!O49+[1]РА!O49) -> 2734.8 | P50: =SUM([1]УФ!P49+[1]ОК!P49+[1]РОО!P49+[1]УСХ!P49+'[1]З С '!P49+[1]РА!P49) -> 447.7 | Q50: =SUM([1]УФ!Q49+[1]ОК!Q49+[1]РОО!Q49+[1]УСХ!Q49+'[1]З С '!Q49+[1]РА!Q49) -> 304.5 | R50: =SUM([1]УФ!R49+[1]ОК!R49+[1]РОО!R49+[1]УСХ!R49+'[1]З С '!R49+[1]РА!R49) -> 283.7
B51: 1.1.41. | C51: дорожная деятельность в отношении автомобильных дорог местного значения в границах населенных пунктов сельского поселения и обеспечение безопасности дорожного движения на них, включая создание и обеспечение функционирования парковок (парковочных мест), осуществление муниципального контроля за сохранностью автомобильных дорог местного значения в границах населенных пунктов сельского поселения, а также осуществление иных полномочий в области использования автомобильных дорог и осуществления дорожной деятельности в соответствии с законодательством Российской Федерации на территории сельского поселения | D51: 1042 | M51: =SUM([1]УФ!M50+[1]ОК!M50+[1]РОО!M50+[1]УСХ!M50+'[1]З С '!M50+[1]РА!M50) -> 0 | N51: =SUM([1]УФ!N50+[1]ОК!N50+[1]РОО!N50+[1]УСХ!N50+'[1]З С '!N50+[1]РА!N50) -> 0 | O51: =SUM([1]УФ!O50+[1]ОК!O50+[1]РОО!O50+[1]УСХ!O50+'[1]З С '!O50+[1]РА!O50) -> 0 | P51: =SUM([1]УФ!P50+[1]ОК!P50+[1]РОО!P50+[1]УСХ!P50+'[1]З С '!P50+[1]РА!P50) -> 0 | Q51: =SUM([1]УФ!Q50+[1]ОК!Q50+[1]РОО!Q50+[1]УСХ!Q50+'[1]З С '!Q50+[1]РА!Q50) -> 0 | R51: =SUM([1]УФ!R50+[1]ОК!R50+[1]РОО!R50+[1]УСХ!R50+'[1]З С '!R50+[1]РА!R50) -> 0
B52: 1.1.42. | C52: обеспечение проживающих в сельском поселении и нуждающихся в жилых помещениях малоимущих граждан жилыми помещениями, организация строительства и содержания муниципального жилищного фонда, создание условий для жилищного строительства, осуществление муниципального жилищного контроля, а также иных полномочий органов местного самоуправления в соответствии с жилищным законодательством на территории сельского поселения | D52: 1043 | E52: Жилищный кодекс РФ 188-ФЗ от 29.12.2004 года | F52: ст.181 | G52: 29.12.2004 не ограничен | K52: 05 10 | L52: 01 03 | M52: =SUM([1]УФ!M51+[1]ОК!M51+[1]РОО!M51+[1]УСХ!M51+'[1]З С '!M51+[1]РА!M51) -> 48081.8 | N52: =SUM([1]УФ!N51+[1]ОК!N51+[1]РОО!N51+[1]УСХ!N51+'[1]З С '!N51+[1]РА!N51) -> 48063.2 | O52: =SUM([1]УФ!O51+[1]ОК!O51+[1]РОО!O51+[1]УСХ!O51+'[1]З С '!O51+[1]РА!O51) -> 1343.8 | P52: =SUM([1]УФ!P51+[1]ОК!P51+[1]РОО!P51+[1]УСХ!P51+'[1]З С '!P51+[1]РА!P51) -> 1397.4 | Q52: =SUM([1]УФ!Q51+[1]ОК!Q51+[1]РОО!Q51+[1]УСХ!Q51+'[1]З С '!Q51+[1]РА!Q51) -> 1320.7 | R52: =SUM([1]УФ!R51+[1]ОК!R51+[1]РОО!R51+[1]УСХ!R51+'[1]З С '!R51+[1]РА!R51) -> 1200.4
B53: 1.1.43. | C53: создание условий для предоставления транспортных услуг населению и организация транспортного обслуживания населения в границах сельского поселения | D53: 1044 | M53: =SUM([1]УФ!M52+[1]ОК!M52+[1]РОО!M52+[1]УСХ!M52+'[1]З С '!M52+[1]РА!M52) -> 0 | N53: =SUM([1]УФ!N52+[1]ОК!N52+[1]РОО!N52+[1]УСХ!N52+'[1]З С '!N52+[1]РА!N52) -> 0 | O53: =SUM([1]УФ!O52+[1]ОК!O52+[1]РОО!O52+[1]УСХ!O52+'[1]З С '!O52+[1]РА!O52) -> 0 | P53: =SUM([1]УФ!P52+[1]ОК!P52+[1]РОО!P52+[1]УСХ!P52+'[1]З С '!P52+[1]РА!P52) -> 0 | Q53: =SUM([1]УФ!Q52+[1]ОК!Q52+[1]РОО!Q52+[1]УСХ!Q52+'[1]З С '!Q52+[1]РА!Q52) -> 0 | R53: =SUM([1]УФ!R52+[1]ОК!R52+[1]РОО!R52+[1]УСХ!R52+'[1]З С '!R52+[1]РА!R52) -> 0
B54: 1.1.44. | C54: участие в профилактике терроризма и экстремизма, а также в минимизации и (или) ликвидации последствий проявлений терроризма и экстремизма в границах сельского поселения | D54: 1045 | M54: =SUM([1]УФ!M53+[1]ОК!M53+[1]РОО!M53+[1]УСХ!M53+'[1]З С '!M53+[1]РА!M53) -> 0 | N54: =SUM([1]УФ!N53+[1]ОК!N53+[1]РОО!N53+[1]УСХ!N53+'[1]З С '!N53+[1]РА!N53) -> 0 | O54: =SUM([1]УФ!O53+[1]ОК!O53+[1]РОО!O53+[1]УСХ!O53+'[1]З С '!O53+[1]РА!O53) -> 0 | P54: =SUM([1]УФ!P53+[1]ОК!P53+[1]РОО!P53+[1]УСХ!P53+'[1]З С '!P53+[1]РА!P53) -> 0 | Q54: =SUM([1]УФ!Q53+[1]ОК!Q53+[1]РОО!Q53+[1]УСХ!Q53+'[1]З С '!Q53+[1]РА!Q53) -> 0 | R54: =SUM([1]УФ!R53+[1]ОК!R53+[1]РОО!R53+[1]УСХ!R53+'[1]З С '!R53+[1]РА!R53) -> 0
B55: 1.1.45. | C55: создание условий для реализации мер, направленных на укрепление межнационального и межконфессионального согласия, сохранение и развитие языков и культуры народов Российской Федерации, проживающих на территории сельского поселения, социальную и культурную адаптацию мигрантов, профилактику межнациональных (межэтнических) конфликтов на территории сельского поселения | D55: 1046 | M55: =SUM([1]УФ!M54+[1]ОК!M54+[1]РОО!M54+[1]УСХ!M54+'[1]З С '!M54+[1]РА!M54) -> 0 | N55: =SUM([1]УФ!N54+[1]ОК!N54+[1]РОО!N54+[1]УСХ!N54+'[1]З С '!N54+[1]РА!N54) -> 0 | O55: =SUM([1]УФ!O54+[1]ОК!O54+[1]РОО!O54+[1]УСХ!O54+'[1]З С '!O54+[1]РА!O54) -> 0 | P55: =SUM([1]УФ!P54+[1]ОК!P54+[1]РОО!P54+[1]УСХ!P54+'[1]З С '!P54+[1]РА!P54) -> 0 | Q55: =SUM([1]УФ!Q54+[1]ОК!Q54+[1]РОО!Q54+[1]УСХ!Q54+'[1]З С '!Q54+[1]РА!Q54) -> 0 | R55: =SUM([1]УФ!R54+[1]ОК!R54+[1]РОО!R54+[1]УСХ!R54+'[1]З С '!R54+[1]РА!R54) -> 0
B56: 1.1.46. | C56: участие в предупреждении и ликвидации последствий чрезвычайных ситуаций в границах сельского поселения | D56: 1047 | M56: =SUM([1]УФ!M55+[1]ОК!M55+[1]РОО!M55+[1]УСХ!M55+'[1]З С '!M55+[1]РА!M55) -> 0 | N56: =SUM([1]УФ!N55+[1]ОК!N55+[1]РОО!N55+[1]УСХ!N55+'[1]З С '!N55+[1]РА!N55) -> 0 | O56: =SUM([1]УФ!O55+[1]ОК!O55+[1]РОО!O55+[1]УСХ!O55+'[1]З С '!O55+[1]РА!O55) -> 0 | P56: =SUM([1]УФ!P55+[1]ОК!P55+[1]РОО!P55+[1]УСХ!P55+'[1]З С '!P55+[1]РА!P55) -> 0 | Q56: =SUM([1]УФ!Q55+[1]ОК!Q55+[1]РОО!Q55+[1]УСХ!Q55+'[1]З С '!Q55+[1]РА!Q55) -> 0 | R56: =SUM([1]УФ!R55+[1]ОК!R55+[1]РОО!R55+[1]УСХ!R55+'[1]З С '!R55+[1]РА!R55) -> 0
B57: 1.1.47. | C57: организация библиотечного обслуживания населения, комплектование и обеспечение сохранности библиотечных фондов библиотек сельского поселения | D57: 1048 | M57: =SUM([1]УФ!M56+[1]ОК!M56+[1]РОО!M56+[1]УСХ!M56+'[1]З С '!M56+[1]РА!M56) -> 0 | N57: =SUM([1]УФ!N56+[1]ОК!N56+[1]РОО!N56+[1]УСХ!N56+'[1]З С '!N56+[1]РА!N56) -> 0 | O57: =SUM([1]УФ!O56+[1]ОК!O56+[1]РОО!O56+[1]УСХ!O56+'[1]З С '!O56+[1]РА!O56) -> 0 | P57: =SUM([1]УФ!P56+[1]ОК!P56+[1]РОО!P56+[1]УСХ!P56+'[1]З С '!P56+[1]РА!P56) -> 0 | Q57: =SUM([1]УФ!Q56+[1]ОК!Q56+[1]РОО!Q56+[1]УСХ!Q56+'[1]З С '!Q56+[1]РА!Q56) -> 0 | R57: =SUM([1]УФ!R56+[1]ОК!R56+[1]РОО!R56+[1]УСХ!R56+'[1]З С '!R56+[1]РА!R56) -> 0
B58: 1.1.48. | C58: сохранение, использование и популяризация объектов культурного наследия (памятников истории и культуры), находящихся в собственности сельского поселения, охрана объектов культурного наследия (памятников истории и культуры) местного (муниципального) значения, расположенных на территории сельского поселения | D58: 1049 | M58: =SUM([1]УФ!M57+[1]ОК!M57+[1]РОО!M57+[1]УСХ!M57+'[1]З С '!M57+[1]РА!M57) -> 0 | N58: =SUM([1]УФ!N57+[1]ОК!N57+[1]РОО!N57+[1]УСХ!N57+'[1]З С '!N57+[1]РА!N57) -> 0 | O58: =SUM([1]УФ!O57+[1]ОК!O57+[1]РОО!O57+[1]УСХ!O57+'[1]З С '!O57+[1]РА!O57) -> 0 | P58: =SUM([1]УФ!P57+[1]ОК!P57+[1]РОО!P57+[1]УСХ!P57+'[1]З С '!P57+[1]РА!P57) -> 0 | Q58: =SUM([1]УФ!Q57+[1]ОК!Q57+[1]РОО!Q57+[1]УСХ!Q57+'[1]З С '!Q57+[1]РА!Q57) -> 0 | R58: =SUM([1]УФ!R57+[1]ОК!R57+[1]РОО!R57+[1]УСХ!R57+'[1]З С '!R57+[1]РА!R57) -> 0
B59: 1.1.49. | C59: создание условий для массового отдыха жителей сельского поселения и организация обустройства мест массового отдыха населения, включая обеспечение свободного доступа граждан к водным объектам общего пользования и их береговым полосам на территории сельского поселения | D59: 1050 | E59: Федеральный закон от 06.10.2003 N 131-ФЗ "Об общих принципах организации местного самоуправления в Российской Федерации" | F59: ст.15 п.1 пп.24 | G59: 06.10.2003 не ограничен | M59: =SUM([1]УФ!M58+[1]ОК!M58+[1]РОО!M58+[1]УСХ!M58+'[1]З С '!M58+[1]РА!M58) -> 0 | N59: =SUM([1]УФ!N58+[1]ОК!N58+[1]РОО!N58+[1]УСХ!N58+'[1]З С '!N58+[1]РА!N58) -> 0 | O59: =SUM([1]УФ!O58+[1]ОК!O58+[1]РОО!O58+[1]УСХ!O58+'[1]З С '!O58+[1]РА!O58) -> 0 | P59: =SUM([1]УФ!P58+[1]ОК!P58+[1]РОО!P58+[1]УСХ!P58+'[1]З С '!P58+[1]РА!P58) -> 0 | Q59: =SUM([1]УФ!Q58+[1]ОК!Q58+[1]РОО!Q58+[1]УСХ!Q58+'[1]З С '!Q58+[1]РА!Q58) -> 0 | R59: =SUM([1]УФ!R58+[1]ОК!R58+[1]РОО!R58+[1]УСХ!R58+'[1]З С '!R58+[1]РА!R58) -> 0
B60: 1.1.50. | C60: участие в организации деятельности по сбору (в том числе раздельному сбору), транспортированию, обработке, утилизации, обезвреживанию, захоронению твердых коммунальных отходов на территории сельского поселения | D60: 1051 | M60: =SUM([1]УФ!M59+[1]ОК!M59+[1]РОО!M59+[1]УСХ!M59+'[1]З С '!M59+[1]РА!M59) -> 0 | N60: =SUM([1]УФ!N59+[1]ОК!N59+[1]РОО!N59+[1]УСХ!N59+'[1]З С '!N59+[1]РА!N59) -> 0 | O60: =SUM([1]УФ!O59+[1]ОК!O59+[1]РОО!O59+[1]УСХ!O59+'[1]З С '!O59+[1]РА!O59) -> 0 | P60: =SUM([1]УФ!P59+[1]ОК!P59+[1]РОО!P59+[1]УСХ!P59+'[1]З С '!P59+[1]РА!P59) -> 0 | Q60: =SUM([1]УФ!Q59+[1]ОК!Q59+[1]РОО!Q59+[1]УСХ!Q59+'[1]З С '!Q59+[1]РА!Q59) -> 0 | R60: =SUM([1]УФ!R59+[1]ОК!R59+[1]РОО!R59+[1]УСХ!R59+'[1]З С '!R59+[1]РА!R59) -> 0
B61: 1.1.51. | C61: использование, охрана, защита, воспроизводство лесов, лесов особо охраняемых природных территорий, расположенных в границах населенных пунктов сельского поселения | D61: 1052 | M61: =SUM([1]УФ!M60+[1]ОК!M60+[1]РОО!M60+[1]УСХ!M60+'[1]З С '!M60+[1]РА!M60) -> 0 | N61: =SUM([1]УФ!N60+[1]ОК!N60+[1]РОО!N60+[1]УСХ!N60+'[1]З С '!N60+[1]РА!N60) -> 0 | O61: =SUM([1]УФ!O60+[1]ОК!O60+[1]РОО!O60+[1]УСХ!O60+'[1]З С '!O60+[1]РА!O60) -> 0 | P61: =SUM([1]УФ!P60+[1]ОК!P60+[1]РОО!P60+[1]УСХ!P60+'[1]З С '!P60+[1]РА!P60) -> 0 | Q61: =SUM([1]УФ!Q60+[1]ОК!Q60+[1]РОО!Q60+[1]УСХ!Q60+'[1]З С '!Q60+[1]РА!Q60) -> 0 | R61: =SUM([1]УФ!R60+[1]ОК!R60+[1]РОО!R60+[1]УСХ!R60+'[1]З С '!R60+[1]РА!R60) -> 0
B62: 1.1.52. | C62: утверждение генеральных планов сельского поселения, правил землепользования и застройки, утверждение подготовленной на основе генеральных планов сельского поселения документации по планировке территории, выдача разрешений на строительство (за исключением случаев, предусмотренных Градостроительным кодексом Российской Федерации, иными федеральными законами), разрешений на ввод объектов в эксплуатацию при осуществлении строительства, реконструкции объектов капитального строительства, расположенных на территории сельского поселения, утверждение местных нормативов градостроительного проектирования сельских поселений, резервирование земель и изъятие земельных участков в границах сельского поселения для муниципальных нужд, осуществление муниципального земельного контроля в границах сельского поселения, осуществление в случаях, предусмотренных Градостроительным кодексом Российской Федерации, осмотров зданий, сооружений и выдача рекомендаций об устранении выявленных в ходе таких осмотров нарушений на территории сельского поселения | D62: 1053 | M62: =SUM([1]УФ!M61+[1]ОК!M61+[1]РОО!M61+[1]УСХ!M61+'[1]З С '!M61+[1]РА!M61) -> 0 | N62: =SUM([1]УФ!N61+[1]ОК!N61+[1]РОО!N61+[1]УСХ!N61+'[1]З С '!N61+[1]РА!N61) -> 0 | O62: =SUM([1]УФ!O61+[1]ОК!O61+[1]РОО!O61+[1]УСХ!O61+'[1]З С '!O61+[1]РА!O61) -> 0 | P62: =SUM([1]УФ!P61+[1]ОК!P61+[1]РОО!P61+[1]УСХ!P61+'[1]З С '!P61+[1]РА!P61) -> 0 | Q62: =SUM([1]УФ!Q61+[1]ОК!Q61+[1]РОО!Q61+[1]УСХ!Q61+'[1]З С '!Q61+[1]РА!Q61) -> 0 | R62: =SUM([1]УФ!R61+[1]ОК!R61+[1]РОО!R61+[1]УСХ!R61+'[1]З С '!R61+[1]РА!R61) -> 0
B63: 1.1.53. | C63: организация ритуальных услуг и содержание мест захоронения на территории сельского поселения | D63: 1054 | M63: =SUM([1]УФ!M62+[1]ОК!M62+[1]РОО!M62+[1]УСХ!M62+'[1]З С '!M62+[1]РА!M62) -> 0 | N63: =SUM([1]УФ!N62+[1]ОК!N62+[1]РОО!N62+[1]УСХ!N62+'[1]З С '!N62+[1]РА!N62) -> 0 | O63: =SUM([1]УФ!O62+[1]ОК!O62+[1]РОО!O62+[1]УСХ!O62+'[1]З С '!O62+[1]РА!O62) -> 0 | P63: =SUM([1]УФ!P62+[1]ОК!P62+[1]РОО!P62+[1]УСХ!P62+'[1]З С '!P62+[1]РА!P62) -> 0 | Q63: =SUM([1]УФ!Q62+[1]ОК!Q62+[1]РОО!Q62+[1]УСХ!Q62+'[1]З С '!Q62+[1]РА!Q62) -> 0 | R63: =SUM([1]УФ!R62+[1]ОК!R62+[1]РОО!R62+[1]УСХ!R62+'[1]З С '!R62+[1]РА!R62) -> 0
B64: 1.1.54. | C64: организация и осуществление мероприятий по территориальной обороне и гражданской обороне, защите населения и территории сельского поселения от чрезвычайных ситуаций природного и техногенного характера на территории сельского поселения | D64: 1055 | M64: =SUM([1]УФ!M63+[1]ОК!M63+[1]РОО!M63+[1]УСХ!M63+'[1]З С '!M63+[1]РА!M63) -> 0 | N64: =SUM([1]УФ!N63+[1]ОК!N63+[1]РОО!N63+[1]УСХ!N63+'[1]З С '!N63+[1]РА!N63) -> 0 | O64: =SUM([1]УФ!O63+[1]ОК!O63+[1]РОО!O63+[1]УСХ!O63+'[1]З С '!O63+[1]РА!O63) -> 0 | P64: =SUM([1]УФ!P63+[1]ОК!P63+[1]РОО!P63+[1]УСХ!P63+'[1]З С '!P63+[1]РА!P63) -> 0 | Q64: =SUM([1]УФ!Q63+[1]ОК!Q63+[1]РОО!Q63+[1]УСХ!Q63+'[1]З С '!Q63+[1]РА!Q63) -> 0 | R64: =SUM([1]УФ!R63+[1]ОК!R63+[1]РОО!R63+[1]УСХ!R63+'[1]З С '!R63+[1]РА!R63) -> 0
B65: 1.1.55. | C65: создание, содержание и организация деятельности аварийно-спасательных служб и (или) аварийно-спасательных формирований на территории сельского поселения | D65: 1056 | M65: =SUM([1]УФ!M64+[1]ОК!M64+[1]РОО!M64+[1]УСХ!M64+'[1]З С '!M64+[1]РА!M64) -> 0 | N65: =SUM([1]УФ!N64+[1]ОК!N64+[1]РОО!N64+[1]УСХ!N64+'[1]З С '!N64+[1]РА!N64) -> 0 | O65: =SUM([1]УФ!O64+[1]ОК!O64+[1]РОО!O64+[1]УСХ!O64+'[1]З С '!O64+[1]РА!O64) -> 0 | P65: =SUM([1]УФ!P64+[1]ОК!P64+[1]РОО!P64+[1]УСХ!P64+'[1]З С '!P64+[1]РА!P64) -> 0 | Q65: =SUM([1]УФ!Q64+[1]ОК!Q64+[1]РОО!Q64+[1]УСХ!Q64+'[1]З С '!Q64+[1]РА!Q64) -> 0 | R65: =SUM([1]УФ!R64+[1]ОК!R64+[1]РОО!R64+[1]УСХ!R64+'[1]З С '!R64+[1]РА!R64) -> 0
B66: 1.1.56. | C66: осуществление мероприятий по обеспечению безопасности людей на водных объектах, охране их жизни и здоровья на территории сельского поселения | D66: 1057 | M66: =SUM([1]УФ!M65+[1]ОК!M65+[1]РОО!M65+[1]УСХ!M65+'[1]З С '!M65+[1]РА!M65) -> 0 | N66: =SUM([1]УФ!N65+[1]ОК!N65+[1]РОО!N65+[1]УСХ!N65+'[1]З С '!N65+[1]РА!N65) -> 0 | O66: =SUM([1]УФ!O65+[1]ОК!O65+[1]РОО!O65+[1]УСХ!O65+'[1]З С '!O65+[1]РА!O65) -> 0 | P66: =SUM([1]УФ!P65+[1]ОК!P65+[1]РОО!P65+[1]УСХ!P65+'[1]З С '!P65+[1]РА!P65) -> 0 | Q66: =SUM([1]УФ!Q65+[1]ОК!Q65+[1]РОО!Q65+[1]УСХ!Q65+'[1]З С '!Q65+[1]РА!Q65) -> 0 | R66: =SUM([1]УФ!R65+[1]ОК!R65+[1]РОО!R65+[1]УСХ!R65+'[1]З С '!R65+[1]РА!R65) -> 0
B67: 1.1.57. | C67: создание, развитие и обеспечение охраны лечебно-оздоровительных местностей и курортов местного значения на территории сельского поселения, а также осуществление муниципального контроля в области использования и охраны особо охраняемых природных территорий местного значения на территории сельского поселения | D67: 1058 | M67: =SUM([1]УФ!M66+[1]ОК!M66+[1]РОО!M66+[1]УСХ!M66+'[1]З С '!M66+[1]РА!M66) -> 0 | N67: =SUM([1]УФ!N66+[1]ОК!N66+[1]РОО!N66+[1]УСХ!N66+'[1]З С '!N66+[1]РА!N66) -> 0 | O67: =SUM([1]УФ!O66+[1]ОК!O66+[1]РОО!O66+[1]УСХ!O66+'[1]З С '!O66+[1]РА!O66) -> 0 | P67: =SUM([1]УФ!P66+[1]ОК!P66+[1]РОО!P66+[1]УСХ!P66+'[1]З С '!P66+[1]РА!P66) -> 0 | Q67: =SUM([1]УФ!Q66+[1]ОК!Q66+[1]РОО!Q66+[1]УСХ!Q66+'[1]З С '!Q66+[1]РА!Q66) -> 0 | R67: =SUM([1]УФ!R66+[1]ОК!R66+[1]РОО!R66+[1]УСХ!R66+'[1]З С '!R66+[1]РА!R66) -> 0
B68: 1.1.58. | C68: осуществление в пределах, установленных водным законодательством Российской Федерации, полномочий собственника водных объектов, информирование населения об ограничениях их использования на территории сельского поселения | D68: 1059 | M68: =SUM([1]УФ!M67+[1]ОК!M67+[1]РОО!M67+[1]УСХ!M67+'[1]З С '!M67+[1]РА!M67) -> 0 | N68: =SUM([1]УФ!N67+[1]ОК!N67+[1]РОО!N67+[1]УСХ!N67+'[1]З С '!N67+[1]РА!N67) -> 0 | O68: =SUM([1]УФ!O67+[1]ОК!O67+[1]РОО!O67+[1]УСХ!O67+'[1]З С '!O67+[1]РА!O67) -> 0 | P68: =SUM([1]УФ!P67+[1]ОК!P67+[1]РОО!P67+[1]УСХ!P67+'[1]З С '!P67+[1]РА!P67) -> 0 | Q68: =SUM([1]УФ!Q67+[1]ОК!Q67+[1]РОО!Q67+[1]УСХ!Q67+'[1]З С '!Q67+[1]РА!Q67) -> 0 | R68: =SUM([1]УФ!R67+[1]ОК!R67+[1]РОО!R67+[1]УСХ!R67+'[1]З С '!R67+[1]РА!R67) -> 0
B69: 1.1.59. | C69: осуществление муниципального лесного контроля на территории сельского поселения | D69: 1060 | M69: =SUM([1]УФ!M68+[1]ОК!M68+[1]РОО!M68+[1]УСХ!M68+'[1]З С '!M68+[1]РА!M68) -> 0 | N69: =SUM([1]УФ!N68+[1]ОК!N68+[1]РОО!N68+[1]УСХ!N68+'[1]З С '!N68+[1]РА!N68) -> 0 | O69: =SUM([1]УФ!O68+[1]ОК!O68+[1]РОО!O68+[1]УСХ!O68+'[1]З С '!O68+[1]РА!O68) -> 0 | P69: =SUM([1]УФ!P68+[1]ОК!P68+[1]РОО!P68+[1]УСХ!P68+'[1]З С '!P68+[1]РА!P68) -> 0 | Q69: =SUM([1]УФ!Q68+[1]ОК!Q68+[1]РОО!Q68+[1]УСХ!Q68+'[1]З С '!Q68+[1]РА!Q68) -> 0 | R69: =SUM([1]УФ!R68+[1]ОК!R68+[1]РОО!R68+[1]УСХ!R68+'[1]З С '!R68+[1]РА!R68) -> 0
B70: 1.1.60. | C70: предоставление помещения для работы на обслуживаемом административном участке сельского поселения сотруднику, замещающему должность участкового уполномоченного полиции на территории сельского поселения | D70: 1061 | M70: =SUM([1]УФ!M69+[1]ОК!M69+[1]РОО!M69+[1]УСХ!M69+'[1]З С '!M69+[1]РА!M69) -> 0 | N70: =SUM([1]УФ!N69+[1]ОК!N69+[1]РОО!N69+[1]УСХ!N69+'[1]З С '!N69+[1]РА!N69) -> 0 | O70: =SUM([1]УФ!O69+[1]ОК!O69+[1]РОО!O69+[1]УСХ!O69+'[1]З С '!O69+[1]РА!O69) -> 0 | P70: =SUM([1]УФ!P69+[1]ОК!P69+[1]РОО!P69+[1]УСХ!P69+'[1]З С '!P69+[1]РА!P69) -> 0 | Q70: =SUM([1]УФ!Q69+[1]ОК!Q69+[1]РОО!Q69+[1]УСХ!Q69+'[1]З С '!Q69+[1]РА!Q69) -> 0 | R70: =SUM([1]УФ!R69+[1]ОК!R69+[1]РОО!R69+[1]УСХ!R69+'[1]З С '!R69+[1]РА!R69) -> 0
B71: 1.1.61. | C71: до 1 января 2017 года предоставление сотруднику, замещающему должность участкового уполномоченного полиции, и членам его семьи жилого помещения на период выполнения сотрудником обязанностей по указанной должности на территории сельского поселения на территории сельского поселения | D71: 1062 | M71: =SUM([1]УФ!M70+[1]ОК!M70+[1]РОО!M70+[1]УСХ!M70+'[1]З С '!M70+[1]РА!M70) -> 0 | N71: =SUM([1]УФ!N70+[1]ОК!N70+[1]РОО!N70+[1]УСХ!N70+'[1]З С '!N70+[1]РА!N70) -> 0 | O71: =SUM([1]УФ!O70+[1]ОК!O70+[1]РОО!O70+[1]УСХ!O70+'[1]З С '!O70+[1]РА!O70) -> 0 | P71: =SUM([1]УФ!P70+[1]ОК!P70+[1]РОО!P70+[1]УСХ!P70+'[1]З С '!P70+[1]РА!P70) -> 0 | Q71: =SUM([1]УФ!Q70+[1]ОК!Q70+[1]РОО!Q70+[1]УСХ!Q70+'[1]З С '!Q70+[1]РА!Q70) -> 0 | R71: =SUM([1]УФ!R70+[1]ОК!R70+[1]РОО!R70+[1]УСХ!R70+'[1]З С '!R70+[1]РА!R70) -> 0
B72: 1.1.62. | C72: оказание поддержки социально ориентированным некоммерческим организациям в пределах полномочий, установленных статьями 31.1 и 31.3 Федерального закона от 12 января 1996 года № 7-ФЗ «О некоммерческих организациях» на территории сельского поселения | D72: 1063 | M72: =SUM([1]УФ!M71+[1]ОК!M71+[1]РОО!M71+[1]УСХ!M71+'[1]З С '!M71+[1]РА!M71) -> 0 | N72: =SUM([1]УФ!N71+[1]ОК!N71+[1]РОО!N71+[1]УСХ!N71+'[1]З С '!N71+[1]РА!N71) -> 0 | O72: =SUM([1]УФ!O71+[1]ОК!O71+[1]РОО!O71+[1]УСХ!O71+'[1]З С '!O71+[1]РА!O71) -> 0 | P72: =SUM([1]УФ!P71+[1]ОК!P71+[1]РОО!P71+[1]УСХ!P71+'[1]З С '!P71+[1]РА!P71) -> 0 | Q72: =SUM([1]УФ!Q71+[1]ОК!Q71+[1]РОО!Q71+[1]УСХ!Q71+'[1]З С '!Q71+[1]РА!Q71) -> 0 | R72: =SUM([1]УФ!R71+[1]ОК!R71+[1]РОО!R71+[1]УСХ!R71+'[1]З С '!R71+[1]РА!R71) -> 0
B73: 1.1.63. | C73: обеспечение выполнения работ, необходимых для создания искусственных земельных участков для нужд сельского поселения, проведение открытого аукциона на право заключить договор о создании искусственного земельного участка в соответствии с федеральным законом на территории сельского поселения | D73: 1064 | M73: =SUM([1]УФ!M72+[1]ОК!M72+[1]РОО!M72+[1]УСХ!M72+'[1]З С '!M72+[1]РА!M72) -> 0 | N73: =SUM([1]УФ!N72+[1]ОК!N72+[1]РОО!N72+[1]УСХ!N72+'[1]З С '!N72+[1]РА!N72) -> 0 | O73: =SUM([1]УФ!O72+[1]ОК!O72+[1]РОО!O72+[1]УСХ!O72+'[1]З С '!O72+[1]РА!O72) -> 0 | P73: =SUM([1]УФ!P72+[1]ОК!P72+[1]РОО!P72+[1]УСХ!P72+'[1]З С '!P72+[1]РА!P72) -> 0 | Q73: =SUM([1]УФ!Q72+[1]ОК!Q72+[1]РОО!Q72+[1]УСХ!Q72+'[1]З С '!Q72+[1]РА!Q72) -> 0 | R73: =SUM([1]УФ!R72+[1]ОК!R72+[1]РОО!R72+[1]УСХ!R72+'[1]З С '!R72+[1]РА!R72) -> 0
B74: 1.1.64. | C74: осуществление мер по противодействию коррупции в границах сельского поселения | D74: 1065 | M74: =SUM([1]УФ!M73+[1]ОК!M73+[1]РОО!M73+[1]УСХ!M73+'[1]З С '!M73+[1]РА!M73) -> 0 | N74: =SUM([1]УФ!N73+[1]ОК!N73+[1]РОО!N73+[1]УСХ!N73+'[1]З С '!N73+[1]РА!N73) -> 0 | O74: =SUM([1]УФ!O73+[1]ОК!O73+[1]РОО!O73+[1]УСХ!O73+'[1]З С '!O73+[1]РА!O73) -> 0 | P74: =SUM([1]УФ!P73+[1]ОК!P73+[1]РОО!P73+[1]УСХ!P73+'[1]З С '!P73+[1]РА!P73) -> 0 | Q74: =SUM([1]УФ!Q73+[1]ОК!Q73+[1]РОО!Q73+[1]УСХ!Q73+'[1]З С '!Q73+[1]РА!Q73) -> 0 | R74: =SUM([1]УФ!R73+[1]ОК!R73+[1]РОО!R73+[1]УСХ!R73+'[1]З С '!R73+[1]РА!R73) -> 0
B75: 1.1.65. | C75: участие в соответствии с Федеральным законом от 24 июля 2007 года № 221-ФЗ «О государственном кадастре недвижимости» в выполнении комплексных кадастровых работ на территории сельского поселения | D75: 1066 | M75: =SUM([1]УФ!M74+[1]ОК!M74+[1]РОО!M74+[1]УСХ!M74+'[1]З С '!M74+[1]РА!M74) -> 0 | N75: =SUM([1]УФ!N74+[1]ОК!N74+[1]РОО!N74+[1]УСХ!N74+'[1]З С '!N74+[1]РА!N74) -> 0 | O75: =SUM([1]УФ!O74+[1]ОК!O74+[1]РОО!O74+[1]УСХ!O74+'[1]З С '!O74+[1]РА!O74) -> 0 | P75: =SUM([1]УФ!P74+[1]ОК!P74+[1]РОО!P74+[1]УСХ!P74+'[1]З С '!P74+[1]РА!P74) -> 0 | Q75: =SUM([1]УФ!Q74+[1]ОК!Q74+[1]РОО!Q74+[1]УСХ!Q74+'[1]З С '!Q74+[1]РА!Q74) -> 0 | R75: =SUM([1]УФ!R74+[1]ОК!R74+[1]РОО!R74+[1]УСХ!R74+'[1]З С '!R74+[1]РА!R74) -> 0
B76: 1.2. | C76: Расходные обязательства, возникшие в результате принятия нормативных правовых актов муниципального района, заключения договоров (соглашений) в рамках реализации полномочий органов местного самоуправления муниципального района по решению вопросов местного значения муниципального района, всего | D76: 1100 | E76: х | F76: х | G76: х | H76: х | I76: х | J76: х | K76: х | L76: х | M76: =SUM(M77:M119) -> 43852.7 | N76: 43477.4 | O76: 50955.4 | P76: 51570.5 | Q76: 47186.4 | R76: 47715.1
B77: 1.2.1. | C77: функционирование органов местного самоуправления | D77: 1101 | E77: Федеральный закон от 02.03.2007 N 25-ФЗ "О муниципальной службе в Российской Федерации" | G77: 02.03.2007 не ограничен | H77: Закон Нижегородской области от 03.08.2007 № 99-З " О муниципальной службе в Нижегородской области" | I77: ст.25 | J77: 2007-08-03 | K77: 01 01 01 01 01 01 05 10 10 | L77: 03 04 06 07 11 13 03 01 03 | M77: =SUM([1]УФ!M76+[1]ОК!M76+[1]РОО!M76+[1]УСХ!M76+'[1]З С '!M76+[1]РА!M76) -> 39588.4 | N77: =SUM([1]УФ!N76+[1]ОК!N76+[1]РОО!N76+[1]УСХ!N76+'[1]З С '!N76+[1]РА!N76) -> 39230.5 | O77: =SUM([1]УФ!O76+[1]ОК!O76+[1]РОО!O76+[1]УСХ!O76+'[1]З С '!O76+[1]РА!O76) -> 46533.3 | P77: =SUM([1]УФ!P76+[1]ОК!P76+[1]РОО!P76+[1]УСХ!P76+'[1]З С '!P76+[1]РА!P76) -> 46053 | Q77: =SUM([1]УФ!Q76+[1]ОК!Q76+[1]РОО!Q76+[1]УСХ!Q76+'[1]З С '!Q76+[1]РА!Q76) -> 41910.3 | R77: =SUM([1]УФ!R76+[1]ОК!R76+[1]РОО!R76+[1]УСХ!R76+'[1]З С '!R76+[1]РА!R76) -> 42322.2
B78: 1.2.2. | C78: финансирование муниципальных учреждений | D78: 1102 | M78: =SUM([1]УФ!M77+[1]ОК!M77+[1]РОО!M77+[1]УСХ!M77+'[1]З С '!M77+[1]РА!M77) -> 0 | N78: =SUM([1]УФ!N77+[1]ОК!N77+[1]РОО!N77+[1]УСХ!N77+'[1]З С '!N77+[1]РА!N77) -> 0 | O78: =SUM([1]УФ!O77+[1]ОК!O77+[1]РОО!O77+[1]УСХ!O77+'[1]З С '!O77+[1]РА!O77) -> 0 | P78: =SUM([1]УФ!P77+[1]ОК!P77+[1]РОО!P77+[1]УСХ!P77+'[1]З С '!P77+[1]РА!P77) -> 0 | Q78: =SUM([1]УФ!Q77+[1]ОК!Q77+[1]РОО!Q77+[1]УСХ!Q77+'[1]З С '!Q77+[1]РА!Q77) -> 0 | R78: =SUM([1]УФ!R77+[1]ОК!R77+[1]РОО!R77+[1]УСХ!R77+'[1]З С '!R77+[1]РА!R77) -> 0
B79: 1.2.3. | C79: принятие устава муниципального образования и внесение в него изменений и дополнений, издание муниципальных правовых актов | D79: 1103 | M79: =SUM([1]УФ!M78+[1]ОК!M78+[1]РОО!M78+[1]УСХ!M78+'[1]З С '!M78+[1]РА!M78) -> 0 | N79: =SUM([1]УФ!N78+[1]ОК!N78+[1]РОО!N78+[1]УСХ!N78+'[1]З С '!N78+[1]РА!N78) -> 0 | O79: =SUM([1]УФ!O78+[1]ОК!O78+[1]РОО!O78+[1]УСХ!O78+'[1]З С '!O78+[1]РА!O78) -> 0 | P79: =SUM([1]УФ!P78+[1]ОК!P78+[1]РОО!P78+[1]УСХ!P78+'[1]З С '!P78+[1]РА!P78) -> 0 | Q79: =SUM([1]УФ!Q78+[1]ОК!Q78+[1]РОО!Q78+[1]УСХ!Q78+'[1]З С '!Q78+[1]РА!Q78) -> 0 | R79: =SUM([1]УФ!R78+[1]ОК!R78+[1]РОО!R78+[1]УСХ!R78+'[1]З С '!R78+[1]РА!R78) -> 0
B80: 1.2.4. | C80: установление официальных символов муниципального образования | D80: 1104 | M80: =SUM([1]УФ!M79+[1]ОК!M79+[1]РОО!M79+[1]УСХ!M79+'[1]З С '!M79+[1]РА!M79) -> 0 | N80: =SUM([1]УФ!N79+[1]ОК!N79+[1]РОО!N79+[1]УСХ!N79+'[1]З С '!N79+[1]РА!N79) -> 0 | O80: =SUM([1]УФ!O79+[1]ОК!O79+[1]РОО!O79+[1]УСХ!O79+'[1]З С '!O79+[1]РА!O79) -> 0 | P80: =SUM([1]УФ!P79+[1]ОК!P79+[1]РОО!P79+[1]УСХ!P79+'[1]З С '!P79+[1]РА!P79) -> 0 | Q80: =SUM([1]УФ!Q79+[1]ОК!Q79+[1]РОО!Q79+[1]УСХ!Q79+'[1]З С '!Q79+[1]РА!Q79) -> 0 | R80: =SUM([1]УФ!R79+[1]ОК!R79+[1]РОО!R79+[1]УСХ!R79+'[1]З С '!R79+[1]РА!R79) -> 0
B81: 1.2.5. | C81: создание муниципальных предприятий и учреждений, осуществление финансового обеспечения деятельности муниципальных казенных учреждений и финансового обеспечения выполнения муниципального задания бюджетными и автономными муниципальными учреждениями, а также осуществление закупок товаров, работ, услуг для обеспечения муниципальных нужд | D81: 1105 | E81: Федеральный закон от 06.10.2003 N 131-ФЗ "Об общих принципах организации местного самоуправления в Российской Федерации" | F81: ст.17 п.1 пп.3 | G81: 08.05.2010 не ограничен | K81: 01 | L81: 13 | M81: =SUM([1]УФ!M80+[1]ОК!M80+[1]РОО!M80+[1]УСХ!M80+'[1]З С '!M80+[1]РА!M80) -> 1960.4 | N81: =SUM([1]УФ!N80+[1]ОК!N80+[1]РОО!N80+[1]УСХ!N80+'[1]З С '!N80+[1]РА!N80) -> 1943 | O81: =SUM([1]УФ!O80+[1]ОК!O80+[1]РОО!O80+[1]УСХ!O80+'[1]З С '!O80+[1]РА!O80) -> 2118.4 | P81: =SUM([1]УФ!P80+[1]ОК!P80+[1]РОО!P80+[1]УСХ!P80+'[1]З С '!P80+[1]РА!P80) -> 2934.7 | Q81: =SUM([1]УФ!Q80+[1]ОК!Q80+[1]РОО!Q80+[1]УСХ!Q80+'[1]З С '!Q80+[1]РА!Q80) -> 2999.1 | R81: =SUM([1]УФ!R80+[1]ОК!R80+[1]РОО!R80+[1]УСХ!R80+'[1]З С '!R80+[1]РА!R80) -> 3108.2
B82: 1.2.6. | C82: установление тарифов на услуги, предоставляемые муниципальными предприятиями и учреждениями, и работы, выполняемые муниципальными предприятиями и учреждениями, если иное не предусмотрено федеральными законами | D82: 1106 | M82: =SUM([1]УФ!M81+[1]ОК!M81+[1]РОО!M81+[1]УСХ!M81+'[1]З С '!M81+[1]РА!M81) -> 0 | N82: =SUM([1]УФ!N81+[1]ОК!N81+[1]РОО!N81+[1]УСХ!N81+'[1]З С '!N81+[1]РА!N81) -> 0 | O82: =SUM([1]УФ!O81+[1]ОК!O81+[1]РОО!O81+[1]УСХ!O81+'[1]З С '!O81+[1]РА!O81) -> 0 | P82: =SUM([1]УФ!P81+[1]ОК!P81+[1]РОО!P81+[1]УСХ!P81+'[1]З С '!P81+[1]РА!P81) -> 0 | Q82: =SUM([1]УФ!Q81+[1]ОК!Q81+[1]РОО!Q81+[1]УСХ!Q81+'[1]З С '!Q81+[1]РА!Q81) -> 0 | R82: =SUM([1]УФ!R81+[1]ОК!R81+[1]РОО!R81+[1]УСХ!R81+'[1]З С '!R81+[1]РА!R81) -> 0
B83: 1.2.7. | C83: регулирование тарифов на подключение к системе коммунальной инфраструктуры, тарифов организаций коммунального комплекса на подключение, надбавок к тарифам на товары и услуги организаций коммунального комплекса, надбавок к ценам (тарифам) для потребителей. | D83: 1107 | M83: =SUM([1]УФ!M82+[1]ОК!M82+[1]РОО!M82+[1]УСХ!M82+'[1]З С '!M82+[1]РА!M82) -> 0 | N83: =SUM([1]УФ!N82+[1]ОК!N82+[1]РОО!N82+[1]УСХ!N82+'[1]З С '!N82+[1]РА!N82) -> 0 | O83: =SUM([1]УФ!O82+[1]ОК!O82+[1]РОО!O82+[1]УСХ!O82+'[1]З С '!O82+[1]РА!O82) -> 0 | P83: =SUM([1]УФ!P82+[1]ОК!P82+[1]РОО!P82+[1]УСХ!P82+'[1]З С '!P82+[1]РА!P82) -> 0 | Q83: =SUM([1]УФ!Q82+[1]ОК!Q82+[1]РОО!Q82+[1]УСХ!Q82+'[1]З С '!Q82+[1]РА!Q82) -> 0 | R83: =SUM([1]УФ!R82+[1]ОК!R82+[1]РОО!R82+[1]УСХ!R82+'[1]З С '!R82+[1]РА!R82) -> 0
B84: 1.2.8. | C84: полномочиями по организации теплоснабжения, предусмотренными Федеральным законом «О теплоснабжении» | D84: 1108 | M84: =SUM([1]УФ!M83+[1]ОК!M83+[1]РОО!M83+[1]УСХ!M83+'[1]З С '!M83+[1]РА!M83) -> 0 | N84: =SUM([1]УФ!N83+[1]ОК!N83+[1]РОО!N83+[1]УСХ!N83+'[1]З С '!N83+[1]РА!N83) -> 0 | O84: =SUM([1]УФ!O83+[1]ОК!O83+[1]РОО!O83+[1]УСХ!O83+'[1]З С '!O83+[1]РА!O83) -> 0 | P84: =SUM([1]УФ!P83+[1]ОК!P83+[1]РОО!P83+[1]УСХ!P83+'[1]З С '!P83+[1]РА!P83) -> 0 | Q84: =SUM([1]УФ!Q83+[1]ОК!Q83+[1]РОО!Q83+[1]УСХ!Q83+'[1]З С '!Q83+[1]РА!Q83) -> 0 | R84: =SUM([1]УФ!R83+[1]ОК!R83+[1]РОО!R83+[1]УСХ!R83+'[1]З С '!R83+[1]РА!R83) -> 0
B85: 1.2.9. | C85: полномочиями в сфере водоснабжения и водоотведения, предусмотренными Федеральным законом «О водоснабжении и водоотведении» | D85: 1109 | M85: =SUM([1]УФ!M84+[1]ОК!M84+[1]РОО!M84+[1]УСХ!M84+'[1]З С '!M84+[1]РА!M84) -> 0 | N85: =SUM([1]УФ!N84+[1]ОК!N84+[1]РОО!N84+[1]УСХ!N84+'[1]З С '!N84+[1]РА!N84) -> 0 | O85: =SUM([1]УФ!O84+[1]ОК!O84+[1]РОО!O84+[1]УСХ!O84+'[1]З С '!O84+[1]РА!O84) -> 0 | P85: =SUM([1]УФ!P84+[1]ОК!P84+[1]РОО!P84+[1]УСХ!P84+'[1]З С '!P84+[1]РА!P84) -> 0 | Q85: =SUM([1]УФ!Q84+[1]ОК!Q84+[1]РОО!Q84+[1]УСХ!Q84+'[1]З С '!Q84+[1]РА!Q84) -> 0 | R85: =SUM([1]УФ!R84+[1]ОК!R84+[1]РОО!R84+[1]УСХ!R84+'[1]З С '!R84+[1]РА!R84) -> 0
B86: 1.2.10. | C86: организационное и материально-техническое обеспечение подготовки и проведения муниципальных выборов, местного референдума, голосования по отзыву депутата, члена выборного органа местного самоуправления, выборного должностного лица местного самоуправления, голосования по вопросам изменения границ муниципального образования, преобразования муниципального образования | D86: 1110 | M86: =SUM([1]УФ!M85+[1]ОК!M85+[1]РОО!M85+[1]УСХ!M85+'[1]З С '!M85+[1]РА!M85) -> 0 | N86: =SUM([1]УФ!N85+[1]ОК!N85+[1]РОО!N85+[1]УСХ!N85+'[1]З С '!N85+[1]РА!N85) -> 0 | O86: =SUM([1]УФ!O85+[1]ОК!O85+[1]РОО!O85+[1]УСХ!O85+'[1]З С '!O85+[1]РА!O85) -> 0 | P86: =SUM([1]УФ!P85+[1]ОК!P85+[1]РОО!P85+[1]УСХ!P85+'[1]З С '!P85+[1]РА!P85) -> 0 | Q86: =SUM([1]УФ!Q85+[1]ОК!Q85+[1]РОО!Q85+[1]УСХ!Q85+'[1]З С '!Q85+[1]РА!Q85) -> 0 | R86: =SUM([1]УФ!R85+[1]ОК!R85+[1]РОО!R85+[1]УСХ!R85+'[1]З С '!R85+[1]РА!R85) -> 0
B87: 1.2.11. | C87: принятие и организация выполнения планов и программ комплексного социально-экономического развития муниципального образования, а также организация сбора статистических показателей, характеризующих состояние экономики и социальной сферы муниципального образования, и предоставление указанных данных органам государственной власти в порядке, установленном Правительством Российской Федерации | D87: 1111 | M87: =SUM([1]УФ!M86+[1]ОК!M86+[1]РОО!M86+[1]УСХ!M86+'[1]З С '!M86+[1]РА!M86) -> 0 | N87: =SUM([1]УФ!N86+[1]ОК!N86+[1]РОО!N86+[1]УСХ!N86+'[1]З С '!N86+[1]РА!N86) -> 0 | O87: =SUM([1]УФ!O86+[1]ОК!O86+[1]РОО!O86+[1]УСХ!O86+'[1]З С '!O86+[1]РА!O86) -> 0 | P87: =SUM([1]УФ!P86+[1]ОК!P86+[1]РОО!P86+[1]УСХ!P86+'[1]З С '!P86+[1]РА!P86) -> 0 | Q87: =SUM([1]УФ!Q86+[1]ОК!Q86+[1]РОО!Q86+[1]УСХ!Q86+'[1]З С '!Q86+[1]РА!Q86) -> 0 | R87: =SUM([1]УФ!R86+[1]ОК!R86+[1]РОО!R86+[1]УСХ!R86+'[1]З С '!R86+[1]РА!R86) -> 0
B88: 1.2.12. | C88: разработка и утверждение программ комплексного развития систем коммунальной инфраструктуры поселений, городских округов, программ комплексного развития транспортной инфраструктуры поселений, городских округов, программ комплексного развития социальной инфраструктуры поселений, городских округов, требования к которым устанавливаются Правительством Российской Федерации | D88: 1112 | M88: =SUM([1]УФ!M87+[1]ОК!M87+[1]РОО!M87+[1]УСХ!M87+'[1]З С '!M87+[1]РА!M87) -> 0 | N88: =SUM([1]УФ!N87+[1]ОК!N87+[1]РОО!N87+[1]УСХ!N87+'[1]З С '!N87+[1]РА!N87) -> 0 | O88: =SUM([1]УФ!O87+[1]ОК!O87+[1]РОО!O87+[1]УСХ!O87+'[1]З С '!O87+[1]РА!O87) -> 0 | P88: =SUM([1]УФ!P87+[1]ОК!P87+[1]РОО!P87+[1]УСХ!P87+'[1]З С '!P87+[1]РА!P87) -> 0 | Q88: =SUM([1]УФ!Q87+[1]ОК!Q87+[1]РОО!Q87+[1]УСХ!Q87+'[1]З С '!Q87+[1]РА!Q87) -> 0 | R88: =SUM([1]УФ!R87+[1]ОК!R87+[1]РОО!R87+[1]УСХ!R87+'[1]З С '!R87+[1]РА!R87) -> 0
B89: 1.2.13. | C89: учреждение печатного средства массовой информации для опубликования муниципальных правовых актов, обсуждения проектов муниципальных правовых актов по вопросам местного значения, доведения до сведения жителей муниципального образования официальной информации о социально-экономическом и культурном развитии муниципального образования, о развитии его общественной инфраструктуры и иной официальной информации | D89: 1113 | E89: Федеральный закон от 06.10.2003 N 131-ФЗ "Об общих принципах организации местного самоуправления в Российской Федерации" | F89: ст.17 п.7 | G89: 31.12.2005 не ограничен | K89: 12 | L89: 02 | M89: =SUM([1]УФ!M88+[1]ОК!M88+[1]РОО!M88+[1]УСХ!M88+'[1]З С '!M88+[1]РА!M88) -> 2303.9 | N89: =SUM([1]УФ!N88+[1]ОК!N88+[1]РОО!N88+[1]УСХ!N88+'[1]З С '!N88+[1]РА!N88) -> 2303.9 | O89: =SUM([1]УФ!O88+[1]ОК!O88+[1]РОО!O88+[1]УСХ!O88+'[1]З С '!O88+[1]РА!O88) -> 2303.7 | P89: =SUM([1]УФ!P88+[1]ОК!P88+[1]РОО!P88+[1]УСХ!P88+'[1]З С '!P88+[1]РА!P88) -> 2582.8 | Q89: =SUM([1]УФ!Q88+[1]ОК!Q88+[1]РОО!Q88+[1]УСХ!Q88+'[1]З С '!Q88+[1]РА!Q88) -> 2277 | R89: =SUM([1]УФ!R88+[1]ОК!R88+[1]РОО!R88+[1]УСХ!R88+'[1]З С '!R88+[1]РА!R88) -> 2284.7
B90: 1.2.14. | C90: осуществление международных и внешнеэкономических связей в соответствии с федеральными законами | D90: 1114 | M90: =SUM([1]УФ!M89+[1]ОК!M89+[1]РОО!M89+[1]УСХ!M89+'[1]З С '!M89+[1]РА!M89) -> 0 | N90: =SUM([1]УФ!N89+[1]ОК!N89+[1]РОО!N89+[1]УСХ!N89+'[1]З С '!N89+[1]РА!N89) -> 0 | O90: =SUM([1]УФ!O89+[1]ОК!O89+[1]РОО!O89+[1]УСХ!O89+'[1]З С '!O89+[1]РА!O89) -> 0 | P90: =SUM([1]УФ!P89+[1]ОК!P89+[1]РОО!P89+[1]УСХ!P89+'[1]З С '!P89+[1]РА!P89) -> 0 | Q90: =SUM([1]УФ!Q89+[1]ОК!Q89+[1]РОО!Q89+[1]УСХ!Q89+'[1]З С '!Q89+[1]РА!Q89) -> 0 | R90: =SUM([1]УФ!R89+[1]ОК!R89+[1]РОО!R89+[1]УСХ!R89+'[1]З С '!R89+[1]РА!R89) -> 0
B91: 1.2.15. | C91: организация профессионального образования и дополнительного профессионального образования выборных должностных лиц местного самоуправления, членов выборных органов местного самоуправления, депутатов представительных органов муниципальных образований, муниципальных служащих и работников муниципальных учреждений, организация подготовки кадров для муниципальной службы в порядке, предусмотренном законодательством Российской Федерации об образовании и законодательством Российской Федерации о муниципальной службе | D91: 1115 | M91: =SUM([1]УФ!M90+[1]ОК!M90+[1]РОО!M90+[1]УСХ!M90+'[1]З С '!M90+[1]РА!M90) -> 0 | N91: =SUM([1]УФ!N90+[1]ОК!N90+[1]РОО!N90+[1]УСХ!N90+'[1]З С '!N90+[1]РА!N90) -> 0 | O91: =SUM([1]УФ!O90+[1]ОК!O90+[1]РОО!O90+[1]УСХ!O90+'[1]З С '!O90+[1]РА!O90) -> 0 | P91: =SUM([1]УФ!P90+[1]ОК!P90+[1]РОО!P90+[1]УСХ!P90+'[1]З С '!P90+[1]РА!P90) -> 0 | Q91: =SUM([1]УФ!Q90+[1]ОК!Q90+[1]РОО!Q90+[1]УСХ!Q90+'[1]З С '!Q90+[1]РА!Q90) -> 0 | R91: =SUM([1]УФ!R90+[1]ОК!R90+[1]РОО!R90+[1]УСХ!R90+'[1]З С '!R90+[1]РА!R90) -> 0
B92: 1.2.16. | C92: утверждение и реализация муниципальных программ в области энергосбережения и повышения энергетической эффективности, организация проведения энергетического обследования многоквартирных домов, помещения в которых составляют муниципальный жилищный фонд в границах муниципального образования, организация и проведение иных мероприятий, предусмотренных законодательством об энергосбережении и о повышении энергетической эффективности | D92: 1116 | M92: =SUM([1]УФ!M91+[1]ОК!M91+[1]РОО!M91+[1]УСХ!M91+'[1]З С '!M91+[1]РА!M91) -> 0 | N92: =SUM([1]УФ!N91+[1]ОК!N91+[1]РОО!N91+[1]УСХ!N91+'[1]З С '!N91+[1]РА!N91) -> 0 | O92: =SUM([1]УФ!O91+[1]ОК!O91+[1]РОО!O91+[1]УСХ!O91+'[1]З С '!O91+[1]РА!O91) -> 0 | P92: =SUM([1]УФ!P91+[1]ОК!P91+[1]РОО!P91+[1]УСХ!P91+'[1]З С '!P91+[1]РА!P91) -> 0 | Q92: =SUM([1]УФ!Q91+[1]ОК!Q91+[1]РОО!Q91+[1]УСХ!Q91+'[1]З С '!Q91+[1]РА!Q91) -> 0 | R92: =SUM([1]УФ!R91+[1]ОК!R91+[1]РОО!R91+[1]УСХ!R91+'[1]З С '!R91+[1]РА!R91) -> 0
B93: 1.2.17. | C93: … | D93: 1117 | M93: =SUM([1]УФ!M92+[1]ОК!M92+[1]РОО!M92+[1]УСХ!M92+'[1]З С '!M92+[1]РА!M92) -> 0 | N93: =SUM([1]УФ!N92+[1]ОК!N92+[1]РОО!N92+[1]УСХ!N92+'[1]З С '!N92+[1]РА!N92) -> 0 | O93: =SUM([1]УФ!O92+[1]ОК!O92+[1]РОО!O92+[1]УСХ!O92+'[1]З С '!O92+[1]РА!O92) -> 0 | P93: =SUM([1]УФ!P92+[1]ОК!P92+[1]РОО!P92+[1]УСХ!P92+'[1]З С '!P92+[1]РА!P92) -> 0 | Q93: =SUM([1]УФ!Q92+[1]ОК!Q92+[1]РОО!Q92+[1]УСХ!Q92+'[1]З С '!Q92+[1]РА!Q92) -> 0 | R93: =SUM([1]УФ!R92+[1]ОК!R92+[1]РОО!R92+[1]УСХ!R92+'[1]З С '!R92+[1]РА!R92) -> 0
B94: … | C94: … | D94: … | M94: =SUM([1]УФ!M93+[1]ОК!M93+[1]РОО!M93+[1]УСХ!M93+'[1]З С '!M93+[1]РА!M93) -> 0 | N94: =SUM([1]УФ!N93+[1]ОК!N93+[1]РОО!N93+[1]УСХ!N93+'[1]З С '!N93+[1]РА!N93) -> 0 | O94: =SUM([1]УФ!O93+[1]ОК!O93+[1]РОО!O93+[1]УСХ!O93+'[1]З С '!O93+[1]РА!O93) -> 0 | P94: =SUM([1]УФ!P93+[1]ОК!P93+[1]РОО!P93+[1]УСХ!P93+'[1]З С '!P93+[1]РА!P93) -> 0 | Q94: =SUM([1]УФ!Q93+[1]ОК!Q93+[1]РОО!Q93+[1]УСХ!Q93+'[1]З С '!Q93+[1]РА!Q93) -> 0 | R94: =SUM([1]УФ!R93+[1]ОК!R93+[1]РОО!R93+[1]УСХ!R93+'[1]З С '!R93+[1]РА!R93) -> 0
B95: 1.2.99. | C95: … | D95: 1199 | M95: =SUM([1]УФ!M94+[1]ОК!M94+[1]РОО!M94+[1]УСХ!M94+'[1]З С '!M94+[1]РА!M94) -> 0 | N95: =SUM([1]УФ!N94+[1]ОК!N94+[1]РОО!N94+[1]УСХ!N94+'[1]З С '!N94+[1]РА!N94) -> 0 | O95: =SUM([1]УФ!O94+[1]ОК!O94+[1]РОО!O94+[1]УСХ!O94+'[1]З С '!O94+[1]РА!O94) -> 0 | P95: =SUM([1]УФ!P94+[1]ОК!P94+[1]РОО!P94+[1]УСХ!P94+'[1]З С '!P94+[1]РА!P94) -> 0 | Q95: =SUM([1]УФ!Q94+[1]ОК!Q94+[1]РОО!Q94+[1]УСХ!Q94+'[1]З С '!Q94+[1]РА!Q94) -> 0 | R95: =SUM([1]УФ!R94+[1]ОК!R94+[1]РОО!R94+[1]УСХ!R94+'[1]З С '!R94+[1]РА!R94) -> 0
B96: 1.3. | C96: Расходные обязательства, возникшие в результате принятия нормативных правовых актов муниципального района, заключения договоров (соглашений) в рамках реализации органами местного самоуправления муниципального района прав на решение вопросов, не отнесенных к вопросам местного значения муниципального района, всего | D96: 1200 | E96: х | F96: х | G96: х | H96: х | I96: х | J96: х | K96: х | L96: х
B97: 1.3.1. | C97: по перечню, предусмотренному Федеральным законом от 06.10.2003 № 131-ФЗ «Об общих принципах организации местного самоуправления в Российской Федерации», всего | D97: 1201 | E97: х | F97: х | G97: х | H97: х | I97: х | J97: х | K97: х | L97: х
B98: 1.3.1.1. | C98: создание музеев муниципального района | D98: 1202
B99: 1.3.1.2. | C99: участие в осуществлении деятельности по опеке и попечительству | D99: 1203
B100: 1.3.1.3. | C100: создание условий для осуществления деятельности, связанной с реализацией прав местных национально-культурных автономий на территории муниципального района | D100: 1204
B101: 1.3.1.4. | C101: оказание содействия национально-культурному развитию народов Российской Федерации и реализации мероприятий в сфере межнациональных отношений на территории муниципального района | D101: 1205
B102: 1.3.1.5. | C102: осуществление функций учредителя муниципальных образовательных организаций высшего образования, находящихся в их ведении по состоянию на 31 декабря 2008 года | D102: 1206
B103: 1.3.1.6. | C103: создание условий для развития туризма | D103: 1207
B104: 1.3.1.7. | C104: оказание поддержки общественным наблюдательным комиссиям, осуществляющим общественный контроль за обеспечением прав человека и содействие лицам, находящимся в местах принудительного содержания | D104: 1208
B105: 1.3.1.8. | C105: оказание поддержки общественным объединениям инвалидов, а также созданным общероссийскими общественными объединениями инвалидов организациям в соответствии с Федеральным законом от 24 ноября 1995 года № 181-ФЗ «О социальной защите инвалидов в Российской Федерации» | D105: 1209
B106: 1.3.1.9. | C106: осуществление мероприятий, предусмотренных Федеральным законом «О донорстве крови и ее компонентов» | D106: 1210
B107: 1.3.1.10. | C107: совершение нотариальных действий, предусмотренных законодательством, в случае отсутствия в расположенном на межселенной территории населенном пункте нотариуса | D107: 1211
B108: 1.3.1.11. | C108: создание условий для организации проведения независимой оценки качества оказания услуг организациями в порядке и на условиях, которые установлены федеральными законами | D108: 1212
B109: 1.3.1.12. | C109: … | D109: 1213
B110: … | C110: … | D110: …
B111: 1.3.1.98. | C111: … | D111: 1299
B112: 1.3.2. | C112: по участию в осуществлении государственных полномочий (не переданных в соответствии со статьей 19 Федерального закона от 06.10.2003 № 131-ФЗ «Об общих принципах организации местного самоуправления в Российской Федерации»), если это участие предусмотрено федеральными законами, всего | D112: 1300 | E112: х | F112: х | G112: х | H112: х | I112: х | J112: х | K112: х | L112: х
B113: 1.3.2.1. | C113: … | D113: 1301
B114: … | C114: … | D114: …
B115: 1.3.2.99 | C115: … | D115: 1399
B116: 1.3.3. | C116: по реализации вопросов, не отнесенных к компетенции органов местного самоуправления других муниципальных образований, органов государственной власти и не исключенных из их компетенции федеральными законами и законами субъектов Российской Федерации, всего | D116: 1400 | E116: х | F116: х | G116: х | H116: х | I116: х | J116: х | K116: х | L116: х
B117: 1.3.3.1. | C117: … | D117: 1401
B118: … | C118: … | D118: …
B119: 1.3.3.99. | C119: … | D119: 1499
B120: 1.4. | C120: Расходные обязательства, возникшие в результате принятия нормативных правовых актов муниципального района, заключения договоров (соглашений) в рамках реализации органами местного самоуправления муниципального района отдельных государственных полномочий, переданных органами государственной власти Российской Федерации и (или) органами государственной власти субъекта Российской | D120: 1500 | E120: х | F120: х | G120: х | H120: х | I120: х | J120: х | K120: х | L120: х | M120: =SUM(M122) -> 165265.4 | N120: 164741.8 | O120: 213420.4 | P120: 181229.8 | Q120: 156591.2 | R120: 165576
C121: Федерации, всего
B122: 1.4.1. | C122: за счет субвенций, предоставленных из федерального бюджета или бюджета субъекта Российской Федерации, всего | D122: 1501 | E122: х | F122: х | G122: х | H122: х | I122: х | J122: х | K122: х | L122: х | M122: =SUM(M123:M177) -> 165265.4 | N122: 164741.8 | O122: 213420.4 | P122: 181229.8 | Q122: 156591.2 | R122: 165576
B123: 1.4.1.1. | C123: Субвенции на возмещение части затрат сельскохозяйственных товаропроизводителей на уплату страховой премии, начисленной по договору сельскохозяйственного страхования в области животноводства, за счет средств областного бюджета | D123: 1502 | P123: =SUM([1]УФ!P122+[1]ОК!P122+[1]РОО!P122+[1]УСХ!P122+'[1]З С '!P122+[1]РА!P122) -> 0 | Q123: =SUM([1]УФ!Q122+[1]ОК!Q122+[1]РОО!Q122+[1]УСХ!Q122+'[1]З С '!Q122+[1]РА!Q122) -> 0 | R123: =SUM([1]УФ!R122+[1]ОК!R122+[1]РОО!R122+[1]УСХ!R122+'[1]З С '!R122+[1]РА!R122) -> 0
B124: 1.4.1.2. | C124: Субвенции на исполнение полномочий в сфере общего образования в муниципальных дошкольных образовательных организациях | D124: 1503 | H124: Закон Нижегородской области от 28.11.2013 N 160-З "О предоставлении органам местного самоуправления муниципальных районов и городских округов Нижегородской области субвенций на исполнение полномочий в сфере общего образования" | I124: ст.6 п.2 | J124: 2013-11-28 | K124: 07 | L124: 01 | M124: =SUM([1]УФ!M123+[1]ОК!M123+[1]РОО!M123+[1]УСХ!M123+'[1]З С '!M123+[1]РА!M123) -> 51262.1 | N124: =SUM([1]УФ!N123+[1]ОК!N123+[1]РОО!N123+[1]УСХ!N123+'[1]З С '!N123+[1]РА!N123) -> 51262.1 | O124: =SUM([1]УФ!O123+[1]ОК!O123+[1]РОО!O123+[1]УСХ!O123+'[1]З С '!O123+[1]РА!O123) -> 55146.5 | P124: =SUM([1]УФ!P123+[1]ОК!P123+[1]РОО!P123+[1]УСХ!P123+'[1]З С '!P123+[1]РА!P123) -> 50345.5 | Q124: =SUM([1]УФ!Q123+[1]ОК!Q123+[1]РОО!Q123+[1]УСХ!Q123+'[1]З С '!Q123+[1]РА!Q123) -> 50626.7 | R124: =SUM([1]УФ!R123+[1]ОК!R123+[1]РОО!R123+[1]УСХ!R123+'[1]З С '!R123+[1]РА!R123) -> 50626.7
B125: 1.4.1.3. | C125: Субвенции на исполнение полномочий по финансовому обеспечению получения дошкольного образования в частных дошкольных образовательных организациях посредством предоставления указанным образовательным организациям субсидий на возмещение затрат, включая расходы на оплату труда, приобретение учебников и учебных пособий, средств обучения, игр, игрушек (за исключением расходов на содержание зданий и оплату коммунальных услуг) | D125: 1504 | M125: =SUM([1]УФ!M124+[1]ОК!M124+[1]РОО!M124+[1]УСХ!M124+'[1]З С '!M124+[1]РА!M124) -> 0 | N125: =SUM([1]УФ!N124+[1]ОК!N124+[1]РОО!N124+[1]УСХ!N124+'[1]З С '!N124+[1]РА!N124) -> 0 | O125: =SUM([1]УФ!O124+[1]ОК!O124+[1]РОО!O124+[1]УСХ!O124+'[1]З С '!O124+[1]РА!O124) -> 0 | P125: =SUM([1]УФ!P124+[1]ОК!P124+[1]РОО!P124+[1]УСХ!P124+'[1]З С '!P124+[1]РА!P124) -> 0 | Q125: =SUM([1]УФ!Q124+[1]ОК!Q124+[1]РОО!Q124+[1]УСХ!Q124+'[1]З С '!Q124+[1]РА!Q124) -> 0 | R125: =SUM([1]УФ!R124+[1]ОК!R124+[1]РОО!R124+[1]УСХ!R124+'[1]З С '!R124+[1]РА!R124) -> 0
B126: 1.4.1.4. | C126: Субвенции на осуществление полномочий по созданию и организации деятельности муниципальных комиссий по делам несовершеннолетних и защите их прав | D126: 1505 | H126: Закон Нижегородской области от 26.10.2006 N 121-З "О комиссиях по делам несовершеннолетних и защите их прав в Нижегородской области" | I126: ст.7 | J126: 2006-10-26 | K126: 01 | L126: 04 | M126: =SUM([1]УФ!M125+[1]ОК!M125+[1]РОО!M125+[1]УСХ!M125+'[1]З С '!M125+[1]РА!M125) -> 361 | N126: =SUM([1]УФ!N125+[1]ОК!N125+[1]РОО!N125+[1]УСХ!N125+'[1]З С '!N125+[1]РА!N125) -> 361 | O126: =SUM([1]УФ!O125+[1]ОК!O125+[1]РОО!O125+[1]УСХ!O125+'[1]З С '!O125+[1]РА!O125) -> 420.8 | P126: =SUM([1]УФ!P125+[1]ОК!P125+[1]РОО!P125+[1]УСХ!P125+'[1]З С '!P125+[1]РА!P125) -> 448.2 | Q126: =SUM([1]УФ!Q125+[1]ОК!Q125+[1]РОО!Q125+[1]УСХ!Q125+'[1]З С '!Q125+[1]РА!Q125) -> 464.9 | R126: =SUM([1]УФ!R125+[1]ОК!R125+[1]РОО!R125+[1]УСХ!R125+'[1]З С '!R125+[1]РА!R125) -> 482.3
B127: 1.4.1.5. | C127: Субвенции на осуществление полномочий по поддержке сельскохозяйственного производства | D127: 1506 | H127: Закон Нижегородской области от 11.11.2005 N 176-З "О наделении органов местного самоуправления Нижегородской области отдельными государственными полномочиями по поддержке сельскохозяйственного производства" | I127: ст.5 | J127: 2005-11-11 | K127: 04 | L127: 05 | M127: =SUM([1]УФ!M126+[1]ОК!M126+[1]РОО!M126+[1]УСХ!M126+'[1]З С '!M126+[1]РА!M126) -> 3751.5 | N127: =SUM([1]УФ!N126+[1]ОК!N126+[1]РОО!N126+[1]УСХ!N126+'[1]З С '!N126+[1]РА!N126) -> 3751.5 | O127: =SUM([1]УФ!O126+[1]ОК!O126+[1]РОО!O126+[1]УСХ!O126+'[1]З С '!O126+[1]РА!O126) -> 4079.9 | P127: =SUM([1]УФ!P126+[1]ОК!P126+[1]РОО!P126+[1]УСХ!P126+'[1]З С '!P126+[1]РА!P126) -> 3975.3 | Q127: =SUM([1]УФ!Q126+[1]ОК!Q126+[1]РОО!Q126+[1]УСХ!Q126+'[1]З С '!Q126+[1]РА!Q126) -> 4116.1 | R127: =SUM([1]УФ!R126+[1]ОК!R126+[1]РОО!R126+[1]УСХ!R126+'[1]З С '!R126+[1]РА!R126) -> 4262.8
B128: 1.4.1.6. | C128: Субвенции на осуществление полномочий по организационно-техническому и информационно-методическому сопровождению аттестации педагогических работников муниципальных и частных организаций, осуществляющих образовательную деятельность, с целью установления соответствия уровня квалификации требованиям, предъявляемым к первой квалификационной категории | D128: 1507 | H128: Закон Нижегородской области от 21.10.2005 N 140-З "О наделении органов местного самоуправления отдельными государственными полномочиями в области образования" | I128: ст.5 п.4 | J128: 2005-10-21 | K128: 07 | L128: 09 | M128: =SUM([1]УФ!M127+[1]ОК!M127+[1]РОО!M127+[1]УСХ!M127+'[1]З С '!M127+[1]РА!M127) -> 472.7 | N128: =SUM([1]УФ!N127+[1]ОК!N127+[1]РОО!N127+[1]УСХ!N127+'[1]З С '!N127+[1]РА!N127) -> 472.7 | O128: =SUM([1]УФ!O127+[1]ОК!O127+[1]РОО!O127+[1]УСХ!O127+'[1]З С '!O127+[1]РА!O127) -> 491.4 | P128: =SUM([1]УФ!P127+[1]ОК!P127+[1]РОО!P127+[1]УСХ!P127+'[1]З С '!P127+[1]РА!P127) -> 611 | Q128: =SUM([1]УФ!Q127+[1]ОК!Q127+[1]РОО!Q127+[1]УСХ!Q127+'[1]З С '!Q127+[1]РА!Q127) -> 637.4 | R128: =SUM([1]УФ!R127+[1]ОК!R127+[1]РОО!R127+[1]УСХ!R127+'[1]З С '!R127+[1]РА!R127) -> 665.1
B129: 1.4.1.7. | C129: Субвенции на осуществление полномочий по организации и осуществлению деятельности по опеке и попечительству в отношении несовершеннолетних граждан | D129: 1508 | H129: Закон Нижегородской области от 07.09.2007 N 125-З "О наделении органов местного самоуправления муниципальных районов и городских округов Нижегородской области отдельными государственными полномочиями по организации и осуществлению деятельности по опеке и попечительству в отношении несовершеннолетних граждан" | J129: 2008-01-01 | K129: 07 | L129: 09 | M129: =SUM([1]УФ!M128+[1]ОК!M128+[1]РОО!M128+[1]УСХ!M128+'[1]З С '!M128+[1]РА!M128) -> 362 | N129: =SUM([1]УФ!N128+[1]ОК!N128+[1]РОО!N128+[1]УСХ!N128+'[1]З С '!N128+[1]РА!N128) -> 362 | O129: =SUM([1]УФ!O128+[1]ОК!O128+[1]РОО!O128+[1]УСХ!O128+'[1]З С '!O128+[1]РА!O128) -> 400.3 | P129: =SUM([1]УФ!P128+[1]ОК!P128+[1]РОО!P128+[1]УСХ!P128+'[1]З С '!P128+[1]РА!P128) -> 449.8 | Q129: =SUM([1]УФ!Q128+[1]ОК!Q128+[1]РОО!Q128+[1]УСХ!Q128+'[1]З С '!Q128+[1]РА!Q128) -> 466.5 | R129: =SUM([1]УФ!R128+[1]ОК!R128+[1]РОО!R128+[1]УСХ!R128+'[1]З С '!R128+[1]РА!R128) -> 483.9
B130: 1.4.1.8. | C130: Субвенции на исполнение полномочий в сфере общего образования в муниципальных общеобразовательных организациях | D130: 1509 | H130: Закон Нижегородской области от 28.11.2013 N 160-З "О предоставлении органам местного самоуправления муниципальных районов и городских округов Нижегородской области субвенций на исполнение полномочий в сфере общего образования" | I130: ст.6 п.2 | J130: 2013-11-28 | K130: 07 | L130: 02 | M130: =SUM([1]УФ!M129+[1]ОК!M129+[1]РОО!M129+[1]УСХ!M129+'[1]З С '!M129+[1]РА!M129) -> 86744.7 | N130: =SUM([1]УФ!N129+[1]ОК!N129+[1]РОО!N129+[1]УСХ!N129+'[1]З С '!N129+[1]РА!N129) -> 86744.7 | O130: =SUM([1]УФ!O129+[1]ОК!O129+[1]РОО!O129+[1]УСХ!O129+'[1]З С '!O129+[1]РА!O129) -> 96417.5 | P130: =SUM([1]УФ!P129+[1]ОК!P129+[1]РОО!P129+[1]УСХ!P129+'[1]З С '!P129+[1]РА!P129) -> 80351.8 | Q130: =SUM([1]УФ!Q129+[1]ОК!Q129+[1]РОО!Q129+[1]УСХ!Q129+'[1]З С '!Q129+[1]РА!Q129) -> 80800.7 | R130: =SUM([1]УФ!R129+[1]ОК!R129+[1]РОО!R129+[1]УСХ!R129+'[1]З С '!R129+[1]РА!R129) -> 80800.7
B131: 1.4.1.9. | C131: Субвенции бюджету городского округа город Нижний Новгород на осуществление полномочий в области социальной поддержки и социального обслуживания семей, имеющих детей | D131: 1510 | M131: =SUM([1]УФ!M130+[1]ОК!M130+[1]РОО!M130+[1]УСХ!M130+'[1]З С '!M130+[1]РА!M130) -> 0 | N131: =SUM([1]УФ!N130+[1]ОК!N130+[1]РОО!N130+[1]УСХ!N130+'[1]З С '!N130+[1]РА!N130) -> 0 | O131: =SUM([1]УФ!O130+[1]ОК!O130+[1]РОО!O130+[1]УСХ!O130+'[1]З С '!O130+[1]РА!O130) -> 0 | P131: =SUM([1]УФ!P130+[1]ОК!P130+[1]РОО!P130+[1]УСХ!P130+'[1]З С '!P130+[1]РА!P130) -> 0 | Q131: =SUM([1]УФ!Q130+[1]ОК!Q130+[1]РОО!Q130+[1]УСХ!Q130+'[1]З С '!Q130+[1]РА!Q130) -> 0 | R131: =SUM([1]УФ!R130+[1]ОК!R130+[1]РОО!R130+[1]УСХ!R130+'[1]З С '!R130+[1]РА!R130) -> 0
B132: 1.4.1.10. | C132: Субвенции на осуществление выплаты компенсации части родительской платы за присмотр и уход за ребенком в государственных и муниципальных дошкольных образовательных организациях, частных образовательных организациях, реализующих образовательную программу дошкольного образования, в том числе обеспечение организации выплаты компенсации части родительской платы | D132: 1511 | H132: Закон Нижегородской области от 07.09.2007 N 121-З "О наделении органов местного самоуправления муниципальных районов и городских округов Нижегородской области государственными полномочиями по осуществлению денежных выплат и выплат вознаграждения отдельным категориям граждан" | I132: ст.5 п.3 | J132: 2008-01-01 | K132: 10 | L132: 04 | M132: =SUM([1]УФ!M131+[1]ОК!M131+[1]РОО!M131+[1]УСХ!M131+'[1]З С '!M131+[1]РА!M131) -> 1900.1 | N132: =SUM([1]УФ!N131+[1]ОК!N131+[1]РОО!N131+[1]УСХ!N131+'[1]З С '!N131+[1]РА!N131) -> 1591.9 | O132: =SUM([1]УФ!O131+[1]ОК!O131+[1]РОО!O131+[1]УСХ!O131+'[1]З С '!O131+[1]РА!O131) -> 1951.6 | P132: =SUM([1]УФ!P131+[1]ОК!P131+[1]РОО!P131+[1]УСХ!P131+'[1]З С '!P131+[1]РА!P131) -> 2171 | Q132: =SUM([1]УФ!Q131+[1]ОК!Q131+[1]РОО!Q131+[1]УСХ!Q131+'[1]З С '!Q131+[1]РА!Q131) -> 2171 | R132: =SUM([1]УФ!R131+[1]ОК!R131+[1]РОО!R131+[1]УСХ!R131+'[1]З С '!R131+[1]РА!R131) -> 2171
B133: 1.4.1.11. | C133: Субвенции на осуществление органами местного самоуправления муниципальных районов полномочий органов государственной власти Нижегородской области по расчету и предоставлению дотаций бюджетам поселений | D133: 1512 | M133: =SUM([1]УФ!M132+[1]ОК!M132+[1]РОО!M132+[1]УСХ!M132+'[1]З С '!M132+[1]РА!M132) -> 0 | N133: =SUM([1]УФ!N132+[1]ОК!N132+[1]РОО!N132+[1]УСХ!N132+'[1]З С '!N132+[1]РА!N132) -> 0 | O133: =SUM([1]УФ!O132+[1]ОК!O132+[1]РОО!O132+[1]УСХ!O132+'[1]З С '!O132+[1]РА!O132) -> 0 | P133: =SUM([1]УФ!P132+[1]ОК!P132+[1]РОО!P132+[1]УСХ!P132+'[1]З С '!P132+[1]РА!P132) -> 0 | Q133: =SUM([1]УФ!Q132+[1]ОК!Q132+[1]РОО!Q132+[1]УСХ!Q132+'[1]З С '!Q132+[1]РА!Q132) -> 0 | R133: =SUM([1]УФ!R132+[1]ОК!R132+[1]РОО!R132+[1]УСХ!R132+'[1]З С '!R132+[1]РА!R132) -> 0
B134: 1.4.1.12. | C134: Субвенции на возмещение части процентной ставки по инвестиционным кредитам (займам) на развитие растениеводства, переработки и развития инфраструктуры и логистического обеспечения рынков продукции растениеводства за счет средств областного бюджета | D134: 1513 | M134: =SUM([1]УФ!M133+[1]ОК!M133+[1]РОО!M133+[1]УСХ!M133+'[1]З С '!M133+[1]РА!M133) -> 0 | N134: =SUM([1]УФ!N133+[1]ОК!N133+[1]РОО!N133+[1]УСХ!N133+'[1]З С '!N133+[1]РА!N133) -> 0 | O134: =SUM([1]УФ!O133+[1]ОК!O133+[1]РОО!O133+[1]УСХ!O133+'[1]З С '!O133+[1]РА!O133) -> 0 | P134: =SUM([1]УФ!P133+[1]ОК!P133+[1]РОО!P133+[1]УСХ!P133+'[1]З С '!P133+[1]РА!P133) -> 0 | Q134: =SUM([1]УФ!Q133+[1]ОК!Q133+[1]РОО!Q133+[1]УСХ!Q133+'[1]З С '!Q133+[1]РА!Q133) -> 0 | R134: =SUM([1]УФ!R133+[1]ОК!R133+[1]РОО!R133+[1]УСХ!R133+'[1]З С '!R133+[1]РА!R133) -> 0
B135: 1.4.1.13. | C135: Субвенции на возмещение части затрат на приобретение элитных семян за счет средств областного бюджета | D135: 1514 | H135: Закон Нижегородской области от 11.11.2005 N 176-З "О наделении органов местного самоуправления Нижегородской области отдельными государственными полномочиями по поддержке сельскохозяйственного производства" | I135: пр.27 | J135: 2006-01-01 | K135: 04 | L135: 05 | M135: =SUM([1]УФ!M134+[1]ОК!M134+[1]РОО!M134+[1]УСХ!M134+'[1]З С '!M134+[1]РА!M134) -> 113.5 | N135: =SUM([1]УФ!N134+[1]ОК!N134+[1]РОО!N134+[1]УСХ!N134+'[1]З С '!N134+[1]РА!N134) -> 113.5 | O135: =SUM([1]УФ!O134+[1]ОК!O134+[1]РОО!O134+[1]УСХ!O134+'[1]З С '!O134+[1]РА!O134) -> 1367.7 | P135: =SUM([1]УФ!P134+[1]ОК!P134+[1]РОО!P134+[1]УСХ!P134+'[1]З С '!P134+[1]РА!P134) -> 107.2 | Q135: =SUM([1]УФ!Q134+[1]ОК!Q134+[1]РОО!Q134+[1]УСХ!Q134+'[1]З С '!Q134+[1]РА!Q134) -> 107.2 | R135: =SUM([1]УФ!R134+[1]ОК!R134+[1]РОО!R134+[1]УСХ!R134+'[1]З С '!R134+[1]РА!R134) -> 107.2
B136: 1.4.1.14. | C136: Субвенции на исполнение полномочий по финансовому обеспечению получения дошкольного, начального общего, основного общего, среднего общего образования в частных общеобразовательных организациях, осуществляющих образовательную деятельность по имеющим государственную аккредитацию основным общеобразовательным программам, посредством предоставления указанным образовательным организациям субсидий на возмещение затрат, включая расходы на оплату труда, приобретение учебников и учебных пособий, средств обучения, игр, игрушек (за исключением расходов на содержание зданий и оплату коммунальных услуг) | D136: 1515 | M136: =SUM([1]УФ!M135+[1]ОК!M135+[1]РОО!M135+[1]УСХ!M135+'[1]З С '!M135+[1]РА!M135) -> 0 | N136: =SUM([1]УФ!N135+[1]ОК!N135+[1]РОО!N135+[1]УСХ!N135+'[1]З С '!N135+[1]РА!N135) -> 0 | O136: =SUM([1]УФ!O135+[1]ОК!O135+[1]РОО!O135+[1]УСХ!O135+'[1]З С '!O135+[1]РА!O135) -> 0 | P136: =SUM([1]УФ!P135+[1]ОК!P135+[1]РОО!P135+[1]УСХ!P135+'[1]З С '!P135+[1]РА!P135) -> 0 | Q136: =SUM([1]УФ!Q135+[1]ОК!Q135+[1]РОО!Q135+[1]УСХ!Q135+'[1]З С '!Q135+[1]РА!Q135) -> 0 | R136: =SUM([1]УФ!R135+[1]ОК!R135+[1]РОО!R135+[1]УСХ!R135+'[1]З С '!R135+[1]РА!R135) -> 0
B137: 1.4.1.15. | C137: Субвенции на поддержку племенного животноводства за счет средств областного бюджета | D137: 1516 | H137: Закон Нижегородской области от 11.11.2005 N 176-З "О наделении органов местного самоуправления Нижегородской области отдельными государственными полномочиями по поддержке сельскохозяйственного производства" | J137: 2006-01-01 | K137: 04 | L137: 05 | M137: =SUM([1]УФ!M136+[1]ОК!M136+[1]РОО!M136+[1]УСХ!M136+'[1]З С '!M136+[1]РА!M136) -> 0 | N137: =SUM([1]УФ!N136+[1]ОК!N136+[1]РОО!N136+[1]УСХ!N136+'[1]З С '!N136+[1]РА!N136) -> 0 | O137: =SUM([1]УФ!O136+[1]ОК!O136+[1]РОО!O136+[1]УСХ!O136+'[1]З С '!O136+[1]РА!O136) -> 26755.3 | P137: =SUM([1]УФ!P136+[1]ОК!P136+[1]РОО!P136+[1]УСХ!P136+'[1]З С '!P136+[1]РА!P136) -> 793.2 | Q137: =SUM([1]УФ!Q136+[1]ОК!Q136+[1]РОО!Q136+[1]УСХ!Q136+'[1]З С '!Q136+[1]РА!Q136) -> 793.2 | R137: =SUM([1]УФ!R136+[1]ОК!R136+[1]РОО!R136+[1]УСХ!R136+'[1]З С '!R136+[1]РА!R136) -> 1697.8
B138: 1.4.1.16. | C138: Субвенции на возмещение части процентной ставки по долгосрочным, среднесрочным и краткосрочным кредитам, взятым малыми формами хозяйствования, за счет средств областного бюджета | D138: 1517 | H138: Закон Нижегородской области от 11.11.2005 N 176-З "О наделении органов местного самоуправления Нижегородской области отдельными государственными полномочиями по поддержке сельскохозяйственного производства" | J138: 2006-01-01 | K138: 04 | L138: 05 | M138: =SUM([1]УФ!M137+[1]ОК!M137+[1]РОО!M137+[1]УСХ!M137+'[1]З С '!M137+[1]РА!M137) -> 87.4 | N138: =SUM([1]УФ!N137+[1]ОК!N137+[1]РОО!N137+[1]УСХ!N137+'[1]З С '!N137+[1]РА!N137) -> 87.4 | O138: =SUM([1]УФ!O137+[1]ОК!O137+[1]РОО!O137+[1]УСХ!O137+'[1]З С '!O137+[1]РА!O137) -> 95 | P138: =SUM([1]УФ!P137+[1]ОК!P137+[1]РОО!P137+[1]УСХ!P137+'[1]З С '!P137+[1]РА!P137) -> 41.3 | Q138: =SUM([1]УФ!Q137+[1]ОК!Q137+[1]РОО!Q137+[1]УСХ!Q137+'[1]З С '!Q137+[1]РА!Q137) -> 33 | R138: =SUM([1]УФ!R137+[1]ОК!R137+[1]РОО!R137+[1]УСХ!R137+'[1]З С '!R137+[1]РА!R137) -> 26.4
B139: 1.4.1.17. | C139: Субвенции на поддержку племенного крупного рогатого скота молочного направления за счет средств областного бюджета | D139: 1518 | H139: Закон Нижегородской области от 11.11.2005 N 176-З (ред. от 01.06.2016) | I139: ст.1 п.44 | J139: 2006-01-01 | K139: 04 | L139: 05 | M139: =SUM([1]УФ!M138+[1]ОК!M138+[1]РОО!M138+[1]УСХ!M138+'[1]З С '!M138+[1]РА!M138) -> 0 | N139: =SUM([1]УФ!N138+[1]ОК!N138+[1]РОО!N138+[1]УСХ!N138+'[1]З С '!N138+[1]РА!N138) -> 0 | O139: =SUM([1]УФ!O138+[1]ОК!O138+[1]РОО!O138+[1]УСХ!O138+'[1]З С '!O138+[1]РА!O138) -> 0 | P139: =SUM([1]УФ!P138+[1]ОК!P138+[1]РОО!P138+[1]УСХ!P138+'[1]З С '!P138+[1]РА!P138) -> 0 | Q139: =SUM([1]УФ!Q138+[1]ОК!Q138+[1]РОО!Q138+[1]УСХ!Q138+'[1]З С '!Q138+[1]РА!Q138) -> 0 | R139: =SUM([1]УФ!R138+[1]ОК!R138+[1]РОО!R138+[1]УСХ!R138+'[1]З С '!R138+[1]РА!R138) -> 0
B140: 1.4.1.18. | C140: Субвенции на осуществление выплат на возмещение части расходов по приобретению путевок в детские санатории, санаторно-оздоровительные центры (лагеря) круглогодичного действия и иные организации, осуществляющие санаторно-курортное лечение детей в соответствии с имеющейся лицензией, иные организации, осуществляющие санаторно-курортную помощь детям в соответствии с имеющейся лицензией, расположенные на территории Российской Федерации | D140: 1519 | H140: Закон Нижегородской области от 07.09.2007 N 121-З "О наделении органов местного самоуправления муниципальных районов и городских округов Нижегородской области государственными полномочиями по осуществлению денежных выплат и выплат вознаграждения отдельным категориям граждан" | J140: 2008-01-01 | K140: 07 | L140: 07 | M140: =SUM([1]УФ!M139+[1]ОК!M139+[1]РОО!M139+[1]УСХ!M139+'[1]З С '!M139+[1]РА!M139) -> 233.9 | N140: =SUM([1]УФ!N139+[1]ОК!N139+[1]РОО!N139+[1]УСХ!N139+'[1]З С '!N139+[1]РА!N139) -> 233.9 | O140: =SUM([1]УФ!O139+[1]ОК!O139+[1]РОО!O139+[1]УСХ!O139+'[1]З С '!O139+[1]РА!O139) -> 243.7 | P140: =SUM([1]УФ!P139+[1]ОК!P139+[1]РОО!P139+[1]УСХ!P139+'[1]З С '!P139+[1]РА!P139) -> 293.4 | Q140: =SUM([1]УФ!Q139+[1]ОК!Q139+[1]РОО!Q139+[1]УСХ!Q139+'[1]З С '!Q139+[1]РА!Q139) -> 305 | R140: =SUM([1]УФ!R139+[1]ОК!R139+[1]РОО!R139+[1]УСХ!R139+'[1]З С '!R139+[1]РА!R139) -> 317.2
B141: 1.4.1.19. | C141: Субвенции на стабилизацию и увеличение поголовья крупного рогатого скота за счет средств областного бюджета | D141: 1520 | H141: Закон Нижегородской области от 11.11.2005 N 176-З "О наделении органов местного самоуправления Нижегородской области отдельными государственными полномочиями по поддержке сельскохозяйственного производства" | J141: 2006-01-01 | K141: 04 | L141: 05 | M141: =SUM([1]УФ!M140+[1]ОК!M140+[1]РОО!M140+[1]УСХ!M140+'[1]З С '!M140+[1]РА!M140) -> 65.2 | N141: =SUM([1]УФ!N140+[1]ОК!N140+[1]РОО!N140+[1]УСХ!N140+'[1]З С '!N140+[1]РА!N140) -> 65.2 | O141: =SUM([1]УФ!O140+[1]ОК!O140+[1]РОО!O140+[1]УСХ!O140+'[1]З С '!O140+[1]РА!O140) -> 0 | P141: =SUM([1]УФ!P140+[1]ОК!P140+[1]РОО!P140+[1]УСХ!P140+'[1]З С '!P140+[1]РА!P140) -> 0 | Q141: =SUM([1]УФ!Q140+[1]ОК!Q140+[1]РОО!Q140+[1]УСХ!Q140+'[1]З С '!Q140+[1]РА!Q140) -> 0 | R141: =SUM([1]УФ!R140+[1]ОК!R140+[1]РОО!R140+[1]УСХ!R140+'[1]З С '!R140+[1]РА!R140) -> 0
B142: 1.4.1.20. | C142: Субвенции для финансового обеспечения стимулирования производства сельскохозяйственной продукции гражданами, ведущими личное подсобное хозяйство, за счет средств областного бюджета | D142: 1521 | M142: =SUM([1]УФ!M141+[1]ОК!M141+[1]РОО!M141+[1]УСХ!M141+'[1]З С '!M141+[1]РА!M141) -> 0 | N142: =SUM([1]УФ!N141+[1]ОК!N141+[1]РОО!N141+[1]УСХ!N141+'[1]З С '!N141+[1]РА!N141) -> 0 | O142: =SUM([1]УФ!O141+[1]ОК!O141+[1]РОО!O141+[1]УСХ!O141+'[1]З С '!O141+[1]РА!O141) -> 0 | P142: =SUM([1]УФ!P141+[1]ОК!P141+[1]РОО!P141+[1]УСХ!P141+'[1]З С '!P141+[1]РА!P141) -> 0 | Q142: =SUM([1]УФ!Q141+[1]ОК!Q141+[1]РОО!Q141+[1]УСХ!Q141+'[1]З С '!Q141+[1]РА!Q141) -> 0 | R142: =SUM([1]УФ!R141+[1]ОК!R141+[1]РОО!R141+[1]УСХ!R141+'[1]З С '!R141+[1]РА!R141) -> 0
B143: 1.4.1.21. | C143: Субвенции на осуществление полномочий по организации проведения мероприятий по предупреждению и ликвидации болезней животных, их лечению, защите населения от болезней, общих для человека и животных, в части обеспечения безопасности сибиреязвенных скотомогильников | D143: 1522 | M143: =SUM([1]УФ!M142+[1]ОК!M142+[1]РОО!M142+[1]УСХ!M142+'[1]З С '!M142+[1]РА!M142) -> 0 | N143: =SUM([1]УФ!N142+[1]ОК!N142+[1]РОО!N142+[1]УСХ!N142+'[1]З С '!N142+[1]РА!N142) -> 0 | O143: =SUM([1]УФ!O142+[1]ОК!O142+[1]РОО!O142+[1]УСХ!O142+'[1]З С '!O142+[1]РА!O142) -> 0 | P143: =SUM([1]УФ!P142+[1]ОК!P142+[1]РОО!P142+[1]УСХ!P142+'[1]З С '!P142+[1]РА!P142) -> 0 | Q143: =SUM([1]УФ!Q142+[1]ОК!Q142+[1]РОО!Q142+[1]УСХ!Q142+'[1]З С '!Q142+[1]РА!Q142) -> 0 | R143: =SUM([1]УФ!R142+[1]ОК!R142+[1]РОО!R142+[1]УСХ!R142+'[1]З С '!R142+[1]РА!R142) -> 0
B144: 1.4.1.22. | C144: Субвенции на осуществление полномочий по организации проведения мероприятий по предупреждению и ликвидации болезней животных, их лечению, защите населения от болезней, общих для человека и животных, в части регулирования численности безнадзорных животных | D144: 1523 | H144: Закон Нижегородской области от 03.10.2013 N 129-З "О наделении органов местного самоуправления муниципальных районов и городских округов Нижегородской области отдельными государственными полномочиями по организации проведения мероприятий по предупреждению и ликвидации болезней животных, их лечению, отлову и содержанию безнадзорных животных, защите населения от болезней, общих для человека и животных" | J144: 2013-10-03 | K144: 04 | L144: 05 | M144: =SUM([1]УФ!M143+[1]ОК!M143+[1]РОО!M143+[1]УСХ!M143+'[1]З С '!M143+[1]РА!M143) -> 87.7 | N144: =SUM([1]УФ!N143+[1]ОК!N143+[1]РОО!N143+[1]УСХ!N143+'[1]З С '!N143+[1]РА!N143) -> 87.1 | O144: =SUM([1]УФ!O143+[1]ОК!O143+[1]РОО!O143+[1]УСХ!O143+'[1]З С '!O143+[1]РА!O143) -> 103.6 | P144: =SUM([1]УФ!P143+[1]ОК!P143+[1]РОО!P143+[1]УСХ!P143+'[1]З С '!P143+[1]РА!P143) -> 73.4 | Q144: =SUM([1]УФ!Q143+[1]ОК!Q143+[1]РОО!Q143+[1]УСХ!Q143+'[1]З С '!Q143+[1]РА!Q143) -> 73.4 | R144: =SUM([1]УФ!R143+[1]ОК!R143+[1]РОО!R143+[1]УСХ!R143+'[1]З С '!R143+[1]РА!R143) -> 73.4
B145: 1.4.1.23. | C145: Субвенции на возмещение части затрат сельскохозяйственных товаропроизводителей на уплату страховой премии, начисленной по договору сельскохозяйственного страхования в области растениеводства, за счет средств областного бюджета | D145: 1524 | M145: =SUM([1]УФ!M144+[1]ОК!M144+[1]РОО!M144+[1]УСХ!M144+'[1]З С '!M144+[1]РА!M144) -> 0 | N145: =SUM([1]УФ!N144+[1]ОК!N144+[1]РОО!N144+[1]УСХ!N144+'[1]З С '!N144+[1]РА!N144) -> 0 | O145: =SUM([1]УФ!O144+[1]ОК!O144+[1]РОО!O144+[1]УСХ!O144+'[1]З С '!O144+[1]РА!O144) -> 0 | P145: =SUM([1]УФ!P144+[1]ОК!P144+[1]РОО!P144+[1]УСХ!P144+'[1]З С '!P144+[1]РА!P144) -> 0 | Q145: =SUM([1]УФ!Q144+[1]ОК!Q144+[1]РОО!Q144+[1]УСХ!Q144+'[1]З С '!Q144+[1]РА!Q144) -> 0 | R145: =SUM([1]УФ!R144+[1]ОК!R144+[1]РОО!R144+[1]УСХ!R144+'[1]З С '!R144+[1]РА!R144) -> 0
B146: 1.4.1.24. | C146: Субвенции на реализацию экономически значимой программы "Развитие мясного скотоводства в Нижегородской области на 2015-2017 годы" за счет средств областного бюджета | D146: 1525 | H146: Заакон Нижегородской области от 11.11.2005 N 176-З "О наделении органов местного самоуправления Нижегородской области отдельными государственными полномочиями по поддержке сельскохозяйственного производства" | J146: 2005-11-11 | K146: 04 | L146: 05 | M146: =SUM([1]УФ!M145+[1]ОК!M145+[1]РОО!M145+[1]УСХ!M145+'[1]З С '!M145+[1]РА!M145) -> 309 | N146: =SUM([1]УФ!N145+[1]ОК!N145+[1]РОО!N145+[1]УСХ!N145+'[1]З С '!N145+[1]РА!N145) -> 309 | O146: =SUM([1]УФ!O145+[1]ОК!O145+[1]РОО!O145+[1]УСХ!O145+'[1]З С '!O145+[1]РА!O145) -> 0 | P146: =SUM([1]УФ!P145+[1]ОК!P145+[1]РОО!P145+[1]УСХ!P145+'[1]З С '!P145+[1]РА!P145) -> 27082 | Q146: =SUM([1]УФ!Q145+[1]ОК!Q145+[1]РОО!Q145+[1]УСХ!Q145+'[1]З С '!Q145+[1]РА!Q145) -> 684.8 | R146: =SUM([1]УФ!R145+[1]ОК!R145+[1]РОО!R145+[1]УСХ!R145+'[1]З С '!R145+[1]РА!R145) -> 684.8
B147: 1.4.1.25. | C147: Субвенции на проведение ремонта жилых помещений, собственниками которых являются дети-сироты и дети, оставшиеся без попечения родителей, а также лица из числа детей-сирот и детей, оставшихся без попечения родителей, либо жилых помещений государственного жилищного фонда, право пользования которыми за ними сохранено, в целях обеспечения надлежащего санитарного и технического состояния этих жилых помещений | D147: 1526 | M147: =SUM([1]УФ!M146+[1]ОК!M146+[1]РОО!M146+[1]УСХ!M146+'[1]З С '!M146+[1]РА!M146) -> 0 | N147: =SUM([1]УФ!N146+[1]ОК!N146+[1]РОО!N146+[1]УСХ!N146+'[1]З С '!N146+[1]РА!N146) -> 0 | O147: =SUM([1]УФ!O146+[1]ОК!O146+[1]РОО!O146+[1]УСХ!O146+'[1]З С '!O146+[1]РА!O146) -> 0 | P147: =SUM([1]УФ!P146+[1]ОК!P146+[1]РОО!P146+[1]УСХ!P146+'[1]З С '!P146+[1]РА!P146) -> 0 | Q147: =SUM([1]УФ!Q146+[1]ОК!Q146+[1]РОО!Q146+[1]УСХ!Q146+'[1]З С '!Q146+[1]РА!Q146) -> 0 | R147: =SUM([1]УФ!R146+[1]ОК!R146+[1]РОО!R146+[1]УСХ!R146+'[1]З С '!R146+[1]РА!R146) -> 0
B148: 1.4.1.26. | C148: Субвенция бюджету городского округа город Нижний Новгород на осуществление полномочий по определению перечня должностных лиц органов местного самоуправления, уполномоченных составлять протоколы об административных правонарушениях, и по созданию административных комиссий | D148: 1527 | M148: =SUM([1]УФ!M147+[1]ОК!M147+[1]РОО!M147+[1]УСХ!M147+'[1]З С '!M147+[1]РА!M147) -> 0 | N148: =SUM([1]УФ!N147+[1]ОК!N147+[1]РОО!N147+[1]УСХ!N147+'[1]З С '!N147+[1]РА!N147) -> 0 | O148: =SUM([1]УФ!O147+[1]ОК!O147+[1]РОО!O147+[1]УСХ!O147+'[1]З С '!O147+[1]РА!O147) -> 0 | P148: =SUM([1]УФ!P147+[1]ОК!P147+[1]РОО!P147+[1]УСХ!P147+'[1]З С '!P147+[1]РА!P147) -> 0 | Q148: =SUM([1]УФ!Q147+[1]ОК!Q147+[1]РОО!Q147+[1]УСХ!Q147+'[1]З С '!Q147+[1]РА!Q147) -> 0 | R148: =SUM([1]УФ!R147+[1]ОК!R147+[1]РОО!R147+[1]УСХ!R147+'[1]З С '!R147+[1]РА!R147) -> 0
B149: 1.4.1.27. | C149: Субвенция на осуществление полномочий по организации и осуществлению деятельности по опеке и попечительству в отношении совершеннолетних граждан | D149: 1528 | H149: Приказ минфина Нижегородской области от 23.09.2016 N 175 "Об утверждении Порядка планирования бюджетных ассигнований областного бюджета на 2017 год и на плановый период 2018 и 2019 годов" | K149: 10 | L149: 06 | M149: =SUM([1]УФ!M148+[1]ОК!M148+[1]РОО!M148+[1]УСХ!M148+'[1]З С '!M148+[1]РА!M148) -> 0 | N149: =SUM([1]УФ!N148+[1]ОК!N148+[1]РОО!N148+[1]УСХ!N148+'[1]З С '!N148+[1]РА!N148) -> 0 | O149: =SUM([1]УФ!O148+[1]ОК!O148+[1]РОО!O148+[1]УСХ!O148+'[1]З С '!O148+[1]РА!O148) -> 202.5 | P149: =SUM([1]УФ!P148+[1]ОК!P148+[1]РОО!P148+[1]УСХ!P148+'[1]З С '!P148+[1]РА!P148) -> 381.8 | Q149: =SUM([1]УФ!Q148+[1]ОК!Q148+[1]РОО!Q148+[1]УСХ!Q148+'[1]З С '!Q148+[1]РА!Q148) -> 395.8 | R149: =SUM([1]УФ!R148+[1]ОК!R148+[1]РОО!R148+[1]УСХ!R148+'[1]З С '!R148+[1]РА!R148) -> 410.2
B150: 1.4.1.28. | C150: Субвенция на оказание несвязанной поддержки сельскохозяйственным товаропроизводителям в области растениеводства за счет средств областного бюджета | D150: 1529 | H150: Закон Нижегородской области от 11.11.2005 N 176-З "О наделении органов местного самоуправления Нижегородской области отдельными государственными полномочиями по поддержке сельскохозяйственного производства" | J150: 2005-11-11 | K150: 04 | L150: 05 | M150: =SUM([1]УФ!M149+[1]ОК!M149+[1]РОО!M149+[1]УСХ!M149+'[1]З С '!M149+[1]РА!M149) -> 5062.5 | N150: =SUM([1]УФ!N149+[1]ОК!N149+[1]РОО!N149+[1]УСХ!N149+'[1]З С '!N149+[1]РА!N149) -> 5062.5 | O150: =SUM([1]УФ!O149+[1]ОК!O149+[1]РОО!O149+[1]УСХ!O149+'[1]З С '!O149+[1]РА!O149) -> 4195.5 | P150: =SUM([1]УФ!P149+[1]ОК!P149+[1]РОО!P149+[1]УСХ!P149+'[1]З С '!P149+[1]РА!P149) -> 2750.3 | Q150: =SUM([1]УФ!Q149+[1]ОК!Q149+[1]РОО!Q149+[1]УСХ!Q149+'[1]З С '!Q149+[1]РА!Q149) -> 2750.3 | R150: =SUM([1]УФ!R149+[1]ОК!R149+[1]РОО!R149+[1]УСХ!R149+'[1]З С '!R149+[1]РА!R149) -> 6701.6
B151: 1.4.1.29. | C151: Субвенции на обеспечение детей-сирот и детей, оставшихся без попечения родителей, лиц из числа детей-сирот и детей, оставшихся без попечения родителей, жилыми помещениями за счет средств областного бюджета | D151: 1530 | H151: Закон Нижегородской области от 30.09.2008 N 116-З "О наделении органов местного самоуправления муниципальных районов и городских округов Нижегородской области отдельными государственными полномочиями в области жилищных отношений" | J151: 2008-09-30 | K151: 10 | L151: 04 | M151: =SUM([1]УФ!M150+[1]ОК!M150+[1]РОО!M150+[1]УСХ!M150+'[1]З С '!M150+[1]РА!M150) -> 820 | N151: =SUM([1]УФ!N150+[1]ОК!N150+[1]РОО!N150+[1]УСХ!N150+'[1]З С '!N150+[1]РА!N150) -> 820 | O151: =SUM([1]УФ!O150+[1]ОК!O150+[1]РОО!O150+[1]УСХ!O150+'[1]З С '!O150+[1]РА!O150) -> 3712.2 | P151: =SUM([1]УФ!P150+[1]ОК!P150+[1]РОО!P150+[1]УСХ!P150+'[1]З С '!P150+[1]РА!P150) -> 1282.3 | Q151: =SUM([1]УФ!Q150+[1]ОК!Q150+[1]РОО!Q150+[1]УСХ!Q150+'[1]З С '!Q150+[1]РА!Q150) -> 1342.6 | R151: =SUM([1]УФ!R150+[1]ОК!R150+[1]РОО!R150+[1]УСХ!R150+'[1]З С '!R150+[1]РА!R150) -> 1405.7
B152: 1.4.1.30. | C152: Субвенции на возмещение части затрат на приобретение зерноуборочных и кормоуборочных комбайнов отечественного производства за счет средств областного бюджета | D152: 1531 | H152: Закон Нижегородской области от 03.04.2012 N 30-З "О внесении изменений в Закон Нижегородской области "О наделении органов местного самоуправления Нижегородской области отдельными государственными полномочиями по поддержке сельскохозяйственного производства" | J152: 2012-04-03 | K152: 04 | L152: 05 | M152: =SUM([1]УФ!M151+[1]ОК!M151+[1]РОО!M151+[1]УСХ!M151+'[1]З С '!M151+[1]РА!M151) -> 0 | N152: =SUM([1]УФ!N151+[1]ОК!N151+[1]РОО!N151+[1]УСХ!N151+'[1]З С '!N151+[1]РА!N151) -> 0 | O152: =SUM([1]УФ!O151+[1]ОК!O151+[1]РОО!O151+[1]УСХ!O151+'[1]З С '!O151+[1]РА!O151) -> 250 | P152: =SUM([1]УФ!P151+[1]ОК!P151+[1]РОО!P151+[1]УСХ!P151+'[1]З С '!P151+[1]РА!P151) -> 450.7 | Q152: =SUM([1]УФ!Q151+[1]ОК!Q151+[1]РОО!Q151+[1]УСХ!Q151+'[1]З С '!Q151+[1]РА!Q151) -> 450.7 | R152: =SUM([1]УФ!R151+[1]ОК!R151+[1]РОО!R151+[1]УСХ!R151+'[1]З С '!R151+[1]РА!R151) -> 1126.8
B153: 1.4.1.31. | C153: Субвенции на возмещение части процентной ставки по инвестиционным кредитам на строительство и реконструкцию объектов мясного скотоводства за счет средств областного бюджета | D153: 1532 | M153: =SUM([1]УФ!M152+[1]ОК!M152+[1]РОО!M152+[1]УСХ!M152+'[1]З С '!M152+[1]РА!M152) -> 0 | N153: =SUM([1]УФ!N152+[1]ОК!N152+[1]РОО!N152+[1]УСХ!N152+'[1]З С '!N152+[1]РА!N152) -> 0 | O153: =SUM([1]УФ!O152+[1]ОК!O152+[1]РОО!O152+[1]УСХ!O152+'[1]З С '!O152+[1]РА!O152) -> 0 | P153: =SUM([1]УФ!P152+[1]ОК!P152+[1]РОО!P152+[1]УСХ!P152+'[1]З С '!P152+[1]РА!P152) -> 0 | Q153: =SUM([1]УФ!Q152+[1]ОК!Q152+[1]РОО!Q152+[1]УСХ!Q152+'[1]З С '!Q152+[1]РА!Q152) -> 0 | R153: =SUM([1]УФ!R152+[1]ОК!R152+[1]РОО!R152+[1]УСХ!R152+'[1]З С '!R152+[1]РА!R152) -> 0
B154: 1.4.1.32. | C154: Субвенции на возмещение части процентной ставки по инвестиционным кредитам (займам) на строительство и реконструкцию объектов для молочного скотоводства за счет средств областного бюджета | D154: 1533 | M154: =SUM([1]УФ!M153+[1]ОК!M153+[1]РОО!M153+[1]УСХ!M153+'[1]З С '!M153+[1]РА!M153) -> 0 | N154: =SUM([1]УФ!N153+[1]ОК!N153+[1]РОО!N153+[1]УСХ!N153+'[1]З С '!N153+[1]РА!N153) -> 0 | O154: =SUM([1]УФ!O153+[1]ОК!O153+[1]РОО!O153+[1]УСХ!O153+'[1]З С '!O153+[1]РА!O153) -> 0 | P154: =SUM([1]УФ!P153+[1]ОК!P153+[1]РОО!P153+[1]УСХ!P153+'[1]З С '!P153+[1]РА!P153) -> 0 | Q154: =SUM([1]УФ!Q153+[1]ОК!Q153+[1]РОО!Q153+[1]УСХ!Q153+'[1]З С '!Q153+[1]РА!Q153) -> 0 | R154: =SUM([1]УФ!R153+[1]ОК!R153+[1]РОО!R153+[1]УСХ!R153+'[1]З С '!R153+[1]РА!R153) -> 0
B155: 1.4.1.33. | C155: Субвенции на возмещение части затрат сельскохозяйственных товаропроизводителей на 1 килограмм реализованного и (или) отгруженного на собственную переработку молока за счет средств областного бюджета | D155: 1534 | H155: Закон Нижегородской области от 11.11.2005 N 176-З "О наделении органов местного самоуправления Нижегородской области отдельными государственными полномочиями по поддержке сельскохозяйственного производства" | J155: 2005-11-11 | K155: 04 | L155: 05 | M155: =SUM([1]УФ!M154+[1]ОК!M154+[1]РОО!M154+[1]УСХ!M154+'[1]З С '!M154+[1]РА!M154) -> 1320 | N155: =SUM([1]УФ!N154+[1]ОК!N154+[1]РОО!N154+[1]УСХ!N154+'[1]З С '!N154+[1]РА!N154) -> 1320 | O155: =SUM([1]УФ!O154+[1]ОК!O154+[1]РОО!O154+[1]УСХ!O154+'[1]З С '!O154+[1]РА!O154) -> 4104.1 | P155: =SUM([1]УФ!P154+[1]ОК!P154+[1]РОО!P154+[1]УСХ!P154+'[1]З С '!P154+[1]РА!P154) -> 2606.3 | Q155: =SUM([1]УФ!Q154+[1]ОК!Q154+[1]РОО!Q154+[1]УСХ!Q154+'[1]З С '!Q154+[1]РА!Q154) -> 2606.3 | R155: =SUM([1]УФ!R154+[1]ОК!R154+[1]РОО!R154+[1]УСХ!R154+'[1]З С '!R154+[1]РА!R154) -> 5667.8
B156: 1.4.1.34. | C156: Субвенции на обеспечение детей-сирот и детей, оставшихся без попечения родителей, лиц из числа детей-сирот и детей, оставшихся без попечения родителей, жилыми помещениями за счет остатков средств федерального бюджета | D156: 1535 | H156: Закон Нижегородской области от 30.09.2008 N 116-З "О наделении органов местного самоуправления муниципальных районов и городских округов Нижегородской области отдельными государственными полномочиями в области жилищных отношений" | J156: 2008-09-30 | K156: 10 | L156: 04 | M156: =SUM([1]УФ!M155+[1]ОК!M155+[1]РОО!M155+[1]УСХ!M155+'[1]З С '!M155+[1]РА!M155) -> 1177.8 | N156: =SUM([1]УФ!N155+[1]ОК!N155+[1]РОО!N155+[1]УСХ!N155+'[1]З С '!N155+[1]РА!N155) -> 1177.8 | O156: =SUM([1]УФ!O155+[1]ОК!O155+[1]РОО!O155+[1]УСХ!O155+'[1]З С '!O155+[1]РА!O155) -> 1237.4 | P156: =SUM([1]УФ!P155+[1]ОК!P155+[1]РОО!P155+[1]УСХ!P155+'[1]З С '!P155+[1]РА!P155) -> 1282.3 | Q156: =SUM([1]УФ!Q155+[1]ОК!Q155+[1]РОО!Q155+[1]УСХ!Q155+'[1]З С '!Q155+[1]РА!Q155) -> 1342.6 | R156: =SUM([1]УФ!R155+[1]ОК!R155+[1]РОО!R155+[1]УСХ!R155+'[1]З С '!R155+[1]РА!R155) -> 1405.7
B157: 1.4.1.35. | C157: Субвенции на обеспечение жильем граждан, страдающих тяжелыми формами хронических заболеваний, перечень которых установлен Правительством РФ | D157: 1536 | H157: Закон Нижегородской области от 30.09.2008 N 116-З (ред. от 06.05.2016) "О наделении органов местного самоуправления муниципальных районов и городских округов Нижегородской области отдельными государственными полномочиями в области жилищных отношений" (принят постановлением ЗС НО от 25.09.2008 N 1221-IV) | I157: Приложение 1.1 | K157: 10 | L157: 03 | M157: =SUM([1]УФ!M156+[1]ОК!M156+[1]РОО!M156+[1]УСХ!M156+'[1]З С '!M156+[1]РА!M156) -> 0 | N157: =SUM([1]УФ!N156+[1]ОК!N156+[1]РОО!N156+[1]УСХ!N156+'[1]З С '!N156+[1]РА!N156) -> 0 | O157: =SUM([1]УФ!O156+[1]ОК!O156+[1]РОО!O156+[1]УСХ!O156+'[1]З С '!O156+[1]РА!O156) -> 0 | P157: =SUM([1]УФ!P156+[1]ОК!P156+[1]РОО!P156+[1]УСХ!P156+'[1]З С '!P156+[1]РА!P156) -> 0 | Q157: =SUM([1]УФ!Q156+[1]ОК!Q156+[1]РОО!Q156+[1]УСХ!Q156+'[1]З С '!Q156+[1]РА!Q156) -> 0 | R157: =SUM([1]УФ!R156+[1]ОК!R156+[1]РОО!R156+[1]УСХ!R156+'[1]З С '!R156+[1]РА!R156) -> 0
B158: 1.4.1.36. | C158: Субвенции на реализацию экономически значимой программы "Развитие мясного скотоводства в Нижегородской области на 2015-2017 годы" за счет средств федерального бюджета | D158: 1537 | M158: =SUM([1]УФ!M157+[1]ОК!M157+[1]РОО!M157+[1]УСХ!M157+'[1]З С '!M157+[1]РА!M157) -> 0 | N158: =SUM([1]УФ!N157+[1]ОК!N157+[1]РОО!N157+[1]УСХ!N157+'[1]З С '!N157+[1]РА!N157) -> 0 | O158: =SUM([1]УФ!O157+[1]ОК!O157+[1]РОО!O157+[1]УСХ!O157+'[1]З С '!O157+[1]РА!O157) -> 0 | P158: =SUM([1]УФ!P157+[1]ОК!P157+[1]РОО!P157+[1]УСХ!P157+'[1]З С '!P157+[1]РА!P157) -> 0 | Q158: =SUM([1]УФ!Q157+[1]ОК!Q157+[1]РОО!Q157+[1]УСХ!Q157+'[1]З С '!Q157+[1]РА!Q157) -> 0 | R158: =SUM([1]УФ!R157+[1]ОК!R157+[1]РОО!R157+[1]УСХ!R157+'[1]З С '!R157+[1]РА!R157) -> 0
B159: 1.4.1.37. | C159: Субвенции на возмещение части затрат сельскохозяйственных товаропроизводителей на уплату страховой премии, начисленной по договору сельскохозяйственного страхования в области растениеводства, за счет средств федерального бюджета | D159: 1538 | M159: =SUM([1]УФ!M158+[1]ОК!M158+[1]РОО!M158+[1]УСХ!M158+'[1]З С '!M158+[1]РА!M158) -> 0 | N159: =SUM([1]УФ!N158+[1]ОК!N158+[1]РОО!N158+[1]УСХ!N158+'[1]З С '!N158+[1]РА!N158) -> 0 | O159: =SUM([1]УФ!O158+[1]ОК!O158+[1]РОО!O158+[1]УСХ!O158+'[1]З С '!O158+[1]РА!O158) -> 0 | P159: =SUM([1]УФ!P158+[1]ОК!P158+[1]РОО!P158+[1]УСХ!P158+'[1]З С '!P158+[1]РА!P158) -> 0 | Q159: =SUM([1]УФ!Q158+[1]ОК!Q158+[1]РОО!Q158+[1]УСХ!Q158+'[1]З С '!Q158+[1]РА!Q158) -> 0 | R159: =SUM([1]УФ!R158+[1]ОК!R158+[1]РОО!R158+[1]УСХ!R158+'[1]З С '!R158+[1]РА!R158) -> 0
B160: 1.4.1.38. | C160: Субвенции на поддержку племенного крупного рогатого скота мясного направления за счет средств федерального бюджета | D160: 1539 | M160: =SUM([1]УФ!M159+[1]ОК!M159+[1]РОО!M159+[1]УСХ!M159+'[1]З С '!M159+[1]РА!M159) -> 0 | N160: =SUM([1]УФ!N159+[1]ОК!N159+[1]РОО!N159+[1]УСХ!N159+'[1]З С '!N159+[1]РА!N159) -> 0 | O160: =SUM([1]УФ!O159+[1]ОК!O159+[1]РОО!O159+[1]УСХ!O159+'[1]З С '!O159+[1]РА!O159) -> 0 | P160: =SUM([1]УФ!P159+[1]ОК!P159+[1]РОО!P159+[1]УСХ!P159+'[1]З С '!P159+[1]РА!P159) -> 0 | Q160: =SUM([1]УФ!Q159+[1]ОК!Q159+[1]РОО!Q159+[1]УСХ!Q159+'[1]З С '!Q159+[1]РА!Q159) -> 0 | R160: =SUM([1]УФ!R159+[1]ОК!R159+[1]РОО!R159+[1]УСХ!R159+'[1]З С '!R159+[1]РА!R159) -> 0
B161: 1.4.1.39. | C161: Субвенции на возмещение части процентной ставки по долгосрочным, среднесрочным и краткосрочным кредитам, взятым малыми формами хозяйствования, за счет средств федерального бюджета | D161: 1540 | H161: Закон Нижегородской области от 11.11.2005 N 176-З "О наделении органов местного самоуправления Нижегородской области отдельными государственными полномочиями по поддержке сельскохозяйственного производства" | J161: 2015-11-11 | K161: 04 | L161: 05 | M161: =SUM([1]УФ!M160+[1]ОК!M160+[1]РОО!M160+[1]УСХ!M160+'[1]З С '!M160+[1]РА!M160) -> 302 | N161: =SUM([1]УФ!N160+[1]ОК!N160+[1]РОО!N160+[1]УСХ!N160+'[1]З С '!N160+[1]РА!N160) -> 302 | O161: =SUM([1]УФ!O160+[1]ОК!O160+[1]РОО!O160+[1]УСХ!O160+'[1]З С '!O160+[1]РА!O160) -> 293.9 | P161: =SUM([1]УФ!P160+[1]ОК!P160+[1]РОО!P160+[1]УСХ!P160+'[1]З С '!P160+[1]РА!P160) -> 82.5 | Q161: =SUM([1]УФ!Q160+[1]ОК!Q160+[1]РОО!Q160+[1]УСХ!Q160+'[1]З С '!Q160+[1]РА!Q160) -> 66 | R161: =SUM([1]УФ!R160+[1]ОК!R160+[1]РОО!R160+[1]УСХ!R160+'[1]З С '!R160+[1]РА!R160) -> 52.7
B162: 1.4.1.40. | C162: Субвенции на возмещение части процентной ставки по инвестиционным кредитам (займам) на развитие животноводства, переработки и развития инфраструктуры и логистического обеспечения рынков продукции животноводства за счет средств федерального бюджета | D162: 1541 | M162: =SUM([1]УФ!M161+[1]ОК!M161+[1]РОО!M161+[1]УСХ!M161+'[1]З С '!M161+[1]РА!M161) -> 0 | N162: =SUM([1]УФ!N161+[1]ОК!N161+[1]РОО!N161+[1]УСХ!N161+'[1]З С '!N161+[1]РА!N161) -> 0 | O162: =SUM([1]УФ!O161+[1]ОК!O161+[1]РОО!O161+[1]УСХ!O161+'[1]З С '!O161+[1]РА!O161) -> 0 | P162: =SUM([1]УФ!P161+[1]ОК!P161+[1]РОО!P161+[1]УСХ!P161+'[1]З С '!P161+[1]РА!P161) -> 0 | Q162: =SUM([1]УФ!Q161+[1]ОК!Q161+[1]РОО!Q161+[1]УСХ!Q161+'[1]З С '!Q161+[1]РА!Q161) -> 0 | R162: =SUM([1]УФ!R161+[1]ОК!R161+[1]РОО!R161+[1]УСХ!R161+'[1]З С '!R161+[1]РА!R161) -> 0
B163: 1.4.1.41. | C163: Субвенции на возмещение части процентной ставки по инвестиционным кредитам на строительство и реконструкцию объектов мясного скотоводства за счет средств федерального бюджета | D163: 1542 | M163: =SUM([1]УФ!M162+[1]ОК!M162+[1]РОО!M162+[1]УСХ!M162+'[1]З С '!M162+[1]РА!M162) -> 0 | N163: =SUM([1]УФ!N162+[1]ОК!N162+[1]РОО!N162+[1]УСХ!N162+'[1]З С '!N162+[1]РА!N162) -> 0 | O163: =SUM([1]УФ!O162+[1]ОК!O162+[1]РОО!O162+[1]УСХ!O162+'[1]З С '!O162+[1]РА!O162) -> 0 | P163: =SUM([1]УФ!P162+[1]ОК!P162+[1]РОО!P162+[1]УСХ!P162+'[1]З С '!P162+[1]РА!P162) -> 0 | Q163: =SUM([1]УФ!Q162+[1]ОК!Q162+[1]РОО!Q162+[1]УСХ!Q162+'[1]З С '!Q162+[1]РА!Q162) -> 0 | R163: =SUM([1]УФ!R162+[1]ОК!R162+[1]РОО!R162+[1]УСХ!R162+'[1]З С '!R162+[1]РА!R162) -> 0
B164: 1.4.1.42. | C164: Субвенции на возмещение части затрат на приобретение элитных семян за счет средств федерального бюджета | D164: 1543 | H164: Закон Нижегородской области от 11.11.2005 N 176-З "О наделении органов местного самоуправления Нижегородской области отдельными государственными полномочиями по поддержке сельскохозяйственного производства" | J164: 2005-11-11 | K164: 04 | L164: 05 | M164: =SUM([1]УФ!M163+[1]ОК!M163+[1]РОО!M163+[1]УСХ!M163+'[1]З С '!M163+[1]РА!M163) -> 143.5 | N164: =SUM([1]УФ!N163+[1]ОК!N163+[1]РОО!N163+[1]УСХ!N163+'[1]З С '!N163+[1]РА!N163) -> 143.5 | O164: =SUM([1]УФ!O163+[1]ОК!O163+[1]РОО!O163+[1]УСХ!O163+'[1]З С '!O163+[1]РА!O163) -> 2558.6 | P164: =SUM([1]УФ!P163+[1]ОК!P163+[1]РОО!P163+[1]УСХ!P163+'[1]З С '!P163+[1]РА!P163) -> 3620.8 | Q164: =SUM([1]УФ!Q163+[1]ОК!Q163+[1]РОО!Q163+[1]УСХ!Q163+'[1]З С '!Q163+[1]РА!Q163) -> 5172.6 | R164: =SUM([1]УФ!R163+[1]ОК!R163+[1]РОО!R163+[1]УСХ!R163+'[1]З С '!R163+[1]РА!R163) -> 5172.6
B165: 1.4.1.43. | C165: Субвенции на поддержку племенного животноводства за счет средств федерального бюджета | D165: 1544 | M165: =SUM([1]УФ!M164+[1]ОК!M164+[1]РОО!M164+[1]УСХ!M164+'[1]З С '!M164+[1]РА!M164) -> 0 | N165: =SUM([1]УФ!N164+[1]ОК!N164+[1]РОО!N164+[1]УСХ!N164+'[1]З С '!N164+[1]РА!N164) -> 0 | O165: =SUM([1]УФ!O164+[1]ОК!O164+[1]РОО!O164+[1]УСХ!O164+'[1]З С '!O164+[1]РА!O164) -> 0 | P165: =SUM([1]УФ!P164+[1]ОК!P164+[1]РОО!P164+[1]УСХ!P164+'[1]З С '!P164+[1]РА!P164) -> 0 | Q165: =SUM([1]УФ!Q164+[1]ОК!Q164+[1]РОО!Q164+[1]УСХ!Q164+'[1]З С '!Q164+[1]РА!Q164) -> 0 | R165: =SUM([1]УФ!R164+[1]ОК!R164+[1]РОО!R164+[1]УСХ!R164+'[1]З С '!R164+[1]РА!R164) -> 0
B166: 1.4.1.44. | C166: Субвенции на обеспечение жильем отдельных категорий граждан, установленных федеральными законами от 12 января 1995 года №5-ФЗ «О ветеранах» и от 24 ноября 1995 года №181-ФЗ «О социальной защите инвалидов в Российской Федерации» | D166: 1545 | M166: =SUM([1]УФ!M165+[1]ОК!M165+[1]РОО!M165+[1]УСХ!M165+'[1]З С '!M165+[1]РА!M165) -> 0 | N166: =SUM([1]УФ!N165+[1]ОК!N165+[1]РОО!N165+[1]УСХ!N165+'[1]З С '!N165+[1]РА!N165) -> 0 | O166: =SUM([1]УФ!O165+[1]ОК!O165+[1]РОО!O165+[1]УСХ!O165+'[1]З С '!O165+[1]РА!O165) -> 749.9 | P166: =SUM([1]УФ!P165+[1]ОК!P165+[1]РОО!P165+[1]УСХ!P165+'[1]З С '!P165+[1]РА!P165) -> 0 | Q166: =SUM([1]УФ!Q165+[1]ОК!Q165+[1]РОО!Q165+[1]УСХ!Q165+'[1]З С '!Q165+[1]РА!Q165) -> 0 | R166: =SUM([1]УФ!R165+[1]ОК!R165+[1]РОО!R165+[1]УСХ!R165+'[1]З С '!R165+[1]РА!R165) -> 0
B167: 1.4.1.45. | C167: Субвенции на обеспечение жильем отдельных категорий граждан, установленных Федеральным законом от 12 января 1995 года №5-ФЗ "О ветеранах", в соответствии с Указом Президента Российской Федерации от 7 мая 2008 года №714 "Об обеспечении жильем ветеранов Великой Отечественной войны 1941-1945 годов" | D167: 1546 | E167: Федеральным законом от 12 января 1995 года №5-ФЗ "О ветеранах", в соответствии с Указом Президента Российской Федерации от 7 мая 2008 года №714 "Об обеспечении жильем ветеранов Великой Отечественной войны 1941-1945 годов" | K167: 10 | L167: 03 | M167: =SUM([1]УФ!M166+[1]ОК!M166+[1]РОО!M166+[1]УСХ!M166+'[1]З С '!M166+[1]РА!M166) -> 720.7 | N167: =SUM([1]УФ!N166+[1]ОК!N166+[1]РОО!N166+[1]УСХ!N166+'[1]З С '!N166+[1]РА!N166) -> 720.7 | O167: =SUM([1]УФ!O166+[1]ОК!O166+[1]РОО!O166+[1]УСХ!O166+'[1]З С '!O166+[1]РА!O166) -> 1499.8 | P167: =SUM([1]УФ!P166+[1]ОК!P166+[1]РОО!P166+[1]УСХ!P166+'[1]З С '!P166+[1]РА!P166) -> 779.4 | Q167: =SUM([1]УФ!Q166+[1]ОК!Q166+[1]РОО!Q166+[1]УСХ!Q166+'[1]З С '!Q166+[1]РА!Q166) -> 0 | R167: =SUM([1]УФ!R166+[1]ОК!R166+[1]РОО!R166+[1]УСХ!R166+'[1]З С '!R166+[1]РА!R166) -> 0
B168: 1.4.1.46. | C168: Субвенции на реализацию переданных исполнительно-распорядительным органам муниципальных образований Нижегородской области государственных полномочий по составлению (изменению, дополнению) списков кандидатов в присяжные заседатели федеральных судов общей юрисдикции в Российской Федерации | D168: 1547 | H168: Закон Нижегородской области от 04.08.2010 N 120-З "Об утверждении методики распределения субвенций бюджетам муниципальных районов и городских округов Нижегородской области на реализацию переданных исполнительно-распорядительным органам муниципальных образований Нижегородской области государственных полномочий по составлению (изменению, дополнению) списков кандидатов в присяжные заседатели федеральных судов общей юрисдикции в Российской Федерации" | J168: 2010-08-04 | K168: 01 | L168: 05 | M168: =SUM([1]УФ!M167+[1]ОК!M167+[1]РОО!M167+[1]УСХ!M167+'[1]З С '!M167+[1]РА!M167) -> 2.4 | N168: =SUM([1]УФ!N167+[1]ОК!N167+[1]РОО!N167+[1]УСХ!N167+'[1]З С '!N167+[1]РА!N167) -> 2.4 | O168: =SUM([1]УФ!O167+[1]ОК!O167+[1]РОО!O167+[1]УСХ!O167+'[1]З С '!O167+[1]РА!O167) -> 0 | P168: =SUM([1]УФ!P167+[1]ОК!P167+[1]РОО!P167+[1]УСХ!P167+'[1]З С '!P167+[1]РА!P167) -> 49.9 | Q168: =SUM([1]УФ!Q167+[1]ОК!Q167+[1]РОО!Q167+[1]УСХ!Q167+'[1]З С '!Q167+[1]РА!Q167) -> 4.2 | R168: =SUM([1]УФ!R167+[1]ОК!R167+[1]РОО!R167+[1]УСХ!R167+'[1]З С '!R167+[1]РА!R167) -> 6.2
B169: 1.4.1.47. | C169: Субвенции на оказание несвязанной поддержки сельскохозяйственным товаропроизводителям в области растениеводства за счет средств федерального бюджета | D169: 1548 | H169: Закон Нижегородской области от 11.11.2005 N 176-З "О наделении органов местного самоуправления Нижегородской области отдельными государственными полномочиями по поддержке сельскохозяйственного производства" | J169: 2005-11-11 | K169: 04 | L169: 05 | M169: =SUM([1]УФ!M168+[1]ОК!M168+[1]РОО!M168+[1]УСХ!M168+'[1]З С '!M168+[1]РА!M168) -> 6667 | N169: =SUM([1]УФ!N168+[1]ОК!N168+[1]РОО!N168+[1]УСХ!N168+'[1]З С '!N168+[1]РА!N168) -> 6667 | O169: =SUM([1]УФ!O168+[1]ОК!O168+[1]РОО!O168+[1]УСХ!O168+'[1]З С '!O168+[1]РА!O168) -> 4848.1 | P169: =SUM([1]УФ!P168+[1]ОК!P168+[1]РОО!P168+[1]УСХ!P168+'[1]З С '!P168+[1]РА!P168) -> 0 | Q169: =SUM([1]УФ!Q168+[1]ОК!Q168+[1]РОО!Q168+[1]УСХ!Q168+'[1]З С '!Q168+[1]РА!Q168) -> 0 | R169: =SUM([1]УФ!R168+[1]ОК!R168+[1]РОО!R168+[1]УСХ!R168+'[1]З С '!R168+[1]РА!R168) -> 0
B170: 1.4.1.48. | C170: Субвенции на возмещение части процентной ставки по инвестиционным кредитам (займам) на развитие растениеводства, переработки и развития инфраструктуры и логистического обеспечения рынков продукции растениеводства за счет средств федерального бюджета | D170: 1549 | M170: =SUM([1]УФ!M169+[1]ОК!M169+[1]РОО!M169+[1]УСХ!M169+'[1]З С '!M169+[1]РА!M169) -> 0 | N170: =SUM([1]УФ!N169+[1]ОК!N169+[1]РОО!N169+[1]УСХ!N169+'[1]З С '!N169+[1]РА!N169) -> 0 | O170: =SUM([1]УФ!O169+[1]ОК!O169+[1]РОО!O169+[1]УСХ!O169+'[1]З С '!O169+[1]РА!O169) -> 0 | P170: =SUM([1]УФ!P169+[1]ОК!P169+[1]РОО!P169+[1]УСХ!P169+'[1]З С '!P169+[1]РА!P169) -> 0 | Q170: =SUM([1]УФ!Q169+[1]ОК!Q169+[1]РОО!Q169+[1]УСХ!Q169+'[1]З С '!Q169+[1]РА!Q169) -> 0 | R170: =SUM([1]УФ!R169+[1]ОК!R169+[1]РОО!R169+[1]УСХ!R169+'[1]З С '!R169+[1]РА!R169) -> 0
B171: 1.4.1.49. | C171: Субвенции на 1 килограмм реализованного и (или) отгруженного на собственную переработку молока за счет средств федерального бюджета | D171: 1550 | H171: Закон Нижегородской области от 11.11.2005 N 176-З "О наделении органов местного самоуправления Нижегородской области отдельными государственными полномочиями по поддержке сельскохозяйственного производства" | J171: 2005-11-11 | K171: 04 | L171: 05 | M171: =SUM([1]УФ!M170+[1]ОК!M170+[1]РОО!M170+[1]УСХ!M170+'[1]З С '!M170+[1]РА!M170) -> 2820 | N171: =SUM([1]УФ!N170+[1]ОК!N170+[1]РОО!N170+[1]УСХ!N170+'[1]З С '!N170+[1]РА!N170) -> 2820 | O171: =SUM([1]УФ!O170+[1]ОК!O170+[1]РОО!O170+[1]УСХ!O170+'[1]З С '!O170+[1]РА!O170) -> 2295.1 | P171: =SUM([1]УФ!P170+[1]ОК!P170+[1]РОО!P170+[1]УСХ!P170+'[1]З С '!P170+[1]РА!P170) -> 0 | Q171: =SUM([1]УФ!Q170+[1]ОК!Q170+[1]РОО!Q170+[1]УСХ!Q170+'[1]З С '!Q170+[1]РА!Q170) -> 0 | R171: =SUM([1]УФ!R170+[1]ОК!R170+[1]РОО!R170+[1]УСХ!R170+'[1]З С '!R170+[1]РА!R170) -> 0
B172: 1.4.1.50. | C172: Субвенции на осуществление отдельных полномочий РФ по подготовке и проведению Всероссийской переписи 2016 года | D172: 1551 | H172: Закон Нижегородской области от 02.12.2015 N 178-З "О наделении органов местного самоуправления муниципальных районов и городских округов Нижегородской области отдельными полномочиями Российской Федерации по подготовке и проведению Всероссийской сельскохозяйственной переписи 2016 года" (принят постановлением ЗС НО от 26.11.2015 N 1981-V) | J172: 2016-01-01 | K172: 01 | L172: 13 | M172: =SUM([1]УФ!M171+[1]ОК!M171+[1]РОО!M171+[1]УСХ!M171+'[1]З С '!M171+[1]РА!M171) -> 478.7 | N172: =SUM([1]УФ!N171+[1]ОК!N171+[1]РОО!N171+[1]УСХ!N171+'[1]З С '!N171+[1]РА!N171) -> 263.9 | O172: =SUM([1]УФ!O171+[1]ОК!O171+[1]РОО!O171+[1]УСХ!O171+'[1]З С '!O171+[1]РА!O171) -> 0 | P172: =SUM([1]УФ!P171+[1]ОК!P171+[1]РОО!P171+[1]УСХ!P171+'[1]З С '!P171+[1]РА!P171) -> 0 | Q172: =SUM([1]УФ!Q171+[1]ОК!Q171+[1]РОО!Q171+[1]УСХ!Q171+'[1]З С '!Q171+[1]РА!Q171) -> 0 | R172: =SUM([1]УФ!R171+[1]ОК!R171+[1]РОО!R171+[1]УСХ!R171+'[1]З С '!R171+[1]РА!R171) -> 0
B173: 1.4.1.51. | C173: за счет собственных доходов и источников финансирования дефицита бюджета муниципального района, всего | D173: 1552 | M173: =SUM([1]УФ!M172+[1]ОК!M172+[1]РОО!M172+[1]УСХ!M172+'[1]З С '!M172+[1]РА!M172) -> 0 | N173: =SUM([1]УФ!N172+[1]ОК!N172+[1]РОО!N172+[1]УСХ!N172+'[1]З С '!N172+[1]РА!N172) -> 0 | O173: =SUM([1]УФ!O172+[1]ОК!O172+[1]РОО!O172+[1]УСХ!O172+'[1]З С '!O172+[1]РА!O172) -> 0 | P173: =SUM([1]УФ!P172+[1]ОК!P172+[1]РОО!P172+[1]УСХ!P172+'[1]З С '!P172+[1]РА!P172) -> 0 | Q173: =SUM([1]УФ!Q172+[1]ОК!Q172+[1]РОО!Q172+[1]УСХ!Q172+'[1]З С '!Q172+[1]РА!Q172) -> 0 | R173: =SUM([1]УФ!R172+[1]ОК!R172+[1]РОО!R172+[1]УСХ!R172+'[1]З С '!R172+[1]РА!R172) -> 0
B174: 1.4.1.52. | C174: Субвенции на исполнение полномочий по финансовому обеспечению двухразовым бесплатным питанием обучающихся с ограниченными возможностями здоровья, не проживающих в муниципальных организациях, осуществляющих образовательную деятельность по адаптированным основным общеобразовательным программам | D174: 1553 | H174: Закон Нижегородской области от 05.10.2017 N 113-З "О внесении изменений в статьи 1 и 5 Закона Нижегородской области "О наделении органов местного самоуправления отдельными государственными полномочиями в области образования" (принят постановлением ЗС НО от 26.09.2017 N 372-VI) | J174: 2018-01-01 | M174: =SUM([1]УФ!M173+[1]ОК!M173+[1]РОО!M173+[1]УСХ!M173+'[1]З С '!M173+[1]РА!M173) -> 0 | N174: =SUM([1]УФ!N173+[1]ОК!N173+[1]РОО!N173+[1]УСХ!N173+'[1]З С '!N173+[1]РА!N173) -> 0 | O174: =SUM([1]УФ!O173+[1]ОК!O173+[1]РОО!O173+[1]УСХ!O173+'[1]З С '!O173+[1]РА!O173) -> 0 | P174: =SUM([1]УФ!P173+[1]ОК!P173+[1]РОО!P173+[1]УСХ!P173+'[1]З С '!P173+[1]РА!P173) -> 748.2 | Q174: =SUM([1]УФ!Q173+[1]ОК!Q173+[1]РОО!Q173+[1]УСХ!Q173+'[1]З С '!Q173+[1]РА!Q173) -> 778.1 | R174: =SUM([1]УФ!R173+[1]ОК!R173+[1]РОО!R173+[1]УСХ!R173+'[1]З С '!R173+[1]РА!R173) -> 809.2
B175: 1.4.1.53. | C175: Субвенции на исполнение полномочий по финансовому обеспечению осуществления присмотра и ухода за детьми-инвалидами, детьми-сиротами и детьми, оставшимися без попечения родителей, а также за детьми с туберкулезной интоксикацией, обучающимися в муниципальных образовательных организациях, реализующих образовательные программы дошкольного образования | D175: 1554 | H175: Закон Нижегородской области от 05.10.2017 N 113-З "О внесении изменений в статьи 1 и 5 Закона Нижегородской области "О наделении органов местного самоуправления отдельными государственными полномочиями в области образования" (принят постановлением ЗС НО от 26.09.2017 N 372-VI) | J175: 2018-01-01 | M175: =SUM([1]УФ!M174+[1]ОК!M174+[1]РОО!M174+[1]УСХ!M174+'[1]З С '!M174+[1]РА!M174) -> 0 | N175: =SUM([1]УФ!N174+[1]ОК!N174+[1]РОО!N174+[1]УСХ!N174+'[1]З С '!N174+[1]РА!N174) -> 0 | O175: =SUM([1]УФ!O174+[1]ОК!O174+[1]РОО!O174+[1]УСХ!O174+'[1]З С '!O174+[1]РА!O174) -> 0 | P175: =SUM([1]УФ!P174+[1]ОК!P174+[1]РОО!P174+[1]УСХ!P174+'[1]З С '!P174+[1]РА!P174) -> 386.6 | Q175: =SUM([1]УФ!Q174+[1]ОК!Q174+[1]РОО!Q174+[1]УСХ!Q174+'[1]З С '!Q174+[1]РА!Q174) -> 402.1 | R175: =SUM([1]УФ!R174+[1]ОК!R174+[1]РОО!R174+[1]УСХ!R174+'[1]З С '!R174+[1]РА!R174) -> 418.2
B176: 1.4.1.54 | C176: Субвенции на проведение ремонта жилых помещений, собственниками которых являются дети-сироты и дети, оставшиеся без попечения родителей, а также лица из числа детей-сирот и детей, оставшихся без попечения родителей, либо жилых помещений государственного жилищного фонда, право пользования которыми за ними сохранено, в целях обеспечения надлежащего санитарного и технического состояния этих жилых помещений | D176: 1555 | H176: Постановление Правительства Нижегородской области от 17.06.2011 N 464 (ред. от 24.06.2015) "Об утверждении Положения о порядке расходования субвенций из областного бюджета бюджетам муниципальных районов ..." | M176: =SUM([1]УФ!M175+[1]ОК!M175+[1]РОО!M175+[1]УСХ!M175+'[1]З С '!M175+[1]РА!M175) -> 0 | N176: =SUM([1]УФ!N175+[1]ОК!N175+[1]РОО!N175+[1]УСХ!N175+'[1]З С '!N175+[1]РА!N175) -> 0 | O176: =SUM([1]УФ!O175+[1]ОК!O175+[1]РОО!O175+[1]УСХ!O175+'[1]З С '!O175+[1]РА!O175) -> 0 | P176: =SUM([1]УФ!P175+[1]ОК!P175+[1]РОО!P175+[1]УСХ!P175+'[1]З С '!P175+[1]РА!P175) -> 65.6 | Q176: =SUM([1]УФ!Q175+[1]ОК!Q175+[1]РОО!Q175+[1]УСХ!Q175+'[1]З С '!Q175+[1]РА!Q175) -> 0 | R176: =SUM([1]УФ!R175+[1]ОК!R175+[1]РОО!R175+[1]УСХ!R175+'[1]З С '!R175+[1]РА!R175) -> 0
B177: 1.4.2.2. | D177: 1602 | M177: =SUM([1]УФ!M176+[1]ОК!M176+[1]РОО!M176+[1]УСХ!M176+'[1]З С '!M176+[1]РА!M176) -> 0 | N177: =SUM([1]УФ!N176+[1]ОК!N176+[1]РОО!N176+[1]УСХ!N176+'[1]З С '!N176+[1]РА!N176) -> 0 | O177: =SUM([1]УФ!O176+[1]ОК!O176+[1]РОО!O176+[1]УСХ!O176+'[1]З С '!O176+[1]РА!O176) -> 0 | P177: =SUM([1]УФ!P176+[1]ОК!P176+[1]РОО!P176+[1]УСХ!P176+'[1]З С '!P176+[1]РА!P176) -> 0 | Q177: =SUM([1]УФ!Q176+[1]ОК!Q176+[1]РОО!Q176+[1]УСХ!Q176+'[1]З С '!Q176+[1]РА!Q176) -> 0 | R177: =SUM([1]УФ!R176+[1]ОК!R176+[1]РОО!R176+[1]УСХ!R176+'[1]З С '!R176+[1]РА!R176) -> 0
B178: 1.5. | C178: Расходные обязательства, возникшие в результате принятия нормативных правовых актов муниципального района, заключения соглашений, предусматривающих предоставление межбюджетных трансфертов из бюджета муниципального района другим бюджетам бюджетной системы Российской Федерации, всего | D178: 1700 | E178: х | F178: х | G178: х | H178: х | I178: х | J178: х | K178: х | L178: х | M178: =SUM(M179+M181+M185) -> 39672.1 | N178: 39672.1 | O178: 43007.1 | P178: 56395.1 | Q178: 51898.2 | R178: 51191.5
B179: 1.5.1. | C179: по предоставлению дотаций на выравнивание бюджетной обеспеченности городских, сельских поселений, всего | D179: 1701 | E179: Федеральный закон от 06.10.2003 N 131-ФЗ "Об общих принципах организации местного самоуправления в Российской Федерации" | F179: ст.15 п.20 | G179: 06.10.2010 не ограничен | K179: 14 | L179: 01 | M179: =SUM([1]УФ!M178+[1]ОК!M178+[1]РОО!M178+[1]УСХ!M178+'[1]З С '!M178+[1]РА!M178) -> 24418.8 | N179: =SUM([1]УФ!N178+[1]ОК!N178+[1]РОО!N178+[1]УСХ!N178+'[1]З С '!N178+[1]РА!N178) -> 24418.8 | O179: =SUM([1]УФ!O178+[1]ОК!O178+[1]РОО!O178+[1]УСХ!O178+'[1]З С '!O178+[1]РА!O178) -> 24418.8 | P179: =SUM([1]УФ!P178+[1]ОК!P178+[1]РОО!P178+[1]УСХ!P178+'[1]З С '!P178+[1]РА!P178) -> 32679.5 | Q179: =SUM([1]УФ!Q178+[1]ОК!Q178+[1]РОО!Q178+[1]УСХ!Q178+'[1]З С '!Q178+[1]РА!Q178) -> 37489.7 | R179: =SUM([1]УФ!R178+[1]ОК!R178+[1]РОО!R178+[1]УСХ!R178+'[1]З С '!R178+[1]РА!R178) -> 39647.4
B180: 1.5.2. | C180: по предоставлению субсидий в бюджет субъекта Российской Федерации, всего | D180: 1702 | P180: =SUM([1]УФ!P179+[1]ОК!P179+[1]РОО!P179+[1]УСХ!P179+'[1]З С '!P179+[1]РА!P179) -> 0
B181: 1.5.3. | C181: по предоставлению субвенций в бюджеты городских, сельских поселений, предоставленных из федерального бюджета и (или) бюджета субъекта Российской Федерации, в случае наделения федеральным законом и (или) законом субъекта Российской Федерации органов местного самоуправления муниципального района полномочиями органов государственной власти по расчету и предоставлению субвенций бюджетам городских, сельских поселений, всего | D181: 1703 | E181: х | F181: х | G181: х | H181: х | I181: х | J181: х | K181: х | L181: х | M181: =SUM([1]УФ!M180+[1]ОК!M180+[1]РОО!M180+[1]УСХ!M180+'[1]З С '!M180+[1]РА!M180) -> 742.9 | N181: =SUM([1]УФ!N180+[1]ОК!N180+[1]РОО!N180+[1]УСХ!N180+'[1]З С '!N180+[1]РА!N180) -> 742.9 | O181: =SUM([1]УФ!O180+[1]ОК!O180+[1]РОО!O180+[1]УСХ!O180+'[1]З С '!O180+[1]РА!O180) -> 724.8 | P181: =SUM([1]УФ!P180+[1]ОК!P180+[1]РОО!P180+[1]УСХ!P180+'[1]З С '!P180+[1]РА!P180) -> 793 | Q181: =SUM([1]УФ!Q180+[1]ОК!Q180+[1]РОО!Q180+[1]УСХ!Q180+'[1]З С '!Q180+[1]РА!Q180) -> 801.7 | R181: =SUM([1]УФ!R180+[1]ОК!R180+[1]РОО!R180+[1]УСХ!R180+'[1]З С '!R180+[1]РА!R180) -> 831.2
B182: 1.5.3.1. | C182: на осуществление государственных полномочий Российской Федерации по первичному воинскому учету на территориях, где отсутствуют военные комиссариаты | D182: 1704 | E182: Бюджетный кодекс Российской Федерации от 31.07.1998 N 145-ФЗ | K182: 02 | L182: 03 | M182: =SUM([1]УФ!M181+[1]ОК!M181+[1]РОО!M181+[1]УСХ!M181+'[1]З С '!M181+[1]РА!M181) -> 742.9 | N182: =SUM([1]УФ!N181+[1]ОК!N181+[1]РОО!N181+[1]УСХ!N181+'[1]З С '!N181+[1]РА!N181) -> 742.9 | O182: =SUM([1]УФ!O181+[1]ОК!O181+[1]РОО!O181+[1]УСХ!O181+'[1]З С '!O181+[1]РА!O181) -> 724.8 | P182: =SUM([1]УФ!P181+[1]ОК!P181+[1]РОО!P181+[1]УСХ!P181+'[1]З С '!P181+[1]РА!P181) -> 793 | Q182: =SUM([1]УФ!Q181+[1]ОК!Q181+[1]РОО!Q181+[1]УСХ!Q181+'[1]З С '!Q181+[1]РА!Q181) -> 801.7 | R182: =SUM([1]УФ!R181+[1]ОК!R181+[1]РОО!R181+[1]УСХ!R181+'[1]З С '!R181+[1]РА!R181) -> 831.2
B183: … | C183: … | D183: … | P183: =SUM([1]УФ!P182+[1]ОК!P182+[1]РОО!P182+[1]УСХ!P182+'[1]З С '!P182+[1]РА!P182) -> 0
B184: 1.5.3.96. | C184: … | D184: 1799 | P184: =SUM([1]УФ!P183+[1]ОК!P183+[1]РОО!P183+[1]УСХ!P183+'[1]З С '!P183+[1]РА!P183) -> 0
B185: 1.5.4. | C185: по предоставлению иных межбюджетных трансфертов, всего | D185: 1800 | E185: х | F185: х | G185: х | H185: х | I185: х | J185: х | K185: х | L185: х | M185: =SUM(M186) -> 14510.4 | N185: 14510.4 | O185: 17863.5 | P185: 22922.6 | Q185: 13606.8 | R185: 10712.9
B186: 1.5.4.1. | C186: в бюджет городского, сельского поселения в случае заключения соглашения с органами местного самоуправления отдельных поселений, входящих в состав муниципального района, о передаче им осуществления части своих полномочий по решению вопросов местного значения, всего | D186: 1801 | E186: х | F186: х | G186: х | H186: х | I186: х | J186: х | K186: х | L186: х | M186: =SUM([1]УФ!M185+[1]ОК!M185+[1]РОО!M185+[1]УСХ!M185+'[1]З С '!M185+[1]РА!M185) -> 14510.4 | N186: =SUM([1]УФ!N185+[1]ОК!N185+[1]РОО!N185+[1]УСХ!N185+'[1]З С '!N185+[1]РА!N185) -> 14510.4 | O186: =SUM([1]УФ!O185+[1]ОК!O185+[1]РОО!O185+[1]УСХ!O185+'[1]З С '!O185+[1]РА!O185) -> 17863.5 | P186: =SUM([1]УФ!P185+[1]ОК!P185+[1]РОО!P185+[1]УСХ!P185+'[1]З С '!P185+[1]РА!P185) -> 22922.6 | Q186: =SUM([1]УФ!Q185+[1]ОК!Q185+[1]РОО!Q185+[1]УСХ!Q185+'[1]З С '!Q185+[1]РА!Q185) -> 13606.8 | R186: =SUM([1]УФ!R185+[1]ОК!R185+[1]РОО!R185+[1]УСХ!R185+'[1]З С '!R185+[1]РА!R185) -> 10712.9
B187: 1.5.4.1.1. | C187: на реализацию проекта по поддержке местных инициатив | D187: 1802 | K187: 04 05 11 | L187: 09 03 02 | M187: =SUM([1]УФ!M186+[1]ОК!M186+[1]РОО!M186+[1]УСХ!M186+'[1]З С '!M186+[1]РА!M186) -> 3822.7 | N187: =SUM([1]УФ!N186+[1]ОК!N186+[1]РОО!N186+[1]УСХ!N186+'[1]З С '!N186+[1]РА!N186) -> 3822.7 | O187: =SUM([1]УФ!O186+[1]ОК!O186+[1]РОО!O186+[1]УСХ!O186+'[1]З С '!O186+[1]РА!O186) -> 3835.7 | P187: =SUM([1]УФ!P186+[1]ОК!P186+[1]РОО!P186+[1]УСХ!P186+'[1]З С '!P186+[1]РА!P186) -> 0
B188: 1.5.4.1.2 | C188: иные межбюджетные трансферты на поддержку мер по обеспечению сбалансированности бюджетов поселений | D188: … | K188: 14 | L188: 03 | M188: =SUM([1]УФ!M187+[1]ОК!M187+[1]РОО!M187+[1]УСХ!M187+'[1]З С '!M187+[1]РА!M187) -> 7673.7 | N188: =SUM([1]УФ!N187+[1]ОК!N187+[1]РОО!N187+[1]УСХ!N187+'[1]З С '!N187+[1]РА!N187) -> 7673.7 | O188: =SUM([1]УФ!O187+[1]ОК!O187+[1]РОО!O187+[1]УСХ!O187+'[1]З С '!O187+[1]РА!O187) -> 7172.9 | P188: =SUM([1]УФ!P187+[1]ОК!P187+[1]РОО!P187+[1]УСХ!P187+'[1]З С '!P187+[1]РА!P187) -> 21371.5 | Q188: =SUM([1]УФ!Q187+[1]ОК!Q187+[1]РОО!Q187+[1]УСХ!Q187+'[1]З С '!Q187+[1]РА!Q187) -> 13203.5 | R188: =SUM([1]УФ!R187+[1]ОК!R187+[1]РОО!R187+[1]УСХ!R187+'[1]З С '!R187+[1]РА!R187) -> 10309.6
B189: 1.5.4.1.3 | C189: иных межбюджетных трансфертов | D189: 1899 | K189: 01 03 03 04 05 11 | L189: 04 09 10 09 03 02
B190: 1.5.4.2. | C190: … | D190: 1900 | E190: х | F190: х | G190: х | H190: х | I190: х | J190: х | K190: х | L190: х
B191: 1.5.4.2.1. | C191: в иных случаях, не связанных с заключением соглашений, предусмотренных в подпункте 1.5.4.1, всего | D191: 1901
B192: 1.5.4.2.2. | C192: … | D192: 1902
B193: … | C193: … | D193: …
B194: 1.5.1.2.99. | C194: … | D194: 1999
B195: 2. | C195: Расходные обязательства, возникшие в результате принятия нормативных правовых актов городского округа, заключения договоров (соглашений), всего | D195: 2000 | E195: х | F195: х | G195: х | H195: х | I195: х | J195: х | K195: х | L195: х
C196: из них:
B197: 2.1. | C197: Расходные обязательства, возникшие в результате принятия нормативных правовых актов городского округа, заключения договоров (соглашений) в рамках реализации вопросов местного значения городского округа, всего | D197: 2001 | E197: х | F197: х | G197: х | H197: х | I197: х | J197: х | K197: х | L197: х
B198: 2.1.1. | C198: составление и рассмотрение проекта бюджета городского округа, утверждение и исполнение бюджета городского округа, осуществление контроля за его исполнением, составление и утверждение отчета об исполнении бюджета городского округа | D198: 2002
B199: 2.1.2. | C199: установление, изменение и отмена местных налогов и сборов городского округа | D199: 2003
B200: 2.1.3. | C200: владение, пользование и распоряжение имуществом, находящимся в муниципальной собственности городского округа | D200: 2004
B201: 2.1.4. | C201: организация в границах городского округа электро-, тепло-, газо- и водоснабжения населения, водоотведения, снабжения населения топливом в пределах полномочий, установленных законодательством Российской Федерации | D201: 2005
... 379 more rows

Sheet Лист1

Sheet Лист2

Sheet Лист3
